Capital or Revenue,Directorate,SERCOP High Level Category,SERCOP Detailed Category,Transaction Number,Date,Service Area,Expenses Type,Amount,Supplier Name
Revenue,Childrens Services,Children's & Education Services,Safeguarding Children/Young Peoples Svs,5105686273,20.05.2016,LSCB (Local Safeguarding Childrens Board),Consultants Fees,"5,250.00",REDACTED PERSONAL DATA
Revenue,Childrens Services,Balance Sheet,Balance Sheet,5105688244,25.05.2016,7782 HN52 MRU LDV Convoy 17 Seat,Vehicle Maintenance Costs,199.95,ISLANDWIDE WINDSCREENS
Revenue,Public Health,Public Health,Discretionary,5105688652,27.05.2016,Public Health Core Non Mandatory,Consultants Fees,"2,000.00",REDACTED PERSONAL DATA
Revenue,Place,Cultural and Related Services,Culture and Heritage,5105686261,13.05.2016,"St Thomas Church, Ryde",Minor Works,400.00,REDACTED PERSONAL DATA
Revenue,Childrens Services,Children's & Education Services,Services for Young People,5105686010,13.05.2016,Youth- Cowes,Security of Buildings,300.00,REDACTED PERSONAL DATA
Revenue,Childrens Services,Children's & Education Services,Services for Young People,5105686010,13.05.2016,Youth- Newport,Security of Buildings,875.00,REDACTED PERSONAL DATA
Revenue,Childrens Services,Children's & Education Services,Services for Young People,5105686010,13.05.2016,Youth- Ryde  (Well St),Security of Buildings,"1,100.00",REDACTED PERSONAL DATA
Revenue,Childrens Services,Children's & Education Services,Services for Young People,5105686010,13.05.2016,Youth - E Cowes,Security of Buildings,25.00,REDACTED PERSONAL DATA
Revenue,Childrens Services,Children's & Education Services,Other Education and Community Budget,5105687328,18.05.2016,Home to School Transport,Taxis - Contract Hire,292.95,MICK'S TAXI
Revenue,Childrens Services,Children's & Education Services,Other Education and Community Budget,5105687174,18.05.2016,Home to School Transport,Taxis - Contract Hire,599.55,MICK'S TAXI
Revenue,Childrens Services,Children's & Education Services,Other Education and Community Budget,5105687188,18.05.2016,Home to School Transport,Taxis - Contract Hire,885.00,CLARES CABS
Revenue,Childrens Services,Adult Social Care,Information & Early Intervention,5105687794,20.05.2016,Adult Social Care - Workforce Development,Training,600.00,REDACTED PERSONAL DATA
Revenue,Adult Services,Adult Social Care,Social Care Activities,5105685541,06.05.2016,Local Safeguarding Adults Board,Conference Expenses,454.10,REDACTED PERSONAL DATA
Revenue,Childrens Services,Children's & Education Services,Children Looked After,5105685952,11.05.2016,Support for Looked After Children,Support Children,55.00,REDACTED PERSONAL DATA
Revenue,Resources,Central Services,Support Services,5105687388,18.05.2016,ICT Contracts,Computer Maintenance,300.00,REDACTED PERSONAL DATA
Revenue,Adult Services,Adult Social Care,Central Codes (to be reallocated),5105688296,27.05.2016,Community Outreach,Training,60.00,JOHN MARSH DRIVING INSTRUCTOR
Revenue,Childrens Services,Children's & Education Services,Other Education and Community Budget,5105685942,11.05.2016,Workforce Development - Early Years,Training,500.00,REDACTED PERSONAL DATA
Revenue,Childrens Services,Children's & Education Services,Other Education and Community Budget,5105688048,25.05.2016,Workforce Development Schools,Training,500.00,REDACTED PERSONAL DATA
Revenue,Childrens Services,Children's & Education Services,Other Education and Community Budget,5105688048,25.05.2016,Workforce Development Schools,Training,240.00,REDACTED PERSONAL DATA
Revenue,Childrens Services,Children's & Education Services,Children Looked After,5105685484,18.05.2016,Adoption Costs,Professional Services,200.00,REDACTED PERSONAL DATA
Revenue,Childrens Services,Children's & Education Services,Children Looked After,5105684496,06.05.2016,Adoption Costs,Professional Services,348.90,REDACTED PERSONAL DATA
Revenue,Childrens Services,Children's & Education Services,Children Looked After,5105684491,25.05.2016,Adoption Reform Grant,Charges from Independent Providers,348.90,REDACTED PERSONAL DATA
Revenue,Childrens Services,Children's & Education Services,Management & Support Services,5105682034,04.05.2016,Pupil Premium Managed Centrally,Professional Services,120.00,REDACTED PERSONAL DATA
Revenue,Place,Environmental & Regulatory Services,Coast Protection,5105685512,06.05.2016,Castle Haven Coast Protection Scheme,Payment to Private Contractors,"4,439.00",REDACTED PERSONAL DATA
Revenue,Childrens Services,Adult Social Care,Information & Early Intervention,5105686367,13.05.2016,Adult Social Care - Workforce Development,Training,950.00,REDACTED PERSONAL DATA
Revenue,Childrens Services,Children's & Education Services,Safeguarding Children/Young Peoples Svs,5105686366,13.05.2016,Training - Childrens,Training,950.00,REDACTED PERSONAL DATA
Revenue,Childrens Services,Children's & Education Services,Other Education and Community Budget,5105688603,27.05.2016,Personal & Community Development Learning,Grants to External Bodies,36.00,M C ENHANCEMENT
Revenue,Childrens Services,Children's & Education Services,Other Education and Community Budget,5105688602,27.05.2016,Personal & Community Development Learning,Grants to External Bodies,24.00,M C ENHANCEMENT
Revenue,Adult Services,Adult Social Care,Commissioning & Service Delivery,5105688613,27.05.2016,Commissioning Manager for Adult Social Care,Consultants Fees,"1,497.36",REDACTED PERSONAL DATA
Revenue,Adult Services,Adult Social Care,Commissioning & Service Delivery,5105688713,31.05.2016,Commissioning Manager for Adult Social Care,Consultants Fees,"3,743.40",REDACTED PERSONAL DATA
Capital,Place,Capital,Capital,5105685115,04.05.2016,Rights Of Way Capital Programme,Payment to Contractors - Capital,"2,350.00",REDACTED PERSONAL DATA
Revenue,Childrens Services,Children's & Education Services,Family Support Services,5105685613,11.05.2016,Short Breaks,Charges from Independent Providers,325.00,REDACTED PERSONAL DATA
Revenue,Childrens Services,Children's & Education Services,Family Support Services,5105688535,27.05.2016,Short Breaks,Charges from Independent Providers,498.41,REDACTED PERSONAL DATA
Revenue,Childrens Services,Children's & Education Services,Safeguarding Children/Young Peoples Svs,5105688145,25.05.2016,ASYE Programme,Training,"1,458.00",REDACTED PERSONAL DATA
Revenue,Place,Housing Services,Homelessness,5105687938,25.05.2016,Leaseholds by LA,Accommodation Costs - Leaseholder Payments,695.89,REDACTED PERSONAL DATA
Revenue,Place,Housing Services,Homelessness,5105687938,25.05.2016,Leaseholds by LA,Accommodation Costs - Leaseholder Payments,695.89,REDACTED PERSONAL DATA
Revenue,Place,Housing Services,Homelessness,5105687938,25.05.2016,Leaseholds by LA,Accommodation Costs - Leaseholder Payments,695.89,REDACTED PERSONAL DATA
Revenue,Place,Housing Services,Homelessness,5105687938,25.05.2016,Leaseholds by LA,Accommodation Costs - Leaseholder Payments,695.89,REDACTED PERSONAL DATA
Revenue,Place,Housing Services,Homelessness,5105687938,25.05.2016,Leaseholds by LA,Accommodation Costs - Leaseholder Payments,695.89,REDACTED PERSONAL DATA
Revenue,Childrens Services,Children's & Education Services,Children Looked After,5105687176,25.05.2016,Adoption Reform Grant,Professional Services,240.00,REDACTED PERSONAL DATA
Revenue,Adult Services,Adult Social Care,Learning Disab Supp (to be reallocated),5105685792,11.05.2016,Plean Dene,Minor Works,59.38,REDACTED PERSONAL DATA
Revenue,Adult Services,Adult Social Care,Central Codes (to be reallocated),5105685802,11.05.2016,Adelaide Resource Centre,Property Services - Planned Maintenance,30.00,REDACTED PERSONAL DATA
Revenue,Adult Services,Adult Social Care,Central Codes (to be reallocated),5105687227,18.05.2016,Gouldings Resource Centre,Property Services - Day to day Maintenance,30.00,REDACTED PERSONAL DATA
Revenue,Adult Services,Adult Social Care,Central Codes (to be reallocated),5105685173,04.05.2016,Gouldings Resource Centre,Property Services - Day to day Maintenance,45.00,REDACTED PERSONAL DATA
Revenue,Adult Services,Adult Social Care,Central Codes (to be reallocated),5105685166,04.05.2016,Gouldings Resource Centre,Property Services - Day to day Maintenance,30.00,REDACTED PERSONAL DATA
Revenue,Place,Cultural and Related Services,Library Service,5105686241,13.05.2016,Newport Library,Property Services - Day to day Maintenance,60.00,REDACTED PERSONAL DATA
Revenue,Place,Cultural and Related Services,Recreation and Sport,5105685192,04.05.2016,Medina Leisure Centre,Property Services - Day to day Maintenance,60.00,REDACTED PERSONAL DATA
Revenue,Place,Cultural and Related Services,Recreation and Sport,5105687229,18.05.2016,Medina Leisure Centre,Property Services - Day to day Maintenance,85.20,REDACTED PERSONAL DATA
Revenue,Childrens Services,Children's & Education Services,Special Schools & Alternative Provision,5105685175,04.05.2016,Island Learning Centre,Minor Works,30.00,REDACTED PERSONAL DATA
Revenue,Childrens Services,Children's & Education Services,Children Looked After,5105686025,13.05.2016,Beaulieu House,Property Services - Day to day Maintenance,60.00,REDACTED PERSONAL DATA
Revenue,Childrens Services,Children's & Education Services,Support Service & Management Costs,5105687500,18.05.2016,Childrens Centres Maintenance,Property Services - Day to day Maintenance,45.00,REDACTED PERSONAL DATA
Revenue,Childrens Services,Children's & Education Services,Support Service & Management Costs,5105687724,20.05.2016,Childrens Centres Maintenance,Property Services - Day to day Maintenance,30.00,REDACTED PERSONAL DATA
Revenue,Childrens Services,Children's & Education Services,Support Service & Management Costs,5105688641,27.05.2016,Childrens Centres Maintenance,Minor Works,165.00,REDACTED PERSONAL DATA
Revenue,Childrens Services,Children's & Education Services,Support Service & Management Costs,5105687886,20.05.2016,Childrens Centres Maintenance,Minor Works,161.45,REDACTED PERSONAL DATA
Capital,Childrens Services,Capital,Capital,5105685241,06.05.2016,Administration and Inspection Schemes,Payment to Contractors - Capital,"5,609.00",REDACTED PERSONAL DATA
Capital,Childrens Services,Capital,Capital,5105685241,06.05.2016,Administration and Inspection Schemes,Payment to Contractors - Capital,500.00,REDACTED PERSONAL DATA
Revenue,Place,Fire & Rescue Services,Fire fighting and Rescue Operations,5105685902,11.05.2016,Business Support  - Fire,Property Services - Day to day Maintenance,30.00,REDACTED PERSONAL DATA
Revenue,Place,Fire & Rescue Services,Fire fighting and Rescue Operations,5105688753,31.05.2016,Business Support  - Fire,Property Services - Day to day Maintenance,45.00,REDACTED PERSONAL DATA
Revenue,Place,Fire & Rescue Services,Fire fighting and Rescue Operations,5105688496,27.05.2016,Business Support  - Fire,Property Services - Planned Maintenance,165.00,REDACTED PERSONAL DATA
Revenue,Corporate Items,Housing Services,Housing Benefits Payments,5105687759,20.05.2016,Discretionary Housing Payments,Rent Allowances Paid,225.00,REDACTED PERSONAL DATA
Revenue,Adult Services,Adult Social Care,Social Care Activities,5105685095,04.05.2016,DoLS/MCA,Professional Services,"1,474.56",REDACTED PERSONAL DATA
Revenue,Childrens Services,Children's & Education Services,Safeguarding Children/Young Peoples Svs,5105684847,13.05.2016,Children in Care Team,Support Children,135.00,REDACTED PERSONAL DATA
Revenue,Childrens Services,Children's & Education Services,Safeguarding Children/Young Peoples Svs,5105684847,13.05.2016,Children in Care Team,Support Children,25.00,REDACTED PERSONAL DATA
Revenue,Childrens Services,Children's & Education Services,Safeguarding Children/Young Peoples Svs,5105684847,13.05.2016,Children in Care Team,Support Children,43.50,REDACTED PERSONAL DATA
Revenue,Childrens Services,Children's & Education Services,Safeguarding Children/Young Peoples Svs,5105684847,13.05.2016,Children in Care Team,Support Children,6.30,REDACTED PERSONAL DATA
Revenue,Childrens Services,Children's & Education Services,Safeguarding Children/Young Peoples Svs,5105683842,13.05.2016,Children in Care Team,Support Children,120.00,REDACTED PERSONAL DATA
Revenue,Childrens Services,Children's & Education Services,Safeguarding Children/Young Peoples Svs,5105683689,13.05.2016,Children in Care Team,Support Children,60.00,REDACTED PERSONAL DATA
Revenue,Childrens Services,Children's & Education Services,Safeguarding Children/Young Peoples Svs,5105683689,13.05.2016,Children in Care Team,Support Children,25.00,REDACTED PERSONAL DATA
Revenue,Childrens Services,Children's & Education Services,Safeguarding Children/Young Peoples Svs,5105683689,13.05.2016,Children in Care Team,Support Children,43.50,REDACTED PERSONAL DATA
Revenue,Childrens Services,Children's & Education Services,Safeguarding Children/Young Peoples Svs,5105683689,13.05.2016,Children in Care Team,Support Children,2.50,REDACTED PERSONAL DATA
Revenue,Childrens Services,Children's & Education Services,Management & Support Services,5105685810,11.05.2016,"Speech, Language and Communication",Training,500.00,REDACTED PERSONAL DATA
Revenue,Childrens Services,Children's & Education Services,Management & Support Services,5105685810,11.05.2016,"Speech, Language and Communication",Training,85.75,REDACTED PERSONAL DATA
Revenue,Adult Services,Adult Social Care,Learning Disability Suppt-adults (18-64),5105685157,11.05.2016,Learning Disability Supportd Livng 18-64,Charges from Independent Providers,"1,071.45",NUMBER5NEWPORT
Revenue,Childrens Services,Children's & Education Services,Children Looked After,5105685158,11.05.2016,Leaving Care Costs,Charges from Independent Providers,"2,785.80",NUMBER5NEWPORT
Revenue,Childrens Services,Children's & Education Services,Children Looked After,5105685158,11.05.2016,Leaving Care Costs,Charges from Independent Providers,248.10,NUMBER5NEWPORT
Revenue,Childrens Services,Children's & Education Services,Children Looked After,5105685158,11.05.2016,Leaving Care Costs,Charges from Independent Providers,288.00,NUMBER5NEWPORT
Revenue,Childrens Services,Children's & Education Services,Children Looked After,5105685157,11.05.2016,Leaving Care Costs,Charges from Independent Providers,"1,071.45",NUMBER5NEWPORT
Revenue,Adult Services,Adult Social Care,Social Care Activities,5105688525,27.05.2016,Local Safeguarding Adults Board,Professional Services,"1,400.00",REDACTED PERSONAL DATA
Revenue,Adult Services,Adult Social Care,Social Care Activities,5105688525,27.05.2016,Local Safeguarding Adults Board,Professional Services,180.70,REDACTED PERSONAL DATA
Revenue,Childrens Services,Children's & Education Services,Special Schools & Alternative Provision,5105687765,20.05.2016,Island Learning Centre,Taxis - Contract Hire,60.00,LAKE TAXIS
Revenue,Childrens Services,Children's & Education Services,Special Schools & Alternative Provision,5105688253,25.05.2016,Island Learning Centre,Bought in Prof Services - Personnel (Schools),400.00,REDACTED PERSONAL DATA
Revenue,Place,Housing Services,Homelessness,5105687955,25.05.2016,Leaseholds by LA,Accommodation Costs - Leaseholder Payments,866.67,2K PROPERTY
Revenue,Childrens Services,Children's & Education Services,Children Looked After,5105686330,13.05.2016,Purchased Fostering,Charges from Independent Providers,"4,251.65",5 FOSTERING
Revenue,Adult Services,Adult Social Care,Learning Disab Supp (to be reallocated),5105685255,06.05.2016,Plean Dene,Consumable Cleaning Materials,91.00,A & M APPLIANCE CARE
Revenue,Adult Services,Adult Social Care,Learning Disab Supp (to be reallocated),5105685256,06.05.2016,Plean Dene,Consumable Cleaning Materials,91.00,A & M APPLIANCE CARE
Revenue,Adult Services,Adult Social Care,Learning Disab Supp (to be reallocated),5105687908,25.05.2016,Plean Dene,Consumable Cleaning Materials,91.00,A & M APPLIANCE CARE
Revenue,Adult Services,Adult Social Care,Central Codes (to be reallocated),5105685619,11.05.2016,Adelaide Resource Centre,Consumable Cleaning Materials,258.00,A & M APPLIANCE CARE
Revenue,Adult Services,Adult Social Care,Central Codes (to be reallocated),5105685577,13.05.2016,Gouldings Resource Centre,Property Services - Day to day Maintenance,55.00,A & M APPLIANCE CARE
Revenue,Adult Services,Adult Social Care,Central Codes (to be reallocated),5105688156,25.05.2016,Gouldings Resource Centre,Consumable Cleaning Materials,150.00,A & M APPLIANCE CARE
Revenue,Childrens Services,Children's & Education Services,Children Looked After,5105685285,06.05.2016,Special Guardianship Order Costs,Support Children,168.39,REDACTED PERSONAL DATA
Revenue,Childrens Services,Children's & Education Services,Children Looked After,5105685285,06.05.2016,Special Guardianship Order Costs,Support Children,207.73,REDACTED PERSONAL DATA
Revenue,Childrens Services,Children's & Education Services,Children Looked After,5105687566,20.05.2016,Special Guardianship Order Costs,Support Children,168.39,REDACTED PERSONAL DATA
Revenue,Childrens Services,Children's & Education Services,Children Looked After,5105687566,20.05.2016,Special Guardianship Order Costs,Support Children,207.73,REDACTED PERSONAL DATA
Revenue,Childrens Services,Children's & Education Services,Children Looked After,5105686099,13.05.2016,Special Guardianship Order Costs,Support Children,168.39,REDACTED PERSONAL DATA
Revenue,Childrens Services,Children's & Education Services,Children Looked After,5105686099,13.05.2016,Special Guardianship Order Costs,Support Children,207.73,REDACTED PERSONAL DATA
Revenue,Childrens Services,Children's & Education Services,Children Looked After,5105688334,27.05.2016,Special Guardianship Order Costs,Support Children,168.39,REDACTED PERSONAL DATA
Revenue,Childrens Services,Children's & Education Services,Children Looked After,5105688334,27.05.2016,Special Guardianship Order Costs,Support Children,207.73,REDACTED PERSONAL DATA
Revenue,Childrens Services,Children's & Education Services,Children Looked After,5105685346,06.05.2016,Leaving Care Costs,Support Children,120.89,REDACTED PERSONAL DATA
Revenue,Childrens Services,Children's & Education Services,Children Looked After,5105686160,13.05.2016,Leaving Care Costs,Support Children,120.89,REDACTED PERSONAL DATA
Revenue,Childrens Services,Children's & Education Services,Children Looked After,5105687628,20.05.2016,Leaving Care Costs,Support Children,120.89,REDACTED PERSONAL DATA
Revenue,Childrens Services,Children's & Education Services,Children Looked After,5105688396,27.05.2016,Leaving Care Costs,Support Children,120.89,REDACTED PERSONAL DATA
Revenue,Childrens Services,Children's & Education Services,Children Looked After,5105685346,06.05.2016,Leaving Care Costs,Accommodation Costs - Service Users,68.50,REDACTED PERSONAL DATA
Revenue,Childrens Services,Children's & Education Services,Children Looked After,5105686160,13.05.2016,Leaving Care Costs,Accommodation Costs - Service Users,68.50,REDACTED PERSONAL DATA
Revenue,Childrens Services,Children's & Education Services,Children Looked After,5105687628,20.05.2016,Leaving Care Costs,Accommodation Costs - Service Users,68.50,REDACTED PERSONAL DATA
Revenue,Childrens Services,Children's & Education Services,Children Looked After,5105688396,27.05.2016,Leaving Care Costs,Accommodation Costs - Service Users,68.50,REDACTED PERSONAL DATA
Revenue,Place,Housing Services,Homelessness,5105687950,25.05.2016,Leaseholds by LA,Accommodation Costs - Leaseholder Payments,510.25,REDACTED PERSONAL DATA
Revenue,Place,Housing Services,Homelessness,5105687950,25.05.2016,Leaseholds by LA,Accommodation Costs - Leaseholder Payments,510.25,REDACTED PERSONAL DATA
Revenue,Place,Housing Services,Homelessness,5105687950,25.05.2016,Leaseholds by LA,Accommodation Costs - Leaseholder Payments,510.25,REDACTED PERSONAL DATA
Revenue,Place,Housing Services,Homelessness,5105687950,25.05.2016,Leaseholds by LA,Accommodation Costs - Leaseholder Payments,510.25,REDACTED PERSONAL DATA
Revenue,Place,Housing Services,Homelessness,5105687950,25.05.2016,Leaseholds by LA,Accommodation Costs - Leaseholder Payments,510.25,REDACTED PERSONAL DATA
Revenue,Place,Housing Services,Homelessness,5105687950,25.05.2016,Leaseholds by LA,Accommodation Costs - Leaseholder Payments,510.25,REDACTED PERSONAL DATA
Revenue,Childrens Services,Children's & Education Services,Children Looked After,5105685266,06.05.2016,Adoption Costs,Support Children,225.83,REDACTED PERSONAL DATA
Revenue,Childrens Services,Children's & Education Services,Children Looked After,5105688317,27.05.2016,Adoption Costs,Support Children,225.83,REDACTED PERSONAL DATA
Revenue,Childrens Services,Children's & Education Services,Children Looked After,5105687548,20.05.2016,Adoption Costs,Support Children,225.83,REDACTED PERSONAL DATA
Revenue,Childrens Services,Children's & Education Services,Children Looked After,5105686082,13.05.2016,Adoption Costs,Support Children,225.83,REDACTED PERSONAL DATA
Revenue,Childrens Services,Children's & Education Services,Children Looked After,5105687600,20.05.2016,In-house Fostering,Boarding Out Allowances,249.15,REDACTED PERSONAL DATA
Revenue,Childrens Services,Children's & Education Services,Children Looked After,5105687600,20.05.2016,In-house Fostering,Boarding Out Allowances,164.52,REDACTED PERSONAL DATA
Revenue,Childrens Services,Children's & Education Services,Children Looked After,5105688368,27.05.2016,In-house Fostering,Boarding Out Allowances,249.15,REDACTED PERSONAL DATA
Revenue,Childrens Services,Children's & Education Services,Children Looked After,5105688368,27.05.2016,In-house Fostering,Boarding Out Allowances,164.52,REDACTED PERSONAL DATA
Revenue,Childrens Services,Children's & Education Services,Children Looked After,5105685318,06.05.2016,In-house Fostering,Boarding Out Allowances,249.15,REDACTED PERSONAL DATA
Revenue,Childrens Services,Children's & Education Services,Children Looked After,5105685318,06.05.2016,In-house Fostering,Boarding Out Allowances,164.52,REDACTED PERSONAL DATA
Revenue,Childrens Services,Children's & Education Services,Children Looked After,5105686132,13.05.2016,In-house Fostering,Boarding Out Allowances,249.15,REDACTED PERSONAL DATA
Revenue,Childrens Services,Children's & Education Services,Children Looked After,5105686132,13.05.2016,In-house Fostering,Boarding Out Allowances,164.52,REDACTED PERSONAL DATA
Revenue,Place,Housing Services,Homelessness,5105687952,25.05.2016,Leaseholds by LA,Accommodation Costs - Leaseholder Payments,780.00,REDACTED PERSONAL DATA
Revenue,Place,Housing Services,Homelessness,5105687941,25.05.2016,Leaseholds by LA,Accommodation Costs - Leaseholder Payments,700.00,REDACTED PERSONAL DATA
Revenue,Place,Housing Services,Homelessness,5105687941,25.05.2016,Leaseholds by LA,Accommodation Costs - Leaseholder Payments,835.08,REDACTED PERSONAL DATA
Revenue,Place,Housing Services,Homelessness,5105687941,25.05.2016,Leaseholds by LA,Accommodation Costs - Leaseholder Payments,789.01,REDACTED PERSONAL DATA
Revenue,Place,Housing Services,Homelessness,5105687941,25.05.2016,Leaseholds by LA,Accommodation Costs - Leaseholder Payments,649.83,REDACTED PERSONAL DATA
Revenue,Place,Housing Services,Homelessness,5105685092,04.05.2016,"Options,Prevention & Register Team",Computer Maintenance,751.32,ABRITAS LTD
Revenue,Place,Housing Services,Homelessness,5105686018,13.05.2016,"Options,Prevention & Register Team",Computer Maintenance,"22,769.00",ABRITAS LTD
Capital,Adult Services,Capital,Capital,5105686017,13.05.2016,S106 Capital Projects,ICT Hardware & Software - Capital,820.00,ABRITAS LTD
Revenue,Adult Services,Adult Social Care,Physical Support - older people (65+),5105686473,18.05.2016,Physical Support Residential 65+,Charges from Independent Providers,"2,160.54",ACACIA CARE HOME
Revenue,Adult Services,Adult Social Care,Physical Support - older people (65+),5105686607,18.05.2016,Physical Support Residential 65+,Charges from Independent Providers,"2,240.56",ACACIA CARE HOME
Revenue,Adult Services,Adult Social Care,Physical Support - older people (65+),5105686607,18.05.2016,Physical Support Residential 65+,Charges from Independent Providers,"2,240.56",ACACIA CARE HOME
Revenue,Adult Services,Adult Social Care,Physical Support - older people (65+),5105686607,18.05.2016,Physical Support Residential 65+,Charges from Independent Providers,"1,819.72",ACACIA CARE HOME
Revenue,Adult Services,Adult Social Care,Physical Support - older people (65+),5105686607,18.05.2016,Physical Support Residential 65+,Charges from Independent Providers,"1,819.72",ACACIA CARE HOME
Revenue,Adult Services,Adult Social Care,Support - Memory /Cognition-older people (65+),5105686607,18.05.2016,Memory & Cognition Residential 65+,Charges from Independent Providers,"1,905.96",ACACIA CARE HOME
Revenue,Adult Services,Adult Social Care,Support - Memory /Cognition-older people (65+),5105687841,20.05.2016,Memory & Cognition Residential 65+,Charges from Independent Providers,"1,089.12",ACACIA CARE HOME
Revenue,Adult Services,Adult Social Care,Social Support - Support for Carer,5105686072,13.05.2016,Carers Residential,Charges from Independent Providers,"1,361.40",ACACIA CARE HOME
Revenue,Adult Services,Adult Social Care,Social Support - Support for Carer,5105686607,18.05.2016,Carers Residential,Charges from Independent Providers,"1,905.96",ACACIA CARE HOME
Revenue,Adult Services,Adult Social Care,Learning Disab Supp (to be reallocated),5105686003,11.05.2016,31 Carter Avenue,Interview & recruitment expenses,88.00,ACCESS PERSONAL CHECKING SERVICES LTD
Revenue,Adult Services,Adult Social Care,Learning Disab Supp (to be reallocated),5105686003,11.05.2016,31 Carter Avenue,Interview & recruitment expenses,12.00,ACCESS PERSONAL CHECKING SERVICES LTD
Revenue,Adult Services,Adult Social Care,Learning Disab Supp (to be reallocated),5105686003,11.05.2016,Plean Dene,Interview & recruitment expenses,44.00,ACCESS PERSONAL CHECKING SERVICES LTD
Revenue,Adult Services,Adult Social Care,Learning Disab Supp (to be reallocated),5105686003,11.05.2016,Plean Dene,Interview & recruitment expenses,6.00,ACCESS PERSONAL CHECKING SERVICES LTD
Revenue,Adult Services,Adult Social Care,Social Care Activities,5105686003,11.05.2016,Hospital Team,Interview & recruitment expenses,6.00,ACCESS PERSONAL CHECKING SERVICES LTD
Revenue,Adult Services,Adult Social Care,Social Care Activities,5105686003,11.05.2016,Hospital Team,Interview & recruitment expenses,44.00,ACCESS PERSONAL CHECKING SERVICES LTD
Revenue,Adult Services,Adult Social Care,Central Codes (to be reallocated),5105686003,11.05.2016,Community Outreach,Interview & recruitment expenses,220.00,ACCESS PERSONAL CHECKING SERVICES LTD
Revenue,Adult Services,Adult Social Care,Central Codes (to be reallocated),5105686003,11.05.2016,Community Outreach,Interview & recruitment expenses,30.00,ACCESS PERSONAL CHECKING SERVICES LTD
Revenue,Place,Cultural and Related Services,Recreation and Sport,5105686003,11.05.2016,Commercial Sales Team,Interview & recruitment expenses,12.00,ACCESS PERSONAL CHECKING SERVICES LTD
Revenue,Place,Cultural and Related Services,Recreation and Sport,5105686003,11.05.2016,Commercial Sales Team,Interview & recruitment expenses,88.00,ACCESS PERSONAL CHECKING SERVICES LTD
Revenue,Public Health,Public Health,Discretionary,5105686003,11.05.2016,Local Area Coordinators - Gen Prevention,Interview & recruitment expenses,18.00,ACCESS PERSONAL CHECKING SERVICES LTD
Revenue,Public Health,Public Health,Discretionary,5105686003,11.05.2016,Local Area Coordinators - Gen Prevention,Interview & recruitment expenses,132.00,ACCESS PERSONAL CHECKING SERVICES LTD
Revenue,Childrens Services,Children's & Education Services,Safeguarding Children/Young Peoples Svs,5105686003,11.05.2016,LSCB (Local Safeguarding Childrens Board),Interview & recruitment expenses,6.00,ACCESS PERSONAL CHECKING SERVICES LTD
Revenue,Childrens Services,Children's & Education Services,Other Education and Community Budget,5105686003,11.05.2016,Education Welfare Service,Interview & recruitment expenses,44.00,ACCESS PERSONAL CHECKING SERVICES LTD
Revenue,Childrens Services,Children's & Education Services,Other Education and Community Budget,5105686003,11.05.2016,Education Welfare Service,Interview & recruitment expenses,24.00,ACCESS PERSONAL CHECKING SERVICES LTD
Revenue,Childrens Services,Children's & Education Services,Youth Justice,5105686003,11.05.2016,Youth Offending Team,Interview & recruitment expenses,12.00,ACCESS PERSONAL CHECKING SERVICES LTD
Revenue,Childrens Services,Children's & Education Services,Safeguarding Children/Young Peoples Svs,5105686003,11.05.2016,Children In Need 1,Interview & recruitment expenses,6.00,ACCESS PERSONAL CHECKING SERVICES LTD
Revenue,Childrens Services,Children's & Education Services,Safeguarding Children/Young Peoples Svs,5105686003,11.05.2016,Children In Need 1,Interview & recruitment expenses,44.00,ACCESS PERSONAL CHECKING SERVICES LTD
Revenue,Childrens Services,Children's & Education Services,Family Support Services,5105686003,11.05.2016,Direct Payments (Children & Families),Interview & recruitment expenses,44.00,ACCESS PERSONAL CHECKING SERVICES LTD
Revenue,Childrens Services,Children's & Education Services,Family Support Services,5105686003,11.05.2016,Direct Payments (Children & Families),Interview & recruitment expenses,6.00,ACCESS PERSONAL CHECKING SERVICES LTD
Revenue,Childrens Services,Children's & Education Services,Safeguarding Children/Young Peoples Svs,5105686003,11.05.2016,Referral & Assessment,Interview & recruitment expenses,6.00,ACCESS PERSONAL CHECKING SERVICES LTD
Revenue,Childrens Services,Children's & Education Services,Safeguarding Children/Young Peoples Svs,5105686003,11.05.2016,Referral & Assessment,Interview & recruitment expenses,44.00,ACCESS PERSONAL CHECKING SERVICES LTD
Revenue,Childrens Services,Children's & Education Services,Children Looked After,5105686003,11.05.2016,In-house Fostering,Interview & recruitment expenses,54.00,ACCESS PERSONAL CHECKING SERVICES LTD
Revenue,Childrens Services,Children's & Education Services,Children Looked After,5105686003,11.05.2016,In-house Fostering,Interview & recruitment expenses,396.00,ACCESS PERSONAL CHECKING SERVICES LTD
Revenue,Childrens Services,Children's & Education Services,Safeguarding Children/Young Peoples Svs,5105686003,11.05.2016,Safeguarding Support,Interview & recruitment expenses,26.00,ACCESS PERSONAL CHECKING SERVICES LTD
Revenue,Childrens Services,Children's & Education Services,Safeguarding Children/Young Peoples Svs,5105686003,11.05.2016,Safeguarding Support,Interview & recruitment expenses,6.00,ACCESS PERSONAL CHECKING SERVICES LTD
Revenue,Childrens Services,Children's & Education Services,Children Looked After,5105686003,11.05.2016,Beaulieu House,Interview & recruitment expenses,12.00,ACCESS PERSONAL CHECKING SERVICES LTD
Revenue,Childrens Services,Children's & Education Services,Children Looked After,5105686003,11.05.2016,Beaulieu House,Interview & recruitment expenses,88.00,ACCESS PERSONAL CHECKING SERVICES LTD
Revenue,Childrens Services,Children's & Education Services,Safeguarding Children/Young Peoples Svs,5105686003,11.05.2016,Service Management (Children & Families),Interview & recruitment expenses,6.00,ACCESS PERSONAL CHECKING SERVICES LTD
Revenue,Childrens Services,Children's & Education Services,Safeguarding Children/Young Peoples Svs,5105686003,11.05.2016,Service Management (Children & Families),Interview & recruitment expenses,44.00,ACCESS PERSONAL CHECKING SERVICES LTD
Revenue,Childrens Services,Children's & Education Services,Other Education and Community Budget,5105686003,11.05.2016,Education & Participation,Interview & recruitment expenses,44.00,ACCESS PERSONAL CHECKING SERVICES LTD
Revenue,Childrens Services,Children's & Education Services,Other Education and Community Budget,5105686003,11.05.2016,Education & Participation,Interview & recruitment expenses,6.00,ACCESS PERSONAL CHECKING SERVICES LTD
Revenue,Place,Environmental & Regulatory Services,Regulatory Services,5105687273,18.05.2016,Licensing Services,Professional Services,440.00,ACCESS PERSONAL CHECKING SERVICES LTD
Revenue,Place,Environmental & Regulatory Services,Regulatory Services,5105687273,18.05.2016,Licensing Services,Professional Services,60.00,ACCESS PERSONAL CHECKING SERVICES LTD
Revenue,Place,Fire & Rescue Services,Fire fighting and Rescue Operations,5105687467,18.05.2016,Fire Technical Support,Vehicle Maintenance Costs,36.00,ACCLAIM LOGISTICS LTD
Revenue,Adult Services,Adult Social Care,Assistive Equipment & Technology,5105685822,11.05.2016,S75 Integrated Community Equipment Store,Operational Equipment,"1,812.00",ACCORA  LIMITED
Revenue,Adult Services,Adult Social Care,Assistive Equipment & Technology,5105688547,27.05.2016,S75 Integrated Community Equipment Store,Maintenance of Operational Equipment,38.00,ACCORA  LIMITED
Revenue,Resources,Central Services,Support Services,5105686447,13.05.2016,Litigation Costs,Legal Fees - Other Parties,480.00,"COLLEGE CHAMBERS, BARRISTERS"
Revenue,Place,Fire & Rescue Services,Fire fighting and Rescue Operations,5105685844,11.05.2016,Fire Technical Support,Vehicle Maintenance Costs,77.63,ADAMS MOREY LTD
Revenue,Place,Fire & Rescue Services,Fire fighting and Rescue Operations,5105685844,11.05.2016,Fire Technical Support,Vehicle Maintenance Costs,10.00,ADAMS MOREY LTD
Revenue,Place,Fire & Rescue Services,Fire fighting and Rescue Operations,5105685844,11.05.2016,Fire Technical Support,Vehicle Maintenance Costs,185.00,ADAMS MOREY LTD
Revenue,Place,Fire & Rescue Services,Fire fighting and Rescue Operations,5105685679,11.05.2016,Fire Technical Support,Vehicle Maintenance Costs,388.96,ADAMS MOREY LTD
Revenue,Place,Fire & Rescue Services,Fire fighting and Rescue Operations,5105685593,06.05.2016,Fire Technical Support,Vehicle Maintenance Costs,40.00,ADAMS MOREY LTD
Revenue,Place,Fire & Rescue Services,Fire fighting and Rescue Operations,5105685486,06.05.2016,Fire Technical Support,Vehicle Maintenance Costs,14.50,ADAMS MOREY LTD
Revenue,Place,Fire & Rescue Services,Fire fighting and Rescue Operations,5105685674,11.05.2016,Fire Technical Support,Vehicle Maintenance Costs,6.44,ADAMS MOREY LTD
Revenue,Place,Fire & Rescue Services,Fire fighting and Rescue Operations,5105685674,11.05.2016,Fire Technical Support,Vehicle Maintenance Costs,4.90,ADAMS MOREY LTD
Revenue,Place,Fire & Rescue Services,Fire fighting and Rescue Operations,5105685674,11.05.2016,Fire Technical Support,Vehicle Maintenance Costs,3.73,ADAMS MOREY LTD
Revenue,Place,Fire & Rescue Services,Fire fighting and Rescue Operations,5105685674,11.05.2016,Fire Technical Support,Vehicle Maintenance Costs,7.88,ADAMS MOREY LTD
Revenue,Place,Fire & Rescue Services,Fire fighting and Rescue Operations,5105687863,20.05.2016,Fire Technical Support,Vehicle Maintenance Costs,7.88,ADAMS MOREY LTD
Revenue,Place,Fire & Rescue Services,Fire fighting and Rescue Operations,5105687863,20.05.2016,Fire Technical Support,Vehicle Maintenance Costs,27.39,ADAMS MOREY LTD
Revenue,Place,Fire & Rescue Services,Fire fighting and Rescue Operations,5105687863,20.05.2016,Fire Technical Support,Vehicle Maintenance Costs,40.52,ADAMS MOREY LTD
Revenue,Place,Fire & Rescue Services,Fire fighting and Rescue Operations,5105688051,25.05.2016,Fire Technical Support,Vehicle Maintenance Costs,149.43,ADAMS MOREY LTD
Revenue,Place,Fire & Rescue Services,Fire fighting and Rescue Operations,5105688164,25.05.2016,Fire Technical Support,Vehicle Maintenance Costs,532.48,ADAMS MOREY LTD
Revenue,Place,Fire & Rescue Services,Fire fighting and Rescue Operations,5105687788,20.05.2016,Fire Technical Support,Vehicle Maintenance Costs,14.50,ADAMS MOREY LTD
Revenue,Place,Fire & Rescue Services,Fire fighting and Rescue Operations,5105688037,25.05.2016,Fire Technical Support,Vehicle Maintenance Costs,40.00,ADAMS MOREY LTD
Revenue,Place,Fire & Rescue Services,Fire fighting and Rescue Operations,5105688512,27.05.2016,Fire Technical Support,Vehicle Maintenance Costs,14.50,ADAMS MOREY LTD
Revenue,Childrens Services,Children's & Education Services,Special Schools & Alternative Provision,5105687831,20.05.2016,Island Learning Centre,Agency staff,"1,840.00",A-DAY CONSULTANTS LTD
Revenue,Childrens Services,Children's & Education Services,Special Schools & Alternative Provision,5105688551,27.05.2016,Island Learning Centre,Agency staff,580.00,A-DAY CONSULTANTS LTD
Revenue,Childrens Services,Children's & Education Services,Special Schools & Alternative Provision,5105688655,27.05.2016,Island Learning Centre,Agency staff,"2,310.00",A-DAY CONSULTANTS LTD
Revenue,Childrens Services,Children's & Education Services,Special Schools & Alternative Provision,5105687490,18.05.2016,Island Learning Centre,Agency staff,103.73,A-DAY CONSULTANTS LTD
Revenue,Place,Cultural and Related Services,Recreation and Sport,5105687876,20.05.2016,Commercial Sales Team,Printing Costs,"2,333.00",ADGIFTDISCOUNTS LTD
Revenue,Childrens Services,Children's & Education Services,Safeguarding Children/Young Peoples Svs,5105685766,11.05.2016,Fostering Team,Professional Services,175.00,ADGIFTDISCOUNTS LTD
Revenue,Adult Services,Adult Social Care,Physical Support - older people (65+),5105686496,18.05.2016,Physical Support Residential 65+,Charges from Independent Providers,"1,812.44",ADIEMUS CARE LTD
Revenue,Place,Central Services,Support Services,5105688765,31.05.2016,"County Hall,Newport",Security of Buildings,70.00,ADT FIRE AND SECURITY PLC
Revenue,Place,Central Services,Support Services,5105688764,31.05.2016,"County Hall,Newport",Security of Buildings,246.00,ADT FIRE AND SECURITY PLC
Revenue,Place,Central Services,Support Services,5105686287,13.05.2016,"County Hall,Newport",Security of Buildings,395.00,ADT FIRE AND SECURITY PLC
Revenue,Place,Central Services,Support Services,5105688712,31.05.2016,"County Hall,Newport",Property Services - Day to day Maintenance,94.00,ADT FIRE AND SECURITY PLC
Revenue,Place,Housing Services,Private Sector Housing Renewal,5105687779,20.05.2016,Renewal & Enforcement,Payments to Voluntary and Other Associations,"6,665.00",AGE CONCERN T/A AGE UK
Revenue,Place,Housing Services,Private Sector Housing Renewal,5105687778,20.05.2016,Renewal & Enforcement,Payments to Voluntary and Other Associations,"-6,665.00",AGE CONCERN T/A AGE UK
Revenue,Place,Housing Services,Private Sector Housing Renewal,5105687776,20.05.2016,Renewal & Enforcement,Payments to Voluntary and Other Associations,"6,665.00",AGE CONCERN T/A AGE UK
Revenue,Adult Services,Adult Social Care,Commissioning & Service Delivery,5105688175,25.05.2016,Integrated Single Point of Access,Payments to Voluntary and Other Associations,"5,194.00",AGE CONCERN T/A AGE UK
Revenue,Adult Services,Adult Social Care,Commissioning & Service Delivery,5105687783,20.05.2016,Integrated Locality Teams,Payments to Voluntary and Other Associations,"23,634.00",AGE CONCERN T/A AGE UK
Revenue,Adult Services,Adult Social Care,Commissioning & Service Delivery,5105687781,20.05.2016,Integrated Locality Teams,Payments to Voluntary and Other Associations,"23,634.00",AGE CONCERN T/A AGE UK
Revenue,Adult Services,Adult Social Care,Commissioning & Service Delivery,5105687782,20.05.2016,Integrated Locality Teams,Payments to Voluntary and Other Associations,"23,634.00",AGE CONCERN T/A AGE UK
Capital,Place,Capital,Capital,5105688696,31.05.2016,Other Highways maintenance,Payment to Contractors - Capital,"30,467.80",AGGREGATE INDUSTRIES UK LTD
Revenue,Adult Services,Adult Social Care,Commissioning & Service Delivery,5105688218,25.05.2016,Learning Disability Homes Management & Admin,Publications,59.94,AGORA BUSINESS PUBLICATIONS LLP
Revenue,Place,Central Services,Support Services,5105685980,13.05.2016,"Seaclose Offices, Newport",Property Services - Planned Maintenance,135.00,AIRTEK SERVICES IOW LTD
Revenue,Adult Services,Adult Social Care,Central Codes (to be reallocated),5105687718,20.05.2016,Gouldings Resource Centre,Property Services - Day to day Maintenance,70.00,AIRTEK SERVICES IOW LTD
Revenue,Place,Cultural and Related Services,Library Service,5105685511,11.05.2016,Newport Library,Property Services - Day to day Maintenance,55.00,AIRTEK SERVICES IOW LTD
Revenue,Place,Fire & Rescue Services,Fire fighting and Rescue Operations,5105686309,13.05.2016,Fire Technical Support,Vehicle Maintenance Costs,45.90,ALBANY FARM & G MACHINERY LTD
Revenue,Public Health,Public Health,Mandatory,5105682533,11.05.2016,NHS Health Check Programme,Payment to Private Contractors,"1,084.50",ALBERT STREET PRACTICE
Revenue,Public Health,Public Health,Mandatory,5105685785,11.05.2016,NHS Health Check Programme,Payment to Private Contractors,-291.00,ALBERT STREET PRACTICE
Revenue,Childrens Services,Children's & Education Services,Safeguarding Children/Young Peoples Svs,5105688640,27.05.2016,Court Work & Consultancy Services,Professional Services,163.25,ALERE TOXICOLOGY PLC
Revenue,Childrens Services,Children's & Education Services,Safeguarding Children/Young Peoples Svs,5105688642,27.05.2016,Court Work & Consultancy Services,Professional Services,177.25,ALERE TOXICOLOGY PLC
Revenue,Childrens Services,Children's & Education Services,Other Education and Community Budget,5105686258,13.05.2016,Special Educational Needs Reforms Grant,Consultants Fees,"2,279.00",REDACTED PERSONAL DATA
Revenue,Place,Fire & Rescue Services,Fire fighting and Rescue Operations,5105688125,25.05.2016,Fire Technical Support,Maintenance of Operational Equipment,5.40,ALLBATTERIES UK LTD
Revenue,Place,Fire & Rescue Services,Fire fighting and Rescue Operations,5105688125,25.05.2016,Fire Technical Support,Stock Purchases,12.00,ALLBATTERIES UK LTD
Revenue,Place,Fire & Rescue Services,Fire fighting and Rescue Operations,5105688125,25.05.2016,Fire Technical Support,Stock Purchases,51.00,ALLBATTERIES UK LTD
Revenue,Place,Fire & Rescue Services,Fire fighting and Rescue Operations,5105688125,25.05.2016,Fire Technical Support,Stock Purchases,22.80,ALLBATTERIES UK LTD
Revenue,Place,Fire & Rescue Services,Fire fighting and Rescue Operations,5105688127,25.05.2016,Fire Technical Support,General Materials,51.00,ALLBATTERIES UK LTD
Revenue,Place,Fire & Rescue Services,Fire fighting and Rescue Operations,5105688127,25.05.2016,Fire Technical Support,General Materials,12.00,ALLBATTERIES UK LTD
Revenue,Place,Highways and Transport Services,Public Transport,5105686244,13.05.2016,Transport Fleet Administration,Vehicle Fuel Costs,"7,085.52",ALLSTAR BUSINESS SOLUTIONS LTD
Revenue,Place,Highways and Transport Services,"Airports, Harbours & Toll Facilities",5105688585,27.05.2016,Newport Harbour Account,Electricity,983.98,ALNMARITEC LTD
Revenue,Childrens Services,Children's & Education Services,Special Schools & Alternative Provision,5105688759,31.05.2016,Island Learning Centre,Taxis - Contract Hire,13.80,ALPHA (IOW) LTD
Revenue,Childrens Services,Children's & Education Services,Special Schools & Alternative Provision,5105686346,13.05.2016,Island Learning Centre,Taxis - Contract Hire,63.75,ALPHA (IOW) LTD
Revenue,Childrens Services,Children's & Education Services,Special Schools & Alternative Provision,5105686346,13.05.2016,Island Learning Centre,Taxis - Contract Hire,21.90,ALPHA (IOW) LTD
Revenue,Childrens Services,Children's & Education Services,Management & Support Services,5105687714,20.05.2016,"Speech, Language and Communication",Transport of Clients,336.00,ALPHA (IOW) LTD
Revenue,Childrens Services,Children's & Education Services,Management & Support Services,5105687714,20.05.2016,"Speech, Language and Communication",Transport of Clients,108.24,ALPHA (IOW) LTD
Revenue,Childrens Services,Children's & Education Services,Management & Support Services,5105687714,20.05.2016,"Speech, Language and Communication",Transport of Clients,130.00,ALPHA (IOW) LTD
Revenue,Childrens Services,Children's & Education Services,Management & Support Services,5105685816,11.05.2016,"Speech, Language and Communication",Transport of Clients,420.00,ALPHA (IOW) LTD
Revenue,Childrens Services,Children's & Education Services,Management & Support Services,5105685816,11.05.2016,"Speech, Language and Communication",Transport of Clients,135.30,ALPHA (IOW) LTD
Revenue,Childrens Services,Children's & Education Services,Management & Support Services,5105685500,11.05.2016,"Speech, Language and Communication",Transport of Clients,135.30,ALPHA (IOW) LTD
Revenue,Childrens Services,Children's & Education Services,Management & Support Services,5105685809,11.05.2016,"Speech, Language and Communication",Transport of Clients,135.30,ALPHA (IOW) LTD
Revenue,Childrens Services,Children's & Education Services,Management & Support Services,5105685809,11.05.2016,"Speech, Language and Communication",Transport of Clients,100.00,ALPHA (IOW) LTD
Revenue,Childrens Services,Children's & Education Services,Management & Support Services,5105685500,11.05.2016,"Speech, Language and Communication",Transport of Clients,100.00,ALPHA (IOW) LTD
Revenue,Childrens Services,Children's & Education Services,Management & Support Services,5105685816,11.05.2016,"Speech, Language and Communication",Transport of Clients,100.00,ALPHA (IOW) LTD
Revenue,Childrens Services,Children's & Education Services,Management & Support Services,5105685500,11.05.2016,"Speech, Language and Communication",Transport of Clients,420.00,ALPHA (IOW) LTD
Revenue,Childrens Services,Children's & Education Services,Management & Support Services,5105685809,11.05.2016,"Speech, Language and Communication",Transport of Clients,420.00,ALPHA (IOW) LTD
Revenue,Childrens Services,Children's & Education Services,Management & Support Services,5105687714,20.05.2016,Special Educational Needs Transport,Taxis - Contract Hire,92.00,ALPHA (IOW) LTD
Revenue,Childrens Services,Children's & Education Services,Management & Support Services,5105685500,11.05.2016,Special Educational Needs Transport,Taxis - Contract Hire,92.00,ALPHA (IOW) LTD
Revenue,Childrens Services,Children's & Education Services,Management & Support Services,5105685816,11.05.2016,Special Educational Needs Transport,Taxis - Contract Hire,115.00,ALPHA (IOW) LTD
Revenue,Childrens Services,Children's & Education Services,Management & Support Services,5105687714,20.05.2016,Special Educational Needs Transport,Taxis - Contract Hire,248.00,ALPHA (IOW) LTD
Revenue,Childrens Services,Children's & Education Services,Management & Support Services,5105687714,20.05.2016,Special Educational Needs Transport,Taxis - Contract Hire,80.80,ALPHA (IOW) LTD
Revenue,Childrens Services,Children's & Education Services,Management & Support Services,5105687714,20.05.2016,Special Educational Needs Transport,Taxis - Contract Hire,65.00,ALPHA (IOW) LTD
Revenue,Childrens Services,Children's & Education Services,Management & Support Services,5105685809,11.05.2016,Special Educational Needs Transport,Taxis - Contract Hire,307.85,ALPHA (IOW) LTD
Revenue,Childrens Services,Children's & Education Services,Management & Support Services,5105685816,11.05.2016,Special Educational Needs Transport,Taxis - Contract Hire,307.85,ALPHA (IOW) LTD
Revenue,Childrens Services,Children's & Education Services,Management & Support Services,5105685500,11.05.2016,Special Educational Needs Transport,Taxis - Contract Hire,246.28,ALPHA (IOW) LTD
Revenue,Childrens Services,Children's & Education Services,Management & Support Services,5105685500,11.05.2016,Special Educational Needs Transport,Taxis - Contract Hire,461.75,ALPHA (IOW) LTD
Revenue,Childrens Services,Children's & Education Services,Management & Support Services,5105685809,11.05.2016,Special Educational Needs Transport,Taxis - Contract Hire,461.75,ALPHA (IOW) LTD
Revenue,Childrens Services,Children's & Education Services,Management & Support Services,5105685816,11.05.2016,Special Educational Needs Transport,Taxis - Contract Hire,461.75,ALPHA (IOW) LTD
Revenue,Childrens Services,Children's & Education Services,Management & Support Services,5105685809,11.05.2016,Special Educational Needs Transport,Taxis - Contract Hire,100.00,ALPHA (IOW) LTD
Revenue,Childrens Services,Children's & Education Services,Management & Support Services,5105685816,11.05.2016,Special Educational Needs Transport,Taxis - Contract Hire,100.00,ALPHA (IOW) LTD
Revenue,Childrens Services,Children's & Education Services,Management & Support Services,5105685816,11.05.2016,Special Educational Needs Transport,Taxis - Contract Hire,200.00,ALPHA (IOW) LTD
Revenue,Childrens Services,Children's & Education Services,Management & Support Services,5105685500,11.05.2016,Special Educational Needs Transport,Taxis - Contract Hire,200.00,ALPHA (IOW) LTD
Revenue,Childrens Services,Children's & Education Services,Management & Support Services,5105685500,11.05.2016,Special Educational Needs Transport,Taxis - Contract Hire,80.00,ALPHA (IOW) LTD
Revenue,Childrens Services,Children's & Education Services,Management & Support Services,5105685816,11.05.2016,Special Educational Needs Transport,Taxis - Contract Hire,195.00,ALPHA (IOW) LTD
Revenue,Childrens Services,Children's & Education Services,Management & Support Services,5105685809,11.05.2016,Special Educational Needs Transport,Taxis - Contract Hire,130.00,ALPHA (IOW) LTD
Revenue,Childrens Services,Children's & Education Services,Management & Support Services,5105685809,11.05.2016,Special Educational Needs Transport,Taxis - Contract Hire,200.00,ALPHA (IOW) LTD
Revenue,Childrens Services,Children's & Education Services,Management & Support Services,5105685809,11.05.2016,Special Educational Needs Transport,Taxis - Contract Hire,310.00,ALPHA (IOW) LTD
Revenue,Childrens Services,Children's & Education Services,Management & Support Services,5105685816,11.05.2016,Special Educational Needs Transport,Taxis - Contract Hire,310.00,ALPHA (IOW) LTD
Revenue,Childrens Services,Children's & Education Services,Management & Support Services,5105685809,11.05.2016,Special Educational Needs Transport,Taxis - Contract Hire,342.80,ALPHA (IOW) LTD
Revenue,Childrens Services,Children's & Education Services,Management & Support Services,5105685500,11.05.2016,Special Educational Needs Transport,Taxis - Contract Hire,310.00,ALPHA (IOW) LTD
Revenue,Childrens Services,Children's & Education Services,Management & Support Services,5105687714,20.05.2016,Special Educational Needs Transport,Taxis - Contract Hire,160.00,ALPHA (IOW) LTD
Revenue,Childrens Services,Children's & Education Services,Management & Support Services,5105687714,20.05.2016,Special Educational Needs Transport,Taxis - Contract Hire,354.24,ALPHA (IOW) LTD
Revenue,Childrens Services,Children's & Education Services,Management & Support Services,5105687714,20.05.2016,Special Educational Needs Transport,Taxis - Contract Hire,360.00,ALPHA (IOW) LTD
Revenue,Childrens Services,Children's & Education Services,Management & Support Services,5105687714,20.05.2016,Special Educational Needs Transport,Taxis - Contract Hire,360.00,ALPHA (IOW) LTD
Revenue,Childrens Services,Children's & Education Services,Management & Support Services,5105687714,20.05.2016,Special Educational Needs Transport,Taxis - Contract Hire,320.68,ALPHA (IOW) LTD
Revenue,Childrens Services,Children's & Education Services,Management & Support Services,5105687714,20.05.2016,Special Educational Needs Transport,Taxis - Contract Hire,272.00,ALPHA (IOW) LTD
Revenue,Childrens Services,Children's & Education Services,Management & Support Services,5105687714,20.05.2016,Special Educational Needs Transport,Taxis - Contract Hire,246.28,ALPHA (IOW) LTD
Revenue,Childrens Services,Children's & Education Services,Management & Support Services,5105687714,20.05.2016,Special Educational Needs Transport,Taxis - Contract Hire,369.40,ALPHA (IOW) LTD
Revenue,Childrens Services,Children's & Education Services,Management & Support Services,5105687714,20.05.2016,Special Educational Needs Transport,Taxis - Contract Hire,80.00,ALPHA (IOW) LTD
Revenue,Childrens Services,Children's & Education Services,Management & Support Services,5105687714,20.05.2016,Special Educational Needs Transport,Taxis - Contract Hire,108.24,ALPHA (IOW) LTD
Revenue,Childrens Services,Children's & Education Services,Management & Support Services,5105685500,11.05.2016,Special Educational Needs Transport,Taxis - Contract Hire,101.00,ALPHA (IOW) LTD
Revenue,Childrens Services,Children's & Education Services,Management & Support Services,5105685500,11.05.2016,Special Educational Needs Transport,Taxis - Contract Hire,450.00,ALPHA (IOW) LTD
Revenue,Childrens Services,Children's & Education Services,Management & Support Services,5105685816,11.05.2016,Special Educational Needs Transport,Taxis - Contract Hire,450.00,ALPHA (IOW) LTD
Revenue,Childrens Services,Children's & Education Services,Management & Support Services,5105685816,11.05.2016,Special Educational Needs Transport,Taxis - Contract Hire,450.00,ALPHA (IOW) LTD
Revenue,Childrens Services,Children's & Education Services,Management & Support Services,5105685500,11.05.2016,Special Educational Needs Transport,Taxis - Contract Hire,450.00,ALPHA (IOW) LTD
Revenue,Childrens Services,Children's & Education Services,Management & Support Services,5105685809,11.05.2016,Special Educational Needs Transport,Taxis - Contract Hire,450.00,ALPHA (IOW) LTD
Revenue,Childrens Services,Children's & Education Services,Management & Support Services,5105685809,11.05.2016,Special Educational Needs Transport,Taxis - Contract Hire,400.85,ALPHA (IOW) LTD
Revenue,Childrens Services,Children's & Education Services,Management & Support Services,5105685500,11.05.2016,Special Educational Needs Transport,Taxis - Contract Hire,400.85,ALPHA (IOW) LTD
Revenue,Childrens Services,Children's & Education Services,Management & Support Services,5105685816,11.05.2016,Special Educational Needs Transport,Taxis - Contract Hire,400.85,ALPHA (IOW) LTD
Revenue,Childrens Services,Children's & Education Services,Management & Support Services,5105685816,11.05.2016,Special Educational Needs Transport,Taxis - Contract Hire,340.00,ALPHA (IOW) LTD
Revenue,Childrens Services,Children's & Education Services,Management & Support Services,5105685500,11.05.2016,Special Educational Needs Transport,Taxis - Contract Hire,340.00,ALPHA (IOW) LTD
Revenue,Childrens Services,Children's & Education Services,Management & Support Services,5105685809,11.05.2016,Special Educational Needs Transport,Taxis - Contract Hire,340.00,ALPHA (IOW) LTD
Revenue,Childrens Services,Children's & Education Services,Management & Support Services,5105685809,11.05.2016,Special Educational Needs Transport,Taxis - Contract Hire,101.00,ALPHA (IOW) LTD
Revenue,Childrens Services,Children's & Education Services,Management & Support Services,5105685816,11.05.2016,Special Educational Needs Transport,Taxis - Contract Hire,101.00,ALPHA (IOW) LTD
Revenue,Childrens Services,Children's & Education Services,Management & Support Services,5105685500,11.05.2016,Special Educational Needs Transport,Taxis - Contract Hire,282.80,ALPHA (IOW) LTD
Revenue,Childrens Services,Children's & Education Services,Management & Support Services,5105685816,11.05.2016,Special Educational Needs Transport,Taxis - Contract Hire,282.80,ALPHA (IOW) LTD
Revenue,Childrens Services,Children's & Education Services,Management & Support Services,5105685809,11.05.2016,Special Educational Needs Transport,Taxis - Contract Hire,450.00,ALPHA (IOW) LTD
Revenue,Childrens Services,Children's & Education Services,Management & Support Services,5105685500,11.05.2016,Special Educational Needs Transport,Taxis - Contract Hire,195.00,ALPHA (IOW) LTD
Revenue,Childrens Services,Children's & Education Services,Management & Support Services,5105685809,11.05.2016,Special Educational Needs Transport,Taxis - Contract Hire,135.30,ALPHA (IOW) LTD
Revenue,Childrens Services,Children's & Education Services,Management & Support Services,5105685500,11.05.2016,Special Educational Needs Transport,Taxis - Contract Hire,135.30,ALPHA (IOW) LTD
Revenue,Childrens Services,Children's & Education Services,Management & Support Services,5105685816,11.05.2016,Special Educational Needs Transport,Taxis - Contract Hire,135.30,ALPHA (IOW) LTD
Revenue,Childrens Services,Children's & Education Services,Management & Support Services,5105685809,11.05.2016,Special Educational Needs Transport,Taxis - Contract Hire,115.00,ALPHA (IOW) LTD
Revenue,Childrens Services,Children's & Education Services,Other Education and Community Budget,5105685809,11.05.2016,Home to School Transport,Taxis - Contract Hire,432.55,ALPHA (IOW) LTD
Revenue,Childrens Services,Children's & Education Services,Other Education and Community Budget,5105685500,11.05.2016,Home to School Transport,Taxis - Contract Hire,346.04,ALPHA (IOW) LTD
Revenue,Childrens Services,Children's & Education Services,Other Education and Community Budget,5105685816,11.05.2016,Home to School Transport,Taxis - Contract Hire,432.55,ALPHA (IOW) LTD
Revenue,Childrens Services,Children's & Education Services,Other Education and Community Budget,5105685500,11.05.2016,Home to School Transport,Taxis - Contract Hire,120.00,ALPHA (IOW) LTD
Revenue,Childrens Services,Children's & Education Services,Other Education and Community Budget,5105685500,11.05.2016,Home to School Transport,Taxis - Contract Hire,350.00,ALPHA (IOW) LTD
Revenue,Childrens Services,Children's & Education Services,Other Education and Community Budget,5105685500,11.05.2016,Home to School Transport,Taxis - Contract Hire,303.00,ALPHA (IOW) LTD
Revenue,Childrens Services,Children's & Education Services,Other Education and Community Budget,5105685809,11.05.2016,Home to School Transport,Taxis - Contract Hire,303.00,ALPHA (IOW) LTD
Revenue,Childrens Services,Children's & Education Services,Other Education and Community Budget,5105685816,11.05.2016,Home to School Transport,Taxis - Contract Hire,350.00,ALPHA (IOW) LTD
Revenue,Childrens Services,Children's & Education Services,Other Education and Community Budget,5105685809,11.05.2016,Home to School Transport,Taxis - Contract Hire,350.00,ALPHA (IOW) LTD
Revenue,Childrens Services,Children's & Education Services,Other Education and Community Budget,5105685809,11.05.2016,Home to School Transport,Taxis - Contract Hire,60.00,ALPHA (IOW) LTD
Revenue,Childrens Services,Children's & Education Services,Other Education and Community Budget,5105685816,11.05.2016,Home to School Transport,Taxis - Contract Hire,60.00,ALPHA (IOW) LTD
Revenue,Childrens Services,Children's & Education Services,Other Education and Community Budget,5105685809,11.05.2016,Home to School Transport,Taxis - Contract Hire,120.00,ALPHA (IOW) LTD
Revenue,Childrens Services,Children's & Education Services,Other Education and Community Budget,5105685500,11.05.2016,Home to School Transport,Taxis - Contract Hire,449.65,ALPHA (IOW) LTD
Revenue,Childrens Services,Children's & Education Services,Other Education and Community Budget,5105685816,11.05.2016,Home to School Transport,Taxis - Contract Hire,449.65,ALPHA (IOW) LTD
Revenue,Childrens Services,Children's & Education Services,Other Education and Community Budget,5105685816,11.05.2016,Home to School Transport,Taxis - Contract Hire,431.15,ALPHA (IOW) LTD
Revenue,Childrens Services,Children's & Education Services,Other Education and Community Budget,5105685500,11.05.2016,Home to School Transport,Taxis - Contract Hire,431.15,ALPHA (IOW) LTD
Revenue,Childrens Services,Children's & Education Services,Other Education and Community Budget,5105685809,11.05.2016,Home to School Transport,Taxis - Contract Hire,431.15,ALPHA (IOW) LTD
Revenue,Childrens Services,Children's & Education Services,Other Education and Community Budget,5105685816,11.05.2016,Home to School Transport,Taxis - Contract Hire,100.00,ALPHA (IOW) LTD
Revenue,Childrens Services,Children's & Education Services,Other Education and Community Budget,5105685500,11.05.2016,Home to School Transport,Taxis - Contract Hire,100.00,ALPHA (IOW) LTD
Revenue,Childrens Services,Children's & Education Services,Other Education and Community Budget,5105685809,11.05.2016,Home to School Transport,Taxis - Contract Hire,100.00,ALPHA (IOW) LTD
Revenue,Childrens Services,Children's & Education Services,Other Education and Community Budget,5105685500,11.05.2016,Home to School Transport,Taxis - Contract Hire,60.00,ALPHA (IOW) LTD
Revenue,Childrens Services,Children's & Education Services,Other Education and Community Budget,5105685816,11.05.2016,Home to School Transport,Taxis - Contract Hire,303.00,ALPHA (IOW) LTD
Revenue,Childrens Services,Children's & Education Services,Other Education and Community Budget,5105685809,11.05.2016,Home to School Transport,Taxis - Contract Hire,449.65,ALPHA (IOW) LTD
Revenue,Childrens Services,Children's & Education Services,Other Education and Community Budget,5105685816,11.05.2016,Home to School Transport,Taxis - Contract Hire,215.00,ALPHA (IOW) LTD
Revenue,Childrens Services,Children's & Education Services,Other Education and Community Budget,5105685500,11.05.2016,Home to School Transport,Taxis - Contract Hire,129.00,ALPHA (IOW) LTD
Revenue,Childrens Services,Children's & Education Services,Other Education and Community Budget,5105685809,11.05.2016,Home to School Transport,Taxis - Contract Hire,215.00,ALPHA (IOW) LTD
Revenue,Childrens Services,Children's & Education Services,Other Education and Community Budget,5105687714,20.05.2016,Home to School Transport,Taxis - Contract Hire,172.00,ALPHA (IOW) LTD
Revenue,Childrens Services,Children's & Education Services,Other Education and Community Budget,5105687714,20.05.2016,Home to School Transport,Taxis - Contract Hire,373.08,ALPHA (IOW) LTD
Revenue,Childrens Services,Children's & Education Services,Other Education and Community Budget,5105687714,20.05.2016,Home to School Transport,Taxis - Contract Hire,346.04,ALPHA (IOW) LTD
Revenue,Childrens Services,Children's & Education Services,Other Education and Community Budget,5105687714,20.05.2016,Home to School Transport,Taxis - Contract Hire,242.40,ALPHA (IOW) LTD
Revenue,Childrens Services,Children's & Education Services,Other Education and Community Budget,5105687714,20.05.2016,Home to School Transport,Taxis - Contract Hire,359.72,ALPHA (IOW) LTD
Revenue,Childrens Services,Children's & Education Services,Other Education and Community Budget,5105687714,20.05.2016,Home to School Transport,Taxis - Contract Hire,344.92,ALPHA (IOW) LTD
Revenue,Childrens Services,Children's & Education Services,Other Education and Community Budget,5105685809,11.05.2016,Home to School Transport,Taxis - Contract Hire,466.35,ALPHA (IOW) LTD
Revenue,Childrens Services,Children's & Education Services,Other Education and Community Budget,5105685816,11.05.2016,Home to School Transport,Taxis - Contract Hire,466.35,ALPHA (IOW) LTD
Revenue,Childrens Services,Children's & Education Services,Other Education and Community Budget,5105685500,11.05.2016,Home to School Transport,Taxis - Contract Hire,466.35,ALPHA (IOW) LTD
Revenue,Childrens Services,Children's & Education Services,Other Education and Community Budget,5105687714,20.05.2016,Home to School Transport,Taxis - Contract Hire,130.00,ALPHA (IOW) LTD
Revenue,Childrens Services,Children's & Education Services,Other Education and Community Budget,5105685816,11.05.2016,Home to School Transport,Taxis - Contract Hire,120.00,ALPHA (IOW) LTD
Revenue,Childrens Services,Children's & Education Services,Other Education and Community Budget,5105687714,20.05.2016,Home to School Transport,Taxis - Contract Hire,96.00,ALPHA (IOW) LTD
Revenue,Childrens Services,Children's & Education Services,Other Education and Community Budget,5105687714,20.05.2016,Home to School Transport,Taxis - Contract Hire,280.00,ALPHA (IOW) LTD
Revenue,Adult Services,Adult Social Care,Learning Disability Suppt-adults (18-64),5105686536,18.05.2016,Learning Disability Residential 18-64,Charges from Independent Providers,"3,836.84",ALPHAGRANGE LTD
Revenue,Childrens Services,Children's & Education Services,Other Education and Community Budget,5105688247,25.05.2016,Home to School Transport,Taxis - Contract Hire,480.00,AMAR CABS OF NEWPORT
Revenue,Childrens Services,Children's & Education Services,Special Schools & Alternative Provision,5105687496,18.05.2016,Island Learning Centre,Schools Catering Contract,136.00,AMAR EXCLUSIVES
Revenue,Childrens Services,Children's & Education Services,Special Schools & Alternative Provision,5105687522,20.05.2016,Island Learning Centre,Schools Catering Contract,120.00,AMAR EXCLUSIVES
Revenue,Childrens Services,Children's & Education Services,Management & Support Services,5105688241,25.05.2016,Pre 16 Independ. & Non-Maint. Special Schls & Independ. Specialist Provision,Transport of Clients,550.00,AMAR EXCLUSIVES
Revenue,Place,Environmental & Regulatory Services,Service Management and Support Services,5105688143,25.05.2016,Waste Contract Management,Consultants Fees,"2,200.77",AMEC ENVIRONMENT AND INFRASTRUCTURE UK LTD
Revenue,Place,Environmental & Regulatory Services,Waste Disposal,5105682595,11.05.2016,Waste Disposal - Amey Contract,Waste Contractors,"2,726,548.09",AMEY (IOW) SPV LIMITED
Revenue,Place,Environmental & Regulatory Services,Waste Disposal,5105685126,11.05.2016,Waste Disposal - Amey Contract,Waste Contractors,"-2,726,548.09",AMEY (IOW) SPV LIMITED
Capital,Place,Capital,Capital,5105688188,25.05.2016,Waste Capital Programme,Payment to Contractors - Capital,"862,369.52",AMEY (IOW) SPV LIMITED
Revenue,Adult Services,Adult Social Care,Physical Support - older people (65+),5105686538,18.05.2016,Physical Support Residential 65+,Charges from Independent Providers,"1,819.72",ANCONA CARE HOME
Revenue,Adult Services,Adult Social Care,Physical Support - older people (65+),5105686538,18.05.2016,Physical Support Residential 65+,Charges from Independent Providers,"1,819.72",ANCONA CARE HOME
Revenue,Adult Services,Adult Social Care,Physical Support - older people (65+),5105686538,18.05.2016,Physical Support Residential 65+,Charges from Independent Providers,"1,905.96",ANCONA CARE HOME
Revenue,Adult Services,Adult Social Care,Physical Support - older people (65+),5105686538,18.05.2016,Physical Support Residential 65+,Charges from Independent Providers,"1,819.72",ANCONA CARE HOME
Revenue,Resources,Central Services,Support Services,5105688009,25.05.2016,Staff Benefits,Payment to Private Contractors,225.00,REDACTED PERSONAL DATA
Revenue,Adult Services,Adult Social Care,Commissioning & Service Delivery,5105685459,06.05.2016,Commissioning Manager for Adult Social Care,Agency staff,"7,939.00",ANNE BUTLER CONSULTING LTD
Revenue,Adult Services,Adult Social Care,Commissioning & Service Delivery,5105688600,27.05.2016,Commissioning Manager for Adult Social Care,Agency staff,"10,168.50",ANNE BUTLER CONSULTING LTD
Revenue,Place,Central Services,Support Services,5105688171,25.05.2016,Print Unit,Printing Costs,121.50,ANTALIS MCNAUGHTON
Revenue,Place,Central Services,Support Services,5105685762,25.05.2016,Print Unit,Printing Costs,182.25,ANTALIS MCNAUGHTON
Revenue,Place,Central Services,Support Services,5105685762,25.05.2016,Print Unit,Printing Costs,84.36,ANTALIS MCNAUGHTON
Revenue,Place,Central Services,Support Services,5105685472,06.05.2016,Print Unit,Printing Costs,247.20,ANTALIS MCNAUGHTON
Revenue,Place,Central Services,Support Services,5105685864,11.05.2016,Print Unit,Printing Costs,31.10,ANTALIS MCNAUGHTON
Revenue,Place,Central Services,Support Services,5105685864,11.05.2016,Print Unit,Printing Costs,90.30,ANTALIS MCNAUGHTON
Revenue,Adult Services,Adult Social Care,Assistive Equipment & Technology,5105685843,11.05.2016,S75 Integrated Community Equipment Store,Operational Equipment,75.00,APOLLO HEALTHCARE TECHNOLOGIES
Revenue,Adult Services,Adult Social Care,Assistive Equipment & Technology,5105685843,11.05.2016,S75 Integrated Community Equipment Store,Operational Equipment,"2,475.00",APOLLO HEALTHCARE TECHNOLOGIES
Revenue,Place,Cultural and Related Services,Recreation and Sport,5105687171,18.05.2016,The Heights,Operational Equipment,71.06,ARCO LTD
Revenue,Place,Cultural and Related Services,Recreation and Sport,5105685132,04.05.2016,The Heights,Clothing & Laundry,46.84,ARCO LTD
Revenue,Place,Cultural and Related Services,Recreation and Sport,5105685128,11.05.2016,The Heights,Clothing & Laundry,16.58,ARCO LTD
Revenue,Place,Cultural and Related Services,Recreation and Sport,5105687171,18.05.2016,Medina Leisure Centre,Operational Equipment,71.06,ARCO LTD
Revenue,Childrens Services,Children's & Education Services,Special Schools & Alternative Provision,5105688686,27.05.2016,Island Learning Centre,Client Expenses,29.82,ARCO LTD
Revenue,Place,Highways and Transport Services,"Airports, Harbours & Toll Facilities",5105687305,18.05.2016,Ferry Operation,Clothing & Laundry,15.64,ARCO LTD
Revenue,Place,Highways and Transport Services,"Airports, Harbours & Toll Facilities",5105688731,31.05.2016,Ferry Operation,Clothing & Laundry,27.52,ARCO LTD
Revenue,Place,Environmental & Regulatory Services,Service Management and Support Services,5105687263,18.05.2016,Environment officers,Clothing & Laundry,-6.55,ARCO LTD
Revenue,Place,Fire & Rescue Services,Fire fighting and Rescue Operations,5105685182,04.05.2016,Fire Technical Support,Stock Purchases,44.92,ARCO LTD
Revenue,Place,Fire & Rescue Services,Fire fighting and Rescue Operations,5105685182,04.05.2016,Fire Technical Support,Stock Purchases,112.45,ARCO LTD
Revenue,Place,Fire & Rescue Services,Fire fighting and Rescue Operations,5105685182,04.05.2016,Fire Technical Support,Stock Purchases,29.92,ARCO LTD
Revenue,Adult Services,Adult Social Care,Assistive Equipment & Technology,5105686276,13.05.2016,S75 Integrated Community Equipment Store,Maintenance of Operational Equipment,119.98,ARJO MED AB LTD
Revenue,Adult Services,Adult Social Care,Learning Disab Supp (to be reallocated),5105687777,25.05.2016,Plean Dene,Maintenance of Operational Equipment,296.00,ARJO MED AB LTD
Revenue,Adult Services,Adult Social Care,Learning Disab Supp (to be reallocated),5105685813,20.05.2016,Highmead,Maintenance of Operational Equipment,298.00,ARJO MED AB LTD
Revenue,Adult Services,Adult Social Care,Central Codes (to be reallocated),5105685818,18.05.2016,Adelaide Resource Centre,Property Services - Day to day Maintenance,72.00,ARJO MED AB LTD
Revenue,Adult Services,Adult Social Care,Central Codes (to be reallocated),5105685967,25.05.2016,Adelaide Resource Centre,Property Services - Day to day Maintenance,"1,066.70",ARJO MED AB LTD
Revenue,Adult Services,Adult Social Care,Central Codes (to be reallocated),5105684562,20.05.2016,Gouldings Resource Centre,Property Services - Day to day Maintenance,517.80,ARJO MED AB LTD
Revenue,Adult Services,Adult Social Care,Central Codes (to be reallocated),5105684560,04.05.2016,Gouldings Resource Centre,Property Services - Day to day Maintenance,432.40,ARJO MED AB LTD
Revenue,Childrens Services,Children's & Education Services,Special Schools & Alternative Provision,5105685623,11.05.2016,Island Learning Centre,Bought in Prof Services - Other (Schools),"9,049.08",ARK SCHOOLS T/A CHILDCARE LIMITED
Revenue,Childrens Services,Children's & Education Services,Special Schools & Alternative Provision,5105685623,11.05.2016,Island Learning Centre,Bought in Prof Services - Other (Schools),416.67,ARK SCHOOLS T/A CHILDCARE LIMITED
Revenue,Childrens Services,Children's & Education Services,Special Schools & Alternative Provision,5105685623,11.05.2016,Island Learning Centre,Bought in Prof Services - Other (Schools),10.42,ARK SCHOOLS T/A CHILDCARE LIMITED
Revenue,Resources,Central Services,Central Services to the Public,5105688566,27.05.2016,Elections,Rent of Buildings and Rooms,150.00,ARRETON COMMUNITY HALL FUND
Revenue,Place,Cultural and Related Services,Recreation and Sport,5105687784,25.05.2016,The Heights,Stock Purchases,189.81,KELLOGGS ASA AWARDS SCHEME
Revenue,Place,Cultural and Related Services,Recreation and Sport,5105684933,06.05.2016,The Heights,Stock Purchases,61.52,KELLOGGS ASA AWARDS SCHEME
Revenue,Place,Cultural and Related Services,Recreation and Sport,5105687784,25.05.2016,The Heights,Postage,8.00,KELLOGGS ASA AWARDS SCHEME
Revenue,Place,Cultural and Related Services,Recreation and Sport,5105684933,06.05.2016,The Heights,Postage,8.00,KELLOGGS ASA AWARDS SCHEME
Revenue,Place,Cultural and Related Services,Recreation and Sport,5105685719,11.05.2016,Medina Leisure Centre,Stock Purchases,254.04,KELLOGGS ASA AWARDS SCHEME
Revenue,Place,Central Services,Support Services,5105688103,27.05.2016,"County Hall,Newport",Property Services - Day to day Maintenance,27.55,ASSA ABLOY ENTRANCE SYSTEMS LTD
Revenue,Place,Central Services,Support Services,5105688629,31.05.2016,"County Hall,Newport",Property Services - Day to day Maintenance,26.55,ASSA ABLOY ENTRANCE SYSTEMS LTD
Revenue,Place,Cultural and Related Services,Library Service,5105688486,27.05.2016,Ryde Library,Property Services - Planned Maintenance,"1,327.22",ASSA ABLOY ENTRANCE SYSTEMS LTD
Revenue,Childrens Services,Children's & Education Services,Other Education and Community Budget,5105685959,18.05.2016,Learning & Development Running Costs,Property Services - Planned Maintenance,363.44,ASSA ABLOY ENTRANCE SYSTEMS LTD
Revenue,Childrens Services,Children's & Education Services,Special Schools & Alternative Provision,5105685903,11.05.2016,Island Learning Centre,Schools Examination Fees,-63.20,ASSESSMENT & QUALIFICATION ALLIANCE
Revenue,Adult Services,Adult Social Care,Social Care Activities,5105685956,11.05.2016,Safeguarding Adults,Professional Services,250.00,ASTRID DAVIES CONSULTING LTD
Revenue,Place,Cultural and Related Services,Culture and Heritage,5105685763,11.05.2016,Dinosaur Isle Museum (Sandown Geology),Stock Purchases,410.16,AURORA WORLD UK LTD
Revenue,Childrens Services,Children's & Education Services,Children Looked After,5105685708,11.05.2016,Purchased Residential,Charges from Independent Providers,"21,506.56",AUTISM WESSEX
Revenue,Childrens Services,Children's & Education Services,Children Looked After,5105685708,11.05.2016,NHS Funded Placements,Charges from Independent Providers,"2,386.91",AUTISM WESSEX
Revenue,Childrens Services,Children's & Education Services,Post-16 Provision,5105685708,11.05.2016,Post 16 Independ. & Non-Maint. Special Schls & Independ. Specialist Provision,Charges from Independent Providers,"10,901.17",AUTISM WESSEX
Revenue,Adult Services,Adult Social Care,Physical Support - older people (65+),5105686511,17.05.2016,Physical Support Residential 65+,Charges from Independent Providers,"1,905.96",AUTUMN HOUSE CARE LTD
Revenue,Adult Services,Adult Social Care,Physical Support - older people (65+),5105686055,13.05.2016,Physical Support Residential 65+,Charges from Independent Providers,"4,161.04",AUTUMN HOUSE CARE LTD
Revenue,Adult Services,Adult Social Care,Physical Support - older people (65+),5105686511,17.05.2016,Physical Support Residential 65+,Charges from Independent Providers,"2,240.56",AUTUMN HOUSE CARE LTD
Revenue,Adult Services,Adult Social Care,Physical Support - older people (65+),5105686511,17.05.2016,Physical Support Residential 65+,Charges from Independent Providers,"2,240.56",AUTUMN HOUSE CARE LTD
Revenue,Adult Services,Adult Social Care,Physical Support - older people (65+),5105686511,17.05.2016,Physical Support Residential 65+,Charges from Independent Providers,"1,905.96",AUTUMN HOUSE CARE LTD
Revenue,Adult Services,Adult Social Care,Physical Support - older people (65+),5105686511,17.05.2016,Physical Support Residential 65+,Charges from Independent Providers,"2,240.56",AUTUMN HOUSE CARE LTD
Revenue,Adult Services,Adult Social Care,Physical Support - older people (65+),5105686511,17.05.2016,Physical Support Residential 65+,Charges from Independent Providers,"2,143.40",AUTUMN HOUSE CARE LTD
Revenue,Adult Services,Adult Social Care,Physical Support - older people (65+),5105687405,18.05.2016,Physical Support Residential 65+,Charges from Independent Providers,"1,905.96",AUTUMN HOUSE CARE LTD
Revenue,Adult Services,Adult Social Care,Physical Support - older people (65+),5105687361,17.05.2016,Physical Support Residential 65+,Charges from Independent Providers,"-1,905.96",AUTUMN HOUSE CARE LTD
Revenue,Adult Services,Adult Social Care,Physical Support - older people (65+),5105687405,18.05.2016,Physical Support Residential 65+,Charges from Independent Providers,"2,240.56",AUTUMN HOUSE CARE LTD
Revenue,Adult Services,Adult Social Care,Physical Support - older people (65+),5105687361,17.05.2016,Physical Support Residential 65+,Charges from Independent Providers,"-2,143.40",AUTUMN HOUSE CARE LTD
Revenue,Adult Services,Adult Social Care,Physical Support - older people (65+),5105687405,18.05.2016,Physical Support Residential 65+,Charges from Independent Providers,"2,240.56",AUTUMN HOUSE CARE LTD
Revenue,Adult Services,Adult Social Care,Physical Support - older people (65+),5105687361,17.05.2016,Physical Support Residential 65+,Charges from Independent Providers,"-2,240.56",AUTUMN HOUSE CARE LTD
Revenue,Adult Services,Adult Social Care,Physical Support - older people (65+),5105687405,18.05.2016,Physical Support Residential 65+,Charges from Independent Providers,"1,905.96",AUTUMN HOUSE CARE LTD
Revenue,Adult Services,Adult Social Care,Physical Support - older people (65+),5105687361,17.05.2016,Physical Support Residential 65+,Charges from Independent Providers,"-1,905.96",AUTUMN HOUSE CARE LTD
Revenue,Adult Services,Adult Social Care,Physical Support - older people (65+),5105688305,27.05.2016,Physical Support Residential 65+,Charges from Independent Providers,153.10,AUTUMN HOUSE CARE LTD
Revenue,Adult Services,Adult Social Care,Physical Support - older people (65+),5105688305,27.05.2016,Physical Support Residential 65+,Charges from Independent Providers,240.06,AUTUMN HOUSE CARE LTD
Revenue,Adult Services,Adult Social Care,Physical Support - older people (65+),5105687926,25.05.2016,Physical Support Residential 65+,Charges from Independent Providers,"3,440.86",AUTUMN HOUSE CARE LTD
Revenue,Adult Services,Adult Social Care,Physical Support - older people (65+),5105687405,18.05.2016,Physical Support Residential 65+,Charges from Independent Providers,"2,240.56",AUTUMN HOUSE CARE LTD
Revenue,Adult Services,Adult Social Care,Physical Support - older people (65+),5105687361,17.05.2016,Physical Support Residential 65+,Charges from Independent Providers,"-2,240.56",AUTUMN HOUSE CARE LTD
Revenue,Adult Services,Adult Social Care,Physical Support - older people (65+),5105687361,17.05.2016,Physical Support Residential 65+,Charges from Independent Providers,"-2,240.56",AUTUMN HOUSE CARE LTD
Revenue,Adult Services,Adult Social Care,Physical Support - older people (65+),5105687405,18.05.2016,Physical Support Residential 65+,Charges from Independent Providers,"2,240.56",AUTUMN HOUSE CARE LTD
Revenue,Adult Services,Adult Social Care,Support - Memory /Cognition-older people (65+),5105686511,17.05.2016,Memory & Cognition Residential 65+,Charges from Independent Providers,"2,240.56",AUTUMN HOUSE CARE LTD
Revenue,Adult Services,Adult Social Care,Support - Memory /Cognition-older people (65+),5105686511,17.05.2016,Memory & Cognition Residential 65+,Charges from Independent Providers,"2,240.56",AUTUMN HOUSE CARE LTD
Revenue,Adult Services,Adult Social Care,Support - Memory /Cognition-older people (65+),5105686511,17.05.2016,Memory & Cognition Residential 65+,Charges from Independent Providers,"2,240.56",AUTUMN HOUSE CARE LTD
Revenue,Adult Services,Adult Social Care,Support - Memory /Cognition-older people (65+),5105686511,17.05.2016,Memory & Cognition Residential 65+,Charges from Independent Providers,"2,240.56",AUTUMN HOUSE CARE LTD
Revenue,Adult Services,Adult Social Care,Support - Memory /Cognition-older people (65+),5105686511,17.05.2016,Memory & Cognition Residential 65+,Charges from Independent Providers,"2,240.56",AUTUMN HOUSE CARE LTD
Revenue,Adult Services,Adult Social Care,Support - Memory /Cognition-older people (65+),5105686511,17.05.2016,Memory & Cognition Residential 65+,Charges from Independent Providers,"1,905.96",AUTUMN HOUSE CARE LTD
Revenue,Adult Services,Adult Social Care,Support - Memory /Cognition-older people (65+),5105686511,17.05.2016,Memory & Cognition Residential 65+,Charges from Independent Providers,"2,240.56",AUTUMN HOUSE CARE LTD
Revenue,Adult Services,Adult Social Care,Support - Memory /Cognition-older people (65+),5105686511,17.05.2016,Memory & Cognition Residential 65+,Charges from Independent Providers,"1,905.96",AUTUMN HOUSE CARE LTD
Revenue,Adult Services,Adult Social Care,Support - Memory /Cognition-older people (65+),5105686511,17.05.2016,Memory & Cognition Residential 65+,Charges from Independent Providers,"2,240.56",AUTUMN HOUSE CARE LTD
Revenue,Adult Services,Adult Social Care,Support - Memory /Cognition-older people (65+),5105686511,17.05.2016,Memory & Cognition Residential 65+,Charges from Independent Providers,"2,240.56",AUTUMN HOUSE CARE LTD
Revenue,Adult Services,Adult Social Care,Support - Memory /Cognition-older people (65+),5105686511,17.05.2016,Memory & Cognition Residential 65+,Charges from Independent Providers,"2,240.56",AUTUMN HOUSE CARE LTD
Revenue,Adult Services,Adult Social Care,Support - Memory /Cognition-older people (65+),5105686511,17.05.2016,Memory & Cognition Residential 65+,Charges from Independent Providers,"2,240.56",AUTUMN HOUSE CARE LTD
Revenue,Adult Services,Adult Social Care,Support - Memory /Cognition-older people (65+),5105686511,17.05.2016,Memory & Cognition Residential 65+,Charges from Independent Providers,"2,240.56",AUTUMN HOUSE CARE LTD
Revenue,Adult Services,Adult Social Care,Support - Memory /Cognition-older people (65+),5105686511,17.05.2016,Memory & Cognition Residential 65+,Charges from Independent Providers,"2,240.56",AUTUMN HOUSE CARE LTD
Revenue,Adult Services,Adult Social Care,Support - Memory /Cognition-older people (65+),5105686511,17.05.2016,Memory & Cognition Residential 65+,Charges from Independent Providers,"2,240.56",AUTUMN HOUSE CARE LTD
Revenue,Adult Services,Adult Social Care,Support - Memory /Cognition-older people (65+),5105686511,17.05.2016,Memory & Cognition Residential 65+,Charges from Independent Providers,"2,240.56",AUTUMN HOUSE CARE LTD
Revenue,Adult Services,Adult Social Care,Support - Memory /Cognition-older people (65+),5105686511,17.05.2016,Memory & Cognition Residential 65+,Charges from Independent Providers,"2,240.56",AUTUMN HOUSE CARE LTD
Revenue,Adult Services,Adult Social Care,Support - Memory /Cognition-older people (65+),5105686511,17.05.2016,Memory & Cognition Residential 65+,Charges from Independent Providers,"1,905.96",AUTUMN HOUSE CARE LTD
Revenue,Adult Services,Adult Social Care,Support - Memory /Cognition-older people (65+),5105687361,17.05.2016,Memory & Cognition Residential 65+,Charges from Independent Providers,"-2,240.56",AUTUMN HOUSE CARE LTD
Revenue,Adult Services,Adult Social Care,Support - Memory /Cognition-older people (65+),5105687405,18.05.2016,Memory & Cognition Residential 65+,Charges from Independent Providers,"2,240.56",AUTUMN HOUSE CARE LTD
Revenue,Adult Services,Adult Social Care,Support - Memory /Cognition-older people (65+),5105687405,18.05.2016,Memory & Cognition Residential 65+,Charges from Independent Providers,"2,240.56",AUTUMN HOUSE CARE LTD
Revenue,Adult Services,Adult Social Care,Support - Memory /Cognition-older people (65+),5105687361,17.05.2016,Memory & Cognition Residential 65+,Charges from Independent Providers,"-2,240.56",AUTUMN HOUSE CARE LTD
Revenue,Adult Services,Adult Social Care,Support - Memory /Cognition-older people (65+),5105687361,17.05.2016,Memory & Cognition Residential 65+,Charges from Independent Providers,"-2,240.56",AUTUMN HOUSE CARE LTD
Revenue,Adult Services,Adult Social Care,Support - Memory /Cognition-older people (65+),5105687405,18.05.2016,Memory & Cognition Residential 65+,Charges from Independent Providers,"2,240.56",AUTUMN HOUSE CARE LTD
Revenue,Adult Services,Adult Social Care,Support - Memory /Cognition-older people (65+),5105687361,17.05.2016,Memory & Cognition Residential 65+,Charges from Independent Providers,"-1,905.96",AUTUMN HOUSE CARE LTD
Revenue,Adult Services,Adult Social Care,Support - Memory /Cognition-older people (65+),5105687405,18.05.2016,Memory & Cognition Residential 65+,Charges from Independent Providers,"1,905.96",AUTUMN HOUSE CARE LTD
Revenue,Adult Services,Adult Social Care,Support - Memory /Cognition-older people (65+),5105687405,18.05.2016,Memory & Cognition Residential 65+,Charges from Independent Providers,"2,240.56",AUTUMN HOUSE CARE LTD
Revenue,Adult Services,Adult Social Care,Support - Memory /Cognition-older people (65+),5105687361,17.05.2016,Memory & Cognition Residential 65+,Charges from Independent Providers,"-2,240.56",AUTUMN HOUSE CARE LTD
Revenue,Adult Services,Adult Social Care,Support - Memory /Cognition-older people (65+),5105687405,18.05.2016,Memory & Cognition Residential 65+,Charges from Independent Providers,"2,240.56",AUTUMN HOUSE CARE LTD
Revenue,Adult Services,Adult Social Care,Support - Memory /Cognition-older people (65+),5105687361,17.05.2016,Memory & Cognition Residential 65+,Charges from Independent Providers,"-2,240.56",AUTUMN HOUSE CARE LTD
Revenue,Adult Services,Adult Social Care,Support - Memory /Cognition-older people (65+),5105687361,17.05.2016,Memory & Cognition Residential 65+,Charges from Independent Providers,"-2,240.56",AUTUMN HOUSE CARE LTD
Revenue,Adult Services,Adult Social Care,Support - Memory /Cognition-older people (65+),5105687405,18.05.2016,Memory & Cognition Residential 65+,Charges from Independent Providers,"2,240.56",AUTUMN HOUSE CARE LTD
Revenue,Adult Services,Adult Social Care,Support - Memory /Cognition-older people (65+),5105687405,18.05.2016,Memory & Cognition Residential 65+,Charges from Independent Providers,"2,240.56",AUTUMN HOUSE CARE LTD
Revenue,Adult Services,Adult Social Care,Support - Memory /Cognition-older people (65+),5105687361,17.05.2016,Memory & Cognition Residential 65+,Charges from Independent Providers,"-2,240.56",AUTUMN HOUSE CARE LTD
Revenue,Adult Services,Adult Social Care,Support - Memory /Cognition-older people (65+),5105687405,18.05.2016,Memory & Cognition Residential 65+,Charges from Independent Providers,"1,905.96",AUTUMN HOUSE CARE LTD
Revenue,Adult Services,Adult Social Care,Support - Memory /Cognition-older people (65+),5105687361,17.05.2016,Memory & Cognition Residential 65+,Charges from Independent Providers,"-1,905.96",AUTUMN HOUSE CARE LTD
Revenue,Adult Services,Adult Social Care,Support - Memory /Cognition-older people (65+),5105687361,17.05.2016,Memory & Cognition Residential 65+,Charges from Independent Providers,"-2,240.56",AUTUMN HOUSE CARE LTD
Revenue,Adult Services,Adult Social Care,Support - Memory /Cognition-older people (65+),5105687405,18.05.2016,Memory & Cognition Residential 65+,Charges from Independent Providers,"2,240.56",AUTUMN HOUSE CARE LTD
Revenue,Adult Services,Adult Social Care,Support - Memory /Cognition-older people (65+),5105687361,17.05.2016,Memory & Cognition Residential 65+,Charges from Independent Providers,"-2,240.56",AUTUMN HOUSE CARE LTD
Revenue,Adult Services,Adult Social Care,Support - Memory /Cognition-older people (65+),5105687405,18.05.2016,Memory & Cognition Residential 65+,Charges from Independent Providers,"2,240.56",AUTUMN HOUSE CARE LTD
Revenue,Adult Services,Adult Social Care,Support - Memory /Cognition-older people (65+),5105687405,18.05.2016,Memory & Cognition Residential 65+,Charges from Independent Providers,"2,240.56",AUTUMN HOUSE CARE LTD
Revenue,Adult Services,Adult Social Care,Support - Memory /Cognition-older people (65+),5105687361,17.05.2016,Memory & Cognition Residential 65+,Charges from Independent Providers,"-2,240.56",AUTUMN HOUSE CARE LTD
Revenue,Adult Services,Adult Social Care,Support - Memory /Cognition-older people (65+),5105687361,17.05.2016,Memory & Cognition Residential 65+,Charges from Independent Providers,"-2,240.56",AUTUMN HOUSE CARE LTD
Revenue,Adult Services,Adult Social Care,Support - Memory /Cognition-older people (65+),5105687405,18.05.2016,Memory & Cognition Residential 65+,Charges from Independent Providers,"2,240.56",AUTUMN HOUSE CARE LTD
Revenue,Adult Services,Adult Social Care,Support - Memory /Cognition-older people (65+),5105687361,17.05.2016,Memory & Cognition Residential 65+,Charges from Independent Providers,"-2,240.56",AUTUMN HOUSE CARE LTD
Revenue,Adult Services,Adult Social Care,Support - Memory /Cognition-older people (65+),5105687405,18.05.2016,Memory & Cognition Residential 65+,Charges from Independent Providers,"2,240.56",AUTUMN HOUSE CARE LTD
Revenue,Adult Services,Adult Social Care,Support - Memory /Cognition-older people (65+),5105687405,18.05.2016,Memory & Cognition Residential 65+,Charges from Independent Providers,"2,240.56",AUTUMN HOUSE CARE LTD
Revenue,Adult Services,Adult Social Care,Support - Memory /Cognition-older people (65+),5105687361,17.05.2016,Memory & Cognition Residential 65+,Charges from Independent Providers,"-2,240.56",AUTUMN HOUSE CARE LTD
Revenue,Adult Services,Adult Social Care,Support - Memory /Cognition-older people (65+),5105687361,17.05.2016,Memory & Cognition Residential 65+,Charges from Independent Providers,"-1,905.96",AUTUMN HOUSE CARE LTD
Revenue,Adult Services,Adult Social Care,Support - Memory /Cognition-older people (65+),5105687405,18.05.2016,Memory & Cognition Residential 65+,Charges from Independent Providers,"1,905.96",AUTUMN HOUSE CARE LTD
Revenue,Adult Services,Adult Social Care,Support - Memory /Cognition-older people (65+),5105687361,17.05.2016,Memory & Cognition Residential 65+,Charges from Independent Providers,"-2,240.56",AUTUMN HOUSE CARE LTD
Revenue,Adult Services,Adult Social Care,Support - Memory /Cognition-older people (65+),5105687405,18.05.2016,Memory & Cognition Residential 65+,Charges from Independent Providers,"2,240.56",AUTUMN HOUSE CARE LTD
Revenue,Adult Services,Adult Social Care,Support - Memory /Cognition-older people (65+),5105687405,18.05.2016,Memory & Cognition Residential 65+,Charges from Independent Providers,"2,240.56",AUTUMN HOUSE CARE LTD
Revenue,Adult Services,Adult Social Care,Support - Memory /Cognition-older people (65+),5105687361,17.05.2016,Memory & Cognition Residential 65+,Charges from Independent Providers,"-2,240.56",AUTUMN HOUSE CARE LTD
Revenue,Adult Services,Adult Social Care,Support - Memory /Cognition-older people (65+),5105687926,25.05.2016,Memory & Cognition Residential 65+,Charges from Independent Providers,"1,360.34",AUTUMN HOUSE CARE LTD
Revenue,Adult Services,Adult Social Care,Support - Memory /Cognition-older people (65+),5105687926,25.05.2016,Memory & Cognition Residential 65+,Charges from Independent Providers,"2,240.56",AUTUMN HOUSE CARE LTD
Revenue,Adult Services,Adult Social Care,Support - Memory /Cognition-older people (65+),5105688705,31.05.2016,Memory & Cognition Residential 65+,Charges from Independent Providers,"2,560.64",AUTUMN HOUSE CARE LTD
Revenue,Adult Services,Adult Social Care,Support - Memory /Cognition-older people (65+),5105688305,27.05.2016,Memory & Cognition Residential 65+,Charges from Independent Providers,"2,160.54",AUTUMN HOUSE CARE LTD
Revenue,Resources,Central Services,Support Services,5105687757,20.05.2016,Payroll,Consultants Fees,69.00,AVALON VALE UK LTD
Revenue,Place,Cultural and Related Services,Service Management and Support Services,5105685773,09.05.2016,Duke of Edingburgh Award,Licences,"-1,051.00",AWARD SCHEME LTD
Revenue,Place,Cultural and Related Services,Service Management and Support Services,5105685774,11.05.2016,Duke of Edingburgh Award,Licences,"1,051.00",AWARD SCHEME LTD
Revenue,Childrens Services,Children's & Education Services,Children Looked After,5105685277,06.05.2016,Leaving Care Costs,Support Children,50.00,REDACTED PERSONAL DATA
Revenue,Childrens Services,Children's & Education Services,Children Looked After,5105686092,13.05.2016,Leaving Care Costs,Support Children,50.00,REDACTED PERSONAL DATA
Revenue,Childrens Services,Children's & Education Services,Children Looked After,5105687558,20.05.2016,Leaving Care Costs,Support Children,50.00,REDACTED PERSONAL DATA
Revenue,Childrens Services,Children's & Education Services,Children Looked After,5105688327,27.05.2016,Leaving Care Costs,Support Children,50.00,REDACTED PERSONAL DATA
Revenue,Childrens Services,Children's & Education Services,Children Looked After,5105685086,04.05.2016,Leaving Care Costs,Accommodation Costs - Service Users,500.00,REDACTED PERSONAL DATA
Revenue,Childrens Services,Children's & Education Services,Children Looked After,5105688327,27.05.2016,In-house Fostering,Boarding Out Allowances,164.52,REDACTED PERSONAL DATA
Revenue,Childrens Services,Children's & Education Services,Children Looked After,5105688327,27.05.2016,In-house Fostering,Boarding Out Allowances,150.00,REDACTED PERSONAL DATA
Revenue,Childrens Services,Children's & Education Services,Children Looked After,5105688327,27.05.2016,In-house Fostering,Boarding Out Allowances,10.00,REDACTED PERSONAL DATA
Revenue,Childrens Services,Children's & Education Services,Children Looked After,5105685277,06.05.2016,In-house Fostering,Boarding Out Allowances,164.52,REDACTED PERSONAL DATA
Revenue,Childrens Services,Children's & Education Services,Children Looked After,5105685277,06.05.2016,In-house Fostering,Boarding Out Allowances,150.00,REDACTED PERSONAL DATA
Revenue,Childrens Services,Children's & Education Services,Children Looked After,5105685277,06.05.2016,In-house Fostering,Boarding Out Allowances,10.00,REDACTED PERSONAL DATA
Revenue,Childrens Services,Children's & Education Services,Children Looked After,5105686092,13.05.2016,In-house Fostering,Boarding Out Allowances,164.52,REDACTED PERSONAL DATA
Revenue,Childrens Services,Children's & Education Services,Children Looked After,5105686092,13.05.2016,In-house Fostering,Boarding Out Allowances,150.00,REDACTED PERSONAL DATA
Revenue,Childrens Services,Children's & Education Services,Children Looked After,5105686092,13.05.2016,In-house Fostering,Boarding Out Allowances,10.00,REDACTED PERSONAL DATA
Revenue,Childrens Services,Children's & Education Services,Children Looked After,5105687558,20.05.2016,In-house Fostering,Boarding Out Allowances,164.52,REDACTED PERSONAL DATA
Revenue,Childrens Services,Children's & Education Services,Children Looked After,5105687558,20.05.2016,In-house Fostering,Boarding Out Allowances,150.00,REDACTED PERSONAL DATA
Revenue,Childrens Services,Children's & Education Services,Children Looked After,5105687558,20.05.2016,In-house Fostering,Boarding Out Allowances,10.00,REDACTED PERSONAL DATA
Revenue,Adult Services,Adult Social Care,Learning Disability Suppt-adults (18-64),5105686524,18.05.2016,Learning Disability Residential 18-64,Charges from Independent Providers,"2,022.72",REDACTED PERSONAL DATA
Revenue,Adult Services,Adult Social Care,Learning Disability Suppt-adults (18-64),5105686524,18.05.2016,Learning Disability Residential 18-64,Charges from Independent Providers,"2,022.72",REDACTED PERSONAL DATA
Revenue,Adult Services,Adult Social Care,Learning Disability Suppt-adults (18-64),5105686524,18.05.2016,Learning Disability Residential 18-64,Charges from Independent Providers,"2,930.76",REDACTED PERSONAL DATA
Revenue,Place,Housing Services,Homelessness,5105687939,25.05.2016,Leaseholds by LA,Accommodation Costs - Leaseholder Payments,815.49,REDACTED PERSONAL DATA
Revenue,Resources,Central Services,Support Services,5105687997,25.05.2016,Staff Benefits,Payment to Private Contractors,50.00,REDACTED PERSONAL DATA
Revenue,Resources,Central Services,Support Services,5105687997,25.05.2016,Staff Benefits,Payment to Private Contractors,100.00,REDACTED PERSONAL DATA
Revenue,Place,Housing Services,Homelessness,5105687943,25.05.2016,Leaseholds by LA,Accommodation Costs - Leaseholder Payments,799.50,REDACTED PERSONAL DATA
Revenue,Place,Housing Services,Homelessness,5105687943,25.05.2016,Leaseholds by LA,Accommodation Costs - Leaseholder Payments,888.33,REDACTED PERSONAL DATA
Revenue,Place,Housing Services,Homelessness,5105687943,25.05.2016,Leaseholds by LA,Accommodation Costs - Leaseholder Payments,866.67,REDACTED PERSONAL DATA
Revenue,Place,Housing Services,Homelessness,5105687943,25.05.2016,Leaseholds by LA,Accommodation Costs - Leaseholder Payments,866.67,REDACTED PERSONAL DATA
Revenue,Place,Central Services,Support Services,5105685453,20.05.2016,"Enterprise House, Newport",Property Services - Day to day Maintenance,162.90,BALFOUR BEATTY
Revenue,Place,Central Services,Support Services,5105685460,18.05.2016,"Enterprise House, Newport",Property Services - Day to day Maintenance,53.09,BALFOUR BEATTY
Revenue,Place,Central Services,Support Services,5105684790,27.05.2016,"Enterprise House, Newport",Property Services - Day to day Maintenance,58.50,BALFOUR BEATTY
Revenue,Place,Central Services,Support Services,5105685453,20.05.2016,"Enterprise House, Newport",Property Services - Day to day Maintenance,187.02,BALFOUR BEATTY
Revenue,Place,Central Services,Support Services,5105685461,13.05.2016,"Enterprise House, Newport",Property Services - Day to day Maintenance,50.51,BALFOUR BEATTY
Revenue,Place,Central Services,Support Services,5105685712,18.05.2016,"Enterprise House, Newport",Property Services - Day to day Maintenance,70.80,BALFOUR BEATTY
Revenue,Place,Central Services,Support Services,5105685712,18.05.2016,"Enterprise House, Newport",Property Services - Day to day Maintenance,36.00,BALFOUR BEATTY
Revenue,Place,Central Services,Support Services,5105681769,11.05.2016,"County Hall,Newport",Property Services - Day to day Maintenance,"1,032.26",BALFOUR BEATTY
Revenue,Place,Central Services,Support Services,5105684838,25.05.2016,"County Hall,Newport",Property Services - Day to day Maintenance,211.80,BALFOUR BEATTY
Revenue,Place,Central Services,Support Services,5105684893,25.05.2016,"County Hall,Newport",Property Services - Day to day Maintenance,134.69,BALFOUR BEATTY
Revenue,Place,Central Services,Support Services,5105684793,29.04.2016,"County Hall,Newport",Property Services - Day to day Maintenance,48.49,BALFOUR BEATTY
Revenue,Place,Central Services,Support Services,5105684790,27.05.2016,"County Hall,Newport",Property Services - Day to day Maintenance,117.86,BALFOUR BEATTY
Revenue,Place,Central Services,Support Services,5105684793,29.04.2016,"County Hall,Newport",Property Services - Day to day Maintenance,323.00,BALFOUR BEATTY
Revenue,Place,Central Services,Support Services,5105685133,04.05.2016,"County Hall,Newport",Property Services - Day to day Maintenance,101.91,BALFOUR BEATTY
Revenue,Place,Central Services,Support Services,5105684917,18.05.2016,"County Hall,Newport",Property Services - Day to day Maintenance,120.60,BALFOUR BEATTY
Revenue,Place,Central Services,Support Services,5105685913,11.05.2016,"County Hall,Newport",Property Services - Day to day Maintenance,-573.57,BALFOUR BEATTY
Revenue,Place,Central Services,Support Services,5105685460,18.05.2016,"County Hall,Newport",Property Services - Day to day Maintenance,73.48,BALFOUR BEATTY
Revenue,Place,Central Services,Support Services,5105687483,20.05.2016,"County Hall,Newport",Property Services - Day to day Maintenance,72.00,BALFOUR BEATTY
Revenue,Place,Central Services,Support Services,5105687483,20.05.2016,"County Hall,Newport",Property Services - Day to day Maintenance,185.18,BALFOUR BEATTY
Revenue,Place,Central Services,Support Services,5105687483,20.05.2016,"County Hall,Newport",Property Services - Day to day Maintenance,73.59,BALFOUR BEATTY
Revenue,Place,Central Services,Support Services,5105685712,18.05.2016,"County Hall,Newport",Property Services - Day to day Maintenance,96.70,BALFOUR BEATTY
Revenue,Place,Central Services,Support Services,5105687383,25.05.2016,"Guildhall,Newport",Property Services - Planned Maintenance,328.65,BALFOUR BEATTY
Revenue,Place,Central Services,Support Services,5105685560,06.05.2016,"Civic Centre,Sandown",Property Services - Planned Maintenance,774.00,BALFOUR BEATTY
Revenue,Place,Central Services,Support Services,5105687383,25.05.2016,"Jubilee Stores, Newport",Property Services - Planned Maintenance,71.70,BALFOUR BEATTY
Revenue,Place,Central Services,Support Services,5105687383,25.05.2016,"Seaclose Offices, Newport",Property Services - Day to day Maintenance,86.00,BALFOUR BEATTY
Revenue,Place,Central Services,Support Services,5105686354,13.05.2016,"Seaclose Offices, Newport",Property Services - Day to day Maintenance,32.69,BALFOUR BEATTY
Revenue,Place,Central Services,Support Services,5105686354,13.05.2016,"Seaclose Offices, Newport",Property Services - Day to day Maintenance,63.00,BALFOUR BEATTY
Revenue,Place,Central Services,Support Services,5105684838,25.05.2016,"Seaclose Offices, Newport",Property Services - Day to day Maintenance,54.00,BALFOUR BEATTY
Revenue,Place,Central Services,Support Services,5105685718,13.05.2016,"Seaclose Offices, Newport",Property Services - Day to day Maintenance,58.40,BALFOUR BEATTY
Revenue,Place,Central Services,Support Services,5105685461,13.05.2016,"Seaclose Offices, Newport",Property Services - Day to day Maintenance,51.43,BALFOUR BEATTY
Revenue,Place,Central Services,Support Services,5105685461,13.05.2016,"Seaclose Offices, Newport",Property Services - Day to day Maintenance,97.18,BALFOUR BEATTY
Revenue,Place,Central Services,Support Services,5105685712,18.05.2016,"Seaclose Offices, Newport",Property Services - Day to day Maintenance,74.03,BALFOUR BEATTY
Revenue,Place,Planning services,Business Support,5105685492,06.05.2016,Somerton Industrial Park,Property Services - Day to day Maintenance,139.40,BALFOUR BEATTY
Revenue,Place,Planning services,Business Support,5105687483,20.05.2016,Somerton Industrial Park,Property Services - Day to day Maintenance,58.50,BALFOUR BEATTY
Revenue,Place,Central Services,Support Services,5105684790,27.05.2016,Properties  - Other Properties,Property Services - Day to day Maintenance,165.80,BALFOUR BEATTY
Revenue,Place,Central Services,Support Services,5105684892,18.05.2016,Properties  - Other Properties,Property Services - Day to day Maintenance,99.96,BALFOUR BEATTY
Revenue,Place,Central Services,Support Services,5105686354,13.05.2016,"Westridge, Ryde",Property Services - Day to day Maintenance,44.70,BALFOUR BEATTY
Revenue,Place,Central Services,Support Services,5105685556,06.05.2016,"Westridge, Ryde",Property Services - Day to day Maintenance,55.50,BALFOUR BEATTY
Revenue,Place,Central Services,Support Services,5105685571,06.05.2016,"Westridge, Ryde",Property Services - Day to day Maintenance,-55.50,BALFOUR BEATTY
Revenue,Place,Central Services,Support Services,5105685560,06.05.2016,"24 Daish Way, Newport (WISE)",Property Services - Day to day Maintenance,56.01,BALFOUR BEATTY
Revenue,Place,Central Services,Support Services,5105684838,25.05.2016,"24 Daish Way, Newport (WISE)",Property Services - Day to day Maintenance,350.12,BALFOUR BEATTY
Capital,Resources,Capital,Capital,5105684917,18.05.2016,Management of Asbestos,Payment to Contractors - Capital,682.00,BALFOUR BEATTY
Revenue,Place,Housing Services,Housing Strategy,5105685432,06.05.2016,Downside Community & Learning Centre,Minor Works,84.06,BALFOUR BEATTY
Revenue,Adult Services,Adult Social Care,Assistive Equipment & Technology,5105685556,06.05.2016,S75 Integrated Community Equipment Store,Fixtures and Fittings,44.70,BALFOUR BEATTY
Revenue,Adult Services,Adult Social Care,Assistive Equipment & Technology,5105685571,06.05.2016,S75 Integrated Community Equipment Store,Fixtures and Fittings,-44.70,BALFOUR BEATTY
Revenue,Adult Services,Adult Social Care,Learning Disab Supp (to be reallocated),5105685453,20.05.2016,Overbrook,Minor Works,30.85,BALFOUR BEATTY
Revenue,Adult Services,Adult Social Care,Learning Disab Supp (to be reallocated),5105685460,18.05.2016,Overbrook,Minor Works,53.00,BALFOUR BEATTY
Revenue,Adult Services,Adult Social Care,Learning Disab Supp (to be reallocated),5105684917,18.05.2016,Seagulls,Minor Works,44.70,BALFOUR BEATTY
Revenue,Adult Services,Adult Social Care,Learning Disab Supp (to be reallocated),5105685460,18.05.2016,Plean Dene,Minor Works,173.82,BALFOUR BEATTY
Revenue,Adult Services,Adult Social Care,Learning Disab Supp (to be reallocated),5105685556,06.05.2016,Plean Dene,Minor Works,42.10,BALFOUR BEATTY
Revenue,Adult Services,Adult Social Care,Learning Disab Supp (to be reallocated),5105685571,06.05.2016,Plean Dene,Minor Works,-42.10,BALFOUR BEATTY
Revenue,Adult Services,Adult Social Care,Learning Disab Supp (to be reallocated),5105685460,18.05.2016,Saxonbury,Minor Works,345.11,BALFOUR BEATTY
Revenue,Adult Services,Adult Social Care,Learning Disab Supp (to be reallocated),5105684923,18.05.2016,Saxonbury,Minor Works,40.55,BALFOUR BEATTY
Revenue,Adult Services,Adult Social Care,Learning Disab Supp (to be reallocated),5105684790,27.05.2016,Saxonbury,Minor Works,202.11,BALFOUR BEATTY
Revenue,Adult Services,Adult Social Care,Learning Disab Supp (to be reallocated),5105687383,25.05.2016,40 Venner Avenue,Minor Works,146.54,BALFOUR BEATTY
Revenue,Adult Services,Adult Social Care,Learning Disab Supp (to be reallocated),5105685436,06.05.2016,Highmead,Minor Works,144.25,BALFOUR BEATTY
Revenue,Adult Services,Adult Social Care,Learning Disab Supp (to be reallocated),5105685434,06.05.2016,The Laurels,Minor Works,105.00,BALFOUR BEATTY
Revenue,Adult Services,Adult Social Care,Learning Disab Supp (to be reallocated),5105684917,18.05.2016,The Laurels,Minor Works,88.12,BALFOUR BEATTY
Revenue,Adult Services,Adult Social Care,Learning Disab Supp (to be reallocated),5105685461,13.05.2016,The Laurels,Minor Works,44.93,BALFOUR BEATTY
Revenue,Place,Central Services,Support Services,5105684790,27.05.2016,17 Fairlee Road,Minor Works,310.30,BALFOUR BEATTY
Revenue,Place,Central Services,Support Services,5105684917,18.05.2016,17 Fairlee Road,Minor Works,64.40,BALFOUR BEATTY
Revenue,Place,Central Services,Support Services,5105685492,06.05.2016,17 Fairlee Road,Property Services - Planned Maintenance,567.00,BALFOUR BEATTY
Revenue,Place,Central Services,Support Services,5105685549,20.05.2016,17 Fairlee Road,Minor Works,102.60,BALFOUR BEATTY
Revenue,Adult Services,Adult Social Care,Central Codes (to be reallocated),5105685549,20.05.2016,Adelaide Resource Centre,Property Services - Day to day Maintenance,288.00,BALFOUR BEATTY
Revenue,Adult Services,Adult Social Care,Central Codes (to be reallocated),5105685718,13.05.2016,Gouldings Resource Centre,Property Services - Day to day Maintenance,103.50,BALFOUR BEATTY
Revenue,Adult Services,Adult Social Care,Central Codes (to be reallocated),5105685549,20.05.2016,Gouldings Resource Centre,Property Services - Day to day Maintenance,288.00,BALFOUR BEATTY
Revenue,Adult Services,Adult Social Care,Central Codes (to be reallocated),5105684893,25.05.2016,Gouldings Resource Centre,Property Services - Day to day Maintenance,105.62,BALFOUR BEATTY
Revenue,Adult Services,Adult Social Care,Central Codes (to be reallocated),5105681769,11.05.2016,Gouldings Resource Centre,Property Services - Day to day Maintenance,283.50,BALFOUR BEATTY
Revenue,Adult Services,Adult Social Care,Central Codes (to be reallocated),5105685453,20.05.2016,Gouldings Resource Centre,Property Services - Day to day Maintenance,110.00,BALFOUR BEATTY
Revenue,Adult Services,Adult Social Care,Learning Disab Supp (to be reallocated),5105684892,18.05.2016,Westminster House,Property Services - Day to day Maintenance,177.30,BALFOUR BEATTY
Revenue,Adult Services,Adult Social Care,Learning Disab Supp (to be reallocated),5105684838,25.05.2016,Westminster House,Property Services - Day to day Maintenance,67.00,BALFOUR BEATTY
Revenue,Adult Services,Adult Social Care,Learning Disab Supp (to be reallocated),5105684917,18.05.2016,Westminster House,Property Services - Day to day Maintenance,52.06,BALFOUR BEATTY
Revenue,Adult Services,Adult Social Care,Learning Disab Supp (to be reallocated),5105685571,06.05.2016,Westminster House,Property Services - Planned Maintenance,-52.20,BALFOUR BEATTY
Revenue,Adult Services,Adult Social Care,Learning Disab Supp (to be reallocated),5105685556,06.05.2016,Westminster House,Property Services - Planned Maintenance,52.20,BALFOUR BEATTY
Revenue,Adult Services,Adult Social Care,Learning Disab Supp (to be reallocated),5105685549,20.05.2016,Westminster House,Property Services - Planned Maintenance,140.00,BALFOUR BEATTY
Revenue,Adult Services,Adult Social Care,Learning Disab Supp (to be reallocated),5105685501,11.05.2016,Westminster House,Property Services - Day to day Maintenance,55.15,BALFOUR BEATTY
Revenue,Adult Services,Adult Social Care,Learning Disab Supp (to be reallocated),5105685549,20.05.2016,Westminster House,Property Services - Day to day Maintenance,53.40,BALFOUR BEATTY
Revenue,Adult Services,Adult Social Care,Learning Disab Supp (to be reallocated),5105685461,13.05.2016,Westminster House,Property Services - Day to day Maintenance,150.60,BALFOUR BEATTY
Revenue,Adult Services,Adult Social Care,Central Codes (to be reallocated),5105685438,11.05.2016,Mental Health Day Services,Property Services - Day to day Maintenance,119.32,BALFOUR BEATTY
Revenue,Place,Cultural and Related Services,Library Service,5105684917,18.05.2016,Cowes Library,Property Services - Day to day Maintenance,114.30,BALFOUR BEATTY
Revenue,Place,Cultural and Related Services,Library Service,5105685560,06.05.2016,Freshwater West Wight Library,Property Services - Day to day Maintenance,83.72,BALFOUR BEATTY
Revenue,Place,Cultural and Related Services,Library Service,5105685712,18.05.2016,Newport Library,Property Services - Day to day Maintenance,27.00,BALFOUR BEATTY
Revenue,Place,Cultural and Related Services,Library Service,5105685492,06.05.2016,Newport Library,Property Services - Day to day Maintenance,43.20,BALFOUR BEATTY
Revenue,Place,Cultural and Related Services,Library Service,5105687483,20.05.2016,Newport Library,Property Services - Day to day Maintenance,476.00,BALFOUR BEATTY
Revenue,Place,Cultural and Related Services,Library Service,5105681769,11.05.2016,Newport Library,Property Services - Day to day Maintenance,204.23,BALFOUR BEATTY
Revenue,Place,Cultural and Related Services,Library Service,5105685492,06.05.2016,Ryde Library,Property Services - Day to day Maintenance,47.19,BALFOUR BEATTY
Revenue,Place,Cultural and Related Services,Library Service,5105685560,06.05.2016,Ventnor Library,Property Services - Day to day Maintenance,48.50,BALFOUR BEATTY
Revenue,Childrens Services,Children's & Education Services,Other Education and Community Budget,5105685556,06.05.2016,Learning & Development Running Costs,Minor Works,58.80,BALFOUR BEATTY
Revenue,Childrens Services,Children's & Education Services,Other Education and Community Budget,5105685571,06.05.2016,Learning & Development Running Costs,Minor Works,-58.80,BALFOUR BEATTY
Revenue,Childrens Services,Children's & Education Services,Other Education and Community Budget,5105687383,25.05.2016,Learning & Development Running Costs,Minor Works,44.43,BALFOUR BEATTY
Revenue,Place,Cultural and Related Services,Culture and Heritage,5105687483,20.05.2016,Archives,Property Services - Planned Maintenance,48.50,BALFOUR BEATTY
Revenue,Place,Cultural and Related Services,Culture and Heritage,5105685501,11.05.2016,Archives,Property Services - Day to day Maintenance,67.00,BALFOUR BEATTY
Revenue,Place,Cultural and Related Services,Culture and Heritage,5105685712,18.05.2016,Museums & Collections Management,Operational Equipment,85.00,BALFOUR BEATTY
Revenue,Place,Cultural and Related Services,Culture and Heritage,5105685461,13.05.2016,Cothey Bottom Store RYDE,Property Services - Day to day Maintenance,258.00,BALFOUR BEATTY
Revenue,Place,Cultural and Related Services,Culture and Heritage,5105684923,18.05.2016,Guildhall Museum,Maintenance of Operational Equipment,239.00,BALFOUR BEATTY
Revenue,Place,Cultural and Related Services,Culture and Heritage,5105684917,18.05.2016,Cowes Maritime Museum,Payment to Private Contractors,"3,579.00",BALFOUR BEATTY
Revenue,Place,Cultural and Related Services,Recreation and Sport,5105687483,20.05.2016,The Heights,Property Services - Day to day Maintenance,105.00,BALFOUR BEATTY
Revenue,Place,Cultural and Related Services,Recreation and Sport,5105685560,06.05.2016,The Heights,Property Services - Day to day Maintenance,69.30,BALFOUR BEATTY
Revenue,Place,Cultural and Related Services,Recreation and Sport,5105684838,25.05.2016,The Heights,Property Services - Day to day Maintenance,53.40,BALFOUR BEATTY
Revenue,Place,Cultural and Related Services,Recreation and Sport,5105684793,29.04.2016,The Heights,Property Services - Day to day Maintenance,208.00,BALFOUR BEATTY
Revenue,Place,Cultural and Related Services,Recreation and Sport,5105684793,29.04.2016,The Heights,Property Services - Day to day Maintenance,355.15,BALFOUR BEATTY
Revenue,Place,Cultural and Related Services,Recreation and Sport,5105684790,27.05.2016,Medina Leisure Centre,Property Services - Day to day Maintenance,53.40,BALFOUR BEATTY
Revenue,Place,Cultural and Related Services,Recreation and Sport,5105685461,13.05.2016,Medina Leisure Centre,Property Services - Day to day Maintenance,88.16,BALFOUR BEATTY
Revenue,Place,Cultural and Related Services,Recreation and Sport,5105684838,25.05.2016,Medina Leisure Centre,Payment to Private Contractors,"1,667.75",BALFOUR BEATTY
Revenue,Place,Cultural and Related Services,Recreation and Sport,5105684892,18.05.2016,Westridge Squash Courts,Property Services - Day to day Maintenance,229.67,BALFOUR BEATTY
Revenue,Place,Cultural and Related Services,Recreation and Sport,5105681769,11.05.2016,Westridge Squash Courts,Property Services - Day to day Maintenance,177.72,BALFOUR BEATTY
Revenue,Place,Cultural and Related Services,Recreation and Sport,5105685130,04.05.2016,Ryde Harbour,Property Services - Day to day Maintenance,57.60,BALFOUR BEATTY
Revenue,Place,Cultural and Related Services,Recreation and Sport,5105684917,18.05.2016,Ryde Harbour,Property Services - Day to day Maintenance,91.70,BALFOUR BEATTY
Revenue,Place,Cultural and Related Services,Recreation and Sport,5105685431,06.05.2016,Shanklin Lift,Property Services - Day to day Maintenance,62.60,BALFOUR BEATTY
Revenue,Place,Cultural and Related Services,Culture and Heritage,5105685549,20.05.2016,Medina Theatre,Property Services - Day to day Maintenance,63.95,BALFOUR BEATTY
Revenue,Childrens Services,Children's & Education Services,Family Support Services,5105685453,20.05.2016,Family Information Zone,Property Services - Day to day Maintenance,71.40,BALFOUR BEATTY
Revenue,Childrens Services,Children's & Education Services,Special Schools & Alternative Provision,5105684793,29.04.2016,Island Learning Centre,Minor Works,68.60,BALFOUR BEATTY
Revenue,Childrens Services,Children's & Education Services,Special Schools & Alternative Provision,5105681769,11.05.2016,Island Learning Centre,Minor Works,296.96,BALFOUR BEATTY
Revenue,Childrens Services,Children's & Education Services,Special Schools & Alternative Provision,5105684892,18.05.2016,Island Learning Centre,Minor Works,63.00,BALFOUR BEATTY
Revenue,Childrens Services,Children's & Education Services,Special Schools & Alternative Provision,5105684892,18.05.2016,Island Learning Centre,Minor Works,26.25,BALFOUR BEATTY
Revenue,Childrens Services,Children's & Education Services,Special Schools & Alternative Provision,5105684838,25.05.2016,Island Learning Centre,Minor Works,24.99,BALFOUR BEATTY
Revenue,Childrens Services,Children's & Education Services,Special Schools & Alternative Provision,5105685718,13.05.2016,Island Learning Centre,Minor Works,71.40,BALFOUR BEATTY
Revenue,Childrens Services,Children's & Education Services,Special Schools & Alternative Provision,5105685430,06.05.2016,Island Learning Centre,Minor Works,58.50,BALFOUR BEATTY
Revenue,Childrens Services,Children's & Education Services,Special Schools & Alternative Provision,5105684923,18.05.2016,Island Learning Centre,Minor Works,34.00,BALFOUR BEATTY
Revenue,Childrens Services,Children's & Education Services,Special Schools & Alternative Provision,5105684838,25.05.2016,Island Learning Centre,Minor Works,58.19,BALFOUR BEATTY
Revenue,Childrens Services,Children's & Education Services,Special Schools & Alternative Provision,5105687383,25.05.2016,Island Learning Centre,Minor Works,230.31,BALFOUR BEATTY
Revenue,Childrens Services,Children's & Education Services,Special Schools & Alternative Provision,5105685712,18.05.2016,Island Learning Centre,Minor Works,378.74,BALFOUR BEATTY
Revenue,Childrens Services,Children's & Education Services,Special Schools & Alternative Provision,5105685501,11.05.2016,Island Learning Centre,Minor Works,71.40,BALFOUR BEATTY
Revenue,Childrens Services,Children's & Education Services,Special Schools & Alternative Provision,5105685492,06.05.2016,Island Learning Centre,Minor Works,111.86,BALFOUR BEATTY
Revenue,Childrens Services,Children's & Education Services,Special Schools & Alternative Provision,5105685453,20.05.2016,Island Learning Centre,Minor Works,226.19,BALFOUR BEATTY
Revenue,Childrens Services,Children's & Education Services,Special Schools & Alternative Provision,5105685549,20.05.2016,Island Learning Centre,Minor Works,132.90,BALFOUR BEATTY
Revenue,Childrens Services,Children's & Education Services,Special Schools & Alternative Provision,5105685556,06.05.2016,Island Learning Centre,Minor Works,40.50,BALFOUR BEATTY
Revenue,Childrens Services,Children's & Education Services,Special Schools & Alternative Provision,5105685571,06.05.2016,Island Learning Centre,Minor Works,-40.50,BALFOUR BEATTY
Revenue,Childrens Services,Children's & Education Services,Special Schools & Alternative Provision,5105685501,11.05.2016,Island Learning Centre,Minor Works,141.12,BALFOUR BEATTY
Revenue,Childrens Services,Children's & Education Services,Services for Young People,5105681769,11.05.2016,Youth- Newport,Property Services - Planned Maintenance,415.84,BALFOUR BEATTY
Revenue,Childrens Services,Children's & Education Services,Management & Support Services,5105685460,18.05.2016,Specialist Service Business Admin,Minor Works,177.00,BALFOUR BEATTY
Revenue,Childrens Services,Children's & Education Services,Management & Support Services,5105685461,13.05.2016,Specialist Service Business Admin,Minor Works,52.45,BALFOUR BEATTY
Revenue,Childrens Services,Children's & Education Services,Management & Support Services,5105684892,18.05.2016,Specialist Service Business Admin,Minor Works,189.00,BALFOUR BEATTY
Revenue,Childrens Services,Children's & Education Services,Management & Support Services,5105685718,13.05.2016,Specialist Service Business Admin,Minor Works,317.95,BALFOUR BEATTY
Revenue,Childrens Services,Children's & Education Services,Management & Support Services,5105685129,04.05.2016,Specialist Service Business Admin,Minor Works,257.25,BALFOUR BEATTY
Revenue,Childrens Services,Children's & Education Services,Children Looked After,5105684923,18.05.2016,Beaulieu House,Minor Works,397.67,BALFOUR BEATTY
Revenue,Childrens Services,Children's & Education Services,Children Looked After,5105685453,20.05.2016,Beaulieu House,Minor Works,88.98,BALFOUR BEATTY
Revenue,Childrens Services,Children's & Education Services,Children Looked After,5105685549,20.05.2016,Beaulieu House,Minor Works,165.00,BALFOUR BEATTY
Revenue,Childrens Services,Children's & Education Services,Children Looked After,5105685501,11.05.2016,Beaulieu House,Minor Works,55.15,BALFOUR BEATTY
Revenue,Childrens Services,Children's & Education Services,Other Education and Community Budget,5105685453,20.05.2016,Branstone Farm Studies Centre,Property Services - Day to day Maintenance,349.65,BALFOUR BEATTY
Revenue,Childrens Services,Children's & Education Services,Support Service & Management Costs,5105685712,18.05.2016,Childrens Centres Maintenance,Property Services - Day to day Maintenance,105.91,BALFOUR BEATTY
Revenue,Childrens Services,Children's & Education Services,Support Service & Management Costs,5105685458,06.05.2016,Childrens Centres Maintenance,Minor Works,345.00,BALFOUR BEATTY
Revenue,Childrens Services,Children's & Education Services,Support Service & Management Costs,5105681769,11.05.2016,Childrens Centres Maintenance,Minor Works,53.00,BALFOUR BEATTY
Revenue,Childrens Services,Children's & Education Services,Support Service & Management Costs,5105685458,06.05.2016,Childrens Centres Maintenance,Minor Works,314.00,BALFOUR BEATTY
Revenue,Childrens Services,Children's & Education Services,Support Service & Management Costs,5105686354,13.05.2016,Childrens Centres Maintenance,Minor Works,45.90,BALFOUR BEATTY
Revenue,Childrens Services,Children's & Education Services,Support Service & Management Costs,5105687383,25.05.2016,Childrens Centres Maintenance,Minor Works,144.02,BALFOUR BEATTY
Revenue,Childrens Services,Children's & Education Services,Support Service & Management Costs,5105685560,06.05.2016,Childrens Centres Maintenance,Minor Works,46.43,BALFOUR BEATTY
Revenue,Childrens Services,Children's & Education Services,Support Service & Management Costs,5105685560,06.05.2016,Childrens Centres Maintenance,Minor Works,58.80,BALFOUR BEATTY
Revenue,Place,Environmental & Regulatory Services,Regulatory Services,5105688742,31.05.2016,Public Conveniences - General,Property Services - Day to day Maintenance,96.90,BALFOUR BEATTY
Revenue,Place,Environmental & Regulatory Services,Regulatory Services,5105685571,06.05.2016,Public Conveniences - General,Property Services - Day to day Maintenance,-105.00,BALFOUR BEATTY
Revenue,Place,Environmental & Regulatory Services,Regulatory Services,5105685556,06.05.2016,Public Conveniences - General,Property Services - Day to day Maintenance,105.00,BALFOUR BEATTY
Revenue,Place,Environmental & Regulatory Services,Regulatory Services,5105685501,11.05.2016,Public Conveniences - General,Property Services - Day to day Maintenance,693.81,BALFOUR BEATTY
Revenue,Place,Environmental & Regulatory Services,Regulatory Services,5105685501,11.05.2016,Public Conveniences - General,Property Services - Day to day Maintenance,85.30,BALFOUR BEATTY
Revenue,Place,Environmental & Regulatory Services,Regulatory Services,5105685492,06.05.2016,Public Conveniences - General,Property Services - Day to day Maintenance,990.00,BALFOUR BEATTY
Revenue,Place,Environmental & Regulatory Services,Regulatory Services,5105685712,18.05.2016,Public Conveniences - General,Property Services - Day to day Maintenance,67.50,BALFOUR BEATTY
Revenue,Place,Environmental & Regulatory Services,Regulatory Services,5105685501,11.05.2016,Public Conveniences - General,Property Services - Day to day Maintenance,453.39,BALFOUR BEATTY
Revenue,Place,Environmental & Regulatory Services,Regulatory Services,5105685460,18.05.2016,Public Conveniences - General,Property Services - Day to day Maintenance,141.22,BALFOUR BEATTY
Revenue,Place,Environmental & Regulatory Services,Regulatory Services,5105685571,06.05.2016,Public Conveniences - General,Property Services - Day to day Maintenance,-78.75,BALFOUR BEATTY
Revenue,Place,Environmental & Regulatory Services,Regulatory Services,5105685556,06.05.2016,Public Conveniences - General,Property Services - Day to day Maintenance,78.75,BALFOUR BEATTY
Revenue,Place,Environmental & Regulatory Services,Regulatory Services,5105686354,13.05.2016,Public Conveniences - General,Property Services - Day to day Maintenance,73.01,BALFOUR BEATTY
Revenue,Place,Environmental & Regulatory Services,Regulatory Services,5105687483,20.05.2016,Public Conveniences - General,Property Services - Day to day Maintenance,38.85,BALFOUR BEATTY
Revenue,Place,Environmental & Regulatory Services,Regulatory Services,5105687383,25.05.2016,Public Conveniences - General,Property Services - Day to day Maintenance,122.85,BALFOUR BEATTY
Revenue,Place,Environmental & Regulatory Services,Regulatory Services,5105684917,18.05.2016,Public Conveniences - General,Property Services - Day to day Maintenance,78.75,BALFOUR BEATTY
Revenue,Place,Environmental & Regulatory Services,Regulatory Services,5105684892,18.05.2016,Public Conveniences - General,Property Services - Day to day Maintenance,27.45,BALFOUR BEATTY
Revenue,Place,Environmental & Regulatory Services,Regulatory Services,5105684923,18.05.2016,Public Conveniences - General,Property Services - Day to day Maintenance,72.00,BALFOUR BEATTY
Revenue,Place,Environmental & Regulatory Services,Regulatory Services,5105684893,25.05.2016,Public Conveniences - General,Property Services - Day to day Maintenance,126.94,BALFOUR BEATTY
Revenue,Place,Environmental & Regulatory Services,Regulatory Services,5105684893,25.05.2016,Public Conveniences - General,Property Services - Day to day Maintenance,134.77,BALFOUR BEATTY
Revenue,Place,Environmental & Regulatory Services,Regulatory Services,5105684893,25.05.2016,Public Conveniences - General,Property Services - Day to day Maintenance,167.14,BALFOUR BEATTY
Revenue,Place,Environmental & Regulatory Services,Regulatory Services,5105685460,18.05.2016,Public Conveniences - General,Property Services - Day to day Maintenance,79.50,BALFOUR BEATTY
Revenue,Place,Environmental & Regulatory Services,Regulatory Services,5105685460,18.05.2016,Public Conveniences - General,Property Services - Day to day Maintenance,78.75,BALFOUR BEATTY
Revenue,Place,Environmental & Regulatory Services,Regulatory Services,5105685718,13.05.2016,Public Conveniences - General,Property Services - Day to day Maintenance,82.20,BALFOUR BEATTY
Revenue,Place,Environmental & Regulatory Services,Regulatory Services,5105685492,06.05.2016,Public Conveniences - General,Property Services - Day to day Maintenance,23.80,BALFOUR BEATTY
Revenue,Place,Environmental & Regulatory Services,Regulatory Services,5105685556,06.05.2016,Public Conveniences - General,Property Services - Day to day Maintenance,77.72,BALFOUR BEATTY
Revenue,Place,Environmental & Regulatory Services,Regulatory Services,5105685571,06.05.2016,Public Conveniences - General,Property Services - Day to day Maintenance,-77.72,BALFOUR BEATTY
Revenue,Place,Environmental & Regulatory Services,Regulatory Services,5105685597,06.05.2016,Public Conveniences - General,Property Services - Day to day Maintenance,"2,286.71",BALFOUR BEATTY
Revenue,Place,Environmental & Regulatory Services,Regulatory Services,5105685202,04.05.2016,Public Conveniences - General,Property Services - Day to day Maintenance,277.47,BALFOUR BEATTY
Revenue,Place,Environmental & Regulatory Services,Regulatory Services,5105685718,13.05.2016,Public Conveniences - General,Property Services - Day to day Maintenance,83.35,BALFOUR BEATTY
Revenue,Place,Environmental & Regulatory Services,Regulatory Services,5105685501,11.05.2016,Public Conveniences - General,Property Services - Day to day Maintenance,52.50,BALFOUR BEATTY
Revenue,Place,Environmental & Regulatory Services,Regulatory Services,5105685131,04.05.2016,Public Conveniences - General,Property Services - Day to day Maintenance,69.15,BALFOUR BEATTY
Revenue,Place,Environmental & Regulatory Services,Regulatory Services,5105685136,04.05.2016,Public Conveniences - General,Property Services - Day to day Maintenance,141.30,BALFOUR BEATTY
Revenue,Place,Environmental & Regulatory Services,Regulatory Services,5105684892,18.05.2016,Public Conveniences - General,Property Services - Day to day Maintenance,246.98,BALFOUR BEATTY
Revenue,Place,Environmental & Regulatory Services,Regulatory Services,5105684893,25.05.2016,Public Conveniences - General,Property Services - Day to day Maintenance,53.70,BALFOUR BEATTY
Revenue,Place,Environmental & Regulatory Services,Regulatory Services,5105684923,18.05.2016,Public Conveniences - General,Property Services - Day to day Maintenance,81.90,BALFOUR BEATTY
Revenue,Place,Environmental & Regulatory Services,Regulatory Services,5105684923,18.05.2016,Public Conveniences - General,Property Services - Day to day Maintenance,109.90,BALFOUR BEATTY
Revenue,Place,Environmental & Regulatory Services,Regulatory Services,5105684923,18.05.2016,Public Conveniences - General,Property Services - Day to day Maintenance,76.15,BALFOUR BEATTY
Revenue,Place,Environmental & Regulatory Services,Regulatory Services,5105684892,18.05.2016,Public Conveniences - General,Property Services - Day to day Maintenance,78.75,BALFOUR BEATTY
Revenue,Place,Environmental & Regulatory Services,Regulatory Services,5105684893,25.05.2016,Public Conveniences - General,Property Services - Day to day Maintenance,223.70,BALFOUR BEATTY
Revenue,Place,Environmental & Regulatory Services,Regulatory Services,5105684893,25.05.2016,Public Conveniences - General,Property Services - Day to day Maintenance,141.45,BALFOUR BEATTY
Revenue,Place,Environmental & Regulatory Services,Regulatory Services,5105684893,25.05.2016,Public Conveniences - General,Property Services - Day to day Maintenance,107.95,BALFOUR BEATTY
Revenue,Place,Cultural and Related Services,Open Spaces,5105684790,27.05.2016,Open space lettings,Property Services - Day to day Maintenance,65.84,BALFOUR BEATTY
Revenue,Place,Cultural and Related Services,Open Spaces,5105684793,29.04.2016,Open space lettings,Property Services - Day to day Maintenance,81.89,BALFOUR BEATTY
Revenue,Place,Cultural and Related Services,Open Spaces,5105685461,13.05.2016,Open space lettings,Property Services - Day to day Maintenance,143.20,BALFOUR BEATTY
Revenue,Place,Cultural and Related Services,Open Spaces,5105685453,20.05.2016,Open space lettings,Property Services - Day to day Maintenance,44.70,BALFOUR BEATTY
Revenue,Place,Cultural and Related Services,Open Spaces,5105685492,06.05.2016,Open space lettings,Property Services - Day to day Maintenance,146.90,BALFOUR BEATTY
Revenue,Place,Cultural and Related Services,Open Spaces,5105684790,27.05.2016,Fort Victoria,Property Services - Day to day Maintenance,85.59,BALFOUR BEATTY
Revenue,Place,Highways and Transport Services,"Airports, Harbours & Toll Facilities",5105685492,06.05.2016,Newport Harbour Account,Property Services - Planned Maintenance,135.02,BALFOUR BEATTY
Revenue,Place,Highways and Transport Services,"Airports, Harbours & Toll Facilities",5105685549,20.05.2016,Newport Harbour Account,Property Services - Day to day Maintenance,42.70,BALFOUR BEATTY
Revenue,Place,Highways and Transport Services,"Airports, Harbours & Toll Facilities",5105684793,29.04.2016,Newport Harbour Account,Property Services - Day to day Maintenance,32.40,BALFOUR BEATTY
Revenue,Place,Fire & Rescue Services,Fire fighting and Rescue Operations,5105684793,29.04.2016,Business Support  - Fire,Property Services - Day to day Maintenance,264.05,BALFOUR BEATTY
Revenue,Place,Fire & Rescue Services,Fire fighting and Rescue Operations,5105685134,04.05.2016,Business Support  - Fire,Property Services - Day to day Maintenance,90.00,BALFOUR BEATTY
Revenue,Place,Fire & Rescue Services,Fire fighting and Rescue Operations,5105685433,06.05.2016,Business Support  - Fire,Property Services - Day to day Maintenance,58.80,BALFOUR BEATTY
Revenue,Place,Fire & Rescue Services,Fire fighting and Rescue Operations,5105684793,29.04.2016,Business Support  - Fire,Property Services - Day to day Maintenance,617.91,BALFOUR BEATTY
Revenue,Place,Fire & Rescue Services,Fire fighting and Rescue Operations,5105685560,06.05.2016,Business Support  - Fire,Property Services - Day to day Maintenance,33.35,BALFOUR BEATTY
Revenue,Place,Fire & Rescue Services,Fire fighting and Rescue Operations,5105685718,13.05.2016,Business Support  - Fire,Property Services - Day to day Maintenance,54.00,BALFOUR BEATTY
Revenue,Place,Fire & Rescue Services,Fire fighting and Rescue Operations,5105685718,13.05.2016,Business Support  - Fire,Property Services - Day to day Maintenance,164.40,BALFOUR BEATTY
Revenue,Place,Fire & Rescue Services,Fire fighting and Rescue Operations,5105687483,20.05.2016,Business Support  - Fire,Property Services - Day to day Maintenance,107.29,BALFOUR BEATTY
Revenue,Place,Fire & Rescue Services,Fire fighting and Rescue Operations,5105685442,11.05.2016,Business Support  - Fire,Property Services - Planned Maintenance,51.45,BALFOUR BEATTY
Revenue,Place,Environmental & Regulatory Services,"Cemetery, Cremation & Mortuary Services",5105684838,25.05.2016,Crematorium,Property Services - Day to day Maintenance,70.50,BALFOUR BEATTY
Revenue,Place,Environmental & Regulatory Services,"Cemetery, Cremation & Mortuary Services",5105685718,13.05.2016,Crematorium,Property Services - Day to day Maintenance,147.80,BALFOUR BEATTY
Revenue,Place,Environmental & Regulatory Services,"Cemetery, Cremation & Mortuary Services",5105685560,06.05.2016,Crematorium,Property Services - Day to day Maintenance,61.25,BALFOUR BEATTY
Revenue,Place,Environmental & Regulatory Services,"Cemetery, Cremation & Mortuary Services",5105684923,18.05.2016,Crematorium,Property Services - Day to day Maintenance,51.35,BALFOUR BEATTY
Revenue,Place,Environmental & Regulatory Services,"Cemetery, Cremation & Mortuary Services",5105684790,27.05.2016,Crematorium,Property Services - Day to day Maintenance,94.25,BALFOUR BEATTY
Revenue,Place,Environmental & Regulatory Services,"Cemetery, Cremation & Mortuary Services",5105687383,25.05.2016,Crematorium,Property Services - Day to day Maintenance,61.20,BALFOUR BEATTY
Capital,Place,Capital,Capital,5105685447,25.05.2016,Parks and Gardens Capital,Payment to Contractors - Capital,"18,618.48",BALFOUR BEATTY
Revenue,Place,Fire & Rescue Services,Fire fighting and Rescue Operations,5105682134,11.05.2016,Fire Technical Support,Payment to Private Contractors,845.89,BALLYCLARE LTD
Revenue,Place,Fire & Rescue Services,Fire fighting and Rescue Operations,5105687889,20.05.2016,Fire Technical Support,Payment to Private Contractors,"2,920.63",BALLYCLARE LTD
Revenue,Public Health,Public Health,Discretionary,5105688588,27.05.2016,My Life a Full Life Public Health,Payment to Private Contractors,"1,750.00",REDACTED PERSONAL DATA
Revenue,Childrens Services,Children's & Education Services,Support Service & Management Costs,5105686338,13.05.2016,Early Help Contracts,Payment to Private Contractors,"340,036.56",BARNARDO'S
Revenue,Place,Planning services,Management & Support Services,5105685527,06.05.2016,Planning Management,Training,399.00,BARONY CONSULTING GROUP LTD
Revenue,Place,Cultural and Related Services,Recreation and Sport,5105685889,11.05.2016,The Heights,Consumable Cleaning Materials,95.55,LAKE CLEANING & CATERING SUPPLIES
Revenue,Place,Cultural and Related Services,Recreation and Sport,5105685684,11.05.2016,The Heights,Consumable Cleaning Materials,64.43,LAKE CLEANING & CATERING SUPPLIES
Revenue,Place,Cultural and Related Services,Recreation and Sport,5105685684,11.05.2016,The Heights,Catering Equipment,26.33,LAKE CLEANING & CATERING SUPPLIES
Revenue,Place,Cultural and Related Services,Recreation and Sport,5105686274,13.05.2016,Westridge Squash Courts,Consumable Cleaning Materials,75.02,LAKE CLEANING & CATERING SUPPLIES
Revenue,Childrens Services,Children's & Education Services,Children Looked After,5105682397,25.05.2016,Beaulieu House,General Materials,146.15,LAKE CLEANING & CATERING SUPPLIES
Revenue,Place,Cultural and Related Services,Recreation and Sport,5105685602,06.05.2016,Commercial Sales Team,Printing Costs,500.00,BEACON MEDIA LIMITED
Revenue,Childrens Services,Children's & Education Services,Management & Support Services,5105687193,18.05.2016,Pre 16 Independ. & Non-Maint. Special Schls & Independ. Specialist Provision,Transport of Clients,396.00,BEACON TAXIS
Revenue,Place,Highways and Transport Services,"Airports, Harbours & Toll Facilities",5105688690,31.05.2016,Newport Harbour Account,Vehicle Maintenance Costs,159.00,BEAUFORT MARINE LTD
Revenue,Adult Services,Adult Social Care,Support - Memory /Cognition-older people (65+),5105686705,18.05.2016,Memory & Cognition Nursing 65+,Charges from Independent Providers,"2,269.40",BEAUMONT LODGE LTD
Revenue,Public Health,Public Health,Mandatory,5105682531,11.05.2016,NHS Health Check Programme,Payment to Private Contractors,938.50,BEECH GROVE SURGERY
Revenue,Public Health,Public Health,Mandatory,5105685781,11.05.2016,NHS Health Check Programme,Payment to Private Contractors,-291.00,BEECH GROVE SURGERY
Revenue,Adult Services,Adult Social Care,Learning Disability Suppt-adults (18-64),5105687055,18.05.2016,Learning Disability Residential 18-64,Charges from Independent Providers,"16,584.68",BEECHWOOD COLLEGE
Revenue,Childrens Services,Children's & Education Services,Children Looked After,5105685184,06.05.2016,Purchased Fostering,Charges from Independent Providers,910.00,BENECARE FOSTERING LTD
Revenue,Childrens Services,Children's & Education Services,Children Looked After,5105687208,18.05.2016,Purchased Fostering,Charges from Independent Providers,910.00,BENECARE FOSTERING LTD
Revenue,Childrens Services,Children's & Education Services,Children Looked After,5105687761,20.05.2016,Purchased Fostering,Charges from Independent Providers,910.00,BENECARE FOSTERING LTD
Revenue,Childrens Services,Children's & Education Services,Children Looked After,5105688266,27.05.2016,Purchased Fostering,Charges from Independent Providers,910.00,BENECARE FOSTERING LTD
Revenue,Childrens Services,Children's & Education Services,Children Looked After,5105688140,25.05.2016,Purchased Residential,Charges from Independent Providers,"14,400.00",BENJAMIN UK LTD
Revenue,Adult Services,Adult Social Care,Information & Early Intervention,5105685657,11.05.2016,Community Laundry Service,Clothing & Laundry,13.74,BERENDSEN
Revenue,Adult Services,Adult Social Care,Information & Early Intervention,5105685643,11.05.2016,Community Laundry Service,Clothing & Laundry,13.74,BERENDSEN
Revenue,Adult Services,Adult Social Care,Information & Early Intervention,5105685641,11.05.2016,Community Laundry Service,Clothing & Laundry,13.74,BERENDSEN
Revenue,Adult Services,Adult Social Care,Information & Early Intervention,5105687177,25.05.2016,Community Laundry Service,Clothing & Laundry,13.74,BERENDSEN
Revenue,Adult Services,Adult Social Care,Information & Early Intervention,5105687447,25.05.2016,Community Laundry Service,Clothing & Laundry,13.74,BERENDSEN
Revenue,Adult Services,Adult Social Care,Information & Early Intervention,5105687451,25.05.2016,Community Laundry Service,Clothing & Laundry,13.74,BERENDSEN
Revenue,Place,Environmental & Regulatory Services,Regulatory Services,5105685653,13.05.2016,Environmental Health - Business Regulation Protection,Clothing & Laundry,10.08,BERENDSEN
Revenue,Place,Environmental & Regulatory Services,Regulatory Services,5105687173,18.05.2016,Environmental Health - Business Regulation Protection,Clothing & Laundry,7.56,BERENDSEN
Revenue,Place,Environmental & Regulatory Services,Regulatory Services,5105687450,18.05.2016,Environmental Health - Business Regulation Protection,Clothing & Laundry,5.04,BERENDSEN
Revenue,Place,Environmental & Regulatory Services,Regulatory Services,5105687473,18.05.2016,Environmental Health - Business Regulation Protection,Clothing & Laundry,10.08,BERENDSEN
Revenue,Place,Cultural and Related Services,Recreation and Sport,5105687485,18.05.2016,Bandstands,Payment to Private Contractors,78.00,BERRY ELECTRICAL LTD
Revenue,Place,Housing Services,Homelessness,5105688267,25.05.2016,B&B Properties,Accommodation Costs - Bed & Breakfast,"7,425.00",BERTRAM LODGE
Revenue,Place,Cultural and Related Services,Culture and Heritage,5105685579,06.05.2016,Dinosaur Isle Museum (Sandown Geology),Stock Purchases,16.05,BEST YEARS LTD
Revenue,Place,Cultural and Related Services,Culture and Heritage,5105685579,06.05.2016,Dinosaur Isle Museum (Sandown Geology),Stock Purchases,16.05,BEST YEARS LTD
Revenue,Place,Cultural and Related Services,Culture and Heritage,5105685579,06.05.2016,Dinosaur Isle Museum (Sandown Geology),Stock Purchases,16.05,BEST YEARS LTD
Revenue,Place,Cultural and Related Services,Culture and Heritage,5105685579,06.05.2016,Dinosaur Isle Museum (Sandown Geology),Stock Purchases,16.05,BEST YEARS LTD
Revenue,Place,Cultural and Related Services,Culture and Heritage,5105685579,06.05.2016,Dinosaur Isle Museum (Sandown Geology),Stock Purchases,21.60,BEST YEARS LTD
Revenue,Place,Cultural and Related Services,Culture and Heritage,5105685579,06.05.2016,Dinosaur Isle Museum (Sandown Geology),Stock Purchases,21.60,BEST YEARS LTD
Revenue,Place,Cultural and Related Services,Culture and Heritage,5105685579,06.05.2016,Dinosaur Isle Museum (Sandown Geology),Stock Purchases,21.60,BEST YEARS LTD
Revenue,Place,Cultural and Related Services,Culture and Heritage,5105685579,06.05.2016,Dinosaur Isle Museum (Sandown Geology),Stock Purchases,10.80,BEST YEARS LTD
Revenue,Place,Cultural and Related Services,Culture and Heritage,5105685579,06.05.2016,Dinosaur Isle Museum (Sandown Geology),Stock Purchases,21.60,BEST YEARS LTD
Revenue,Place,Cultural and Related Services,Culture and Heritage,5105685579,06.05.2016,Dinosaur Isle Museum (Sandown Geology),Stock Purchases,10.80,BEST YEARS LTD
Revenue,Place,Cultural and Related Services,Culture and Heritage,5105685579,06.05.2016,Dinosaur Isle Museum (Sandown Geology),Stock Purchases,25.20,BEST YEARS LTD
Revenue,Place,Cultural and Related Services,Culture and Heritage,5105685579,06.05.2016,Dinosaur Isle Museum (Sandown Geology),Stock Purchases,25.20,BEST YEARS LTD
Revenue,Place,Cultural and Related Services,Culture and Heritage,5105685579,06.05.2016,Dinosaur Isle Museum (Sandown Geology),Stock Purchases,12.60,BEST YEARS LTD
Revenue,Place,Cultural and Related Services,Culture and Heritage,5105685579,06.05.2016,Dinosaur Isle Museum (Sandown Geology),Stock Purchases,30.00,BEST YEARS LTD
Revenue,Place,Cultural and Related Services,Culture and Heritage,5105685579,06.05.2016,Dinosaur Isle Museum (Sandown Geology),Stock Purchases,10.50,BEST YEARS LTD
Revenue,Place,Cultural and Related Services,Culture and Heritage,5105685579,06.05.2016,Dinosaur Isle Museum (Sandown Geology),Stock Purchases,10.50,BEST YEARS LTD
Revenue,Adult Services,Adult Social Care,Learning Disab Supp (to be reallocated),5105688085,25.05.2016,31 Carter Avenue,Operational Equipment,3.29,BETA PAK LTD
Revenue,Adult Services,Adult Social Care,Learning Disab Supp (to be reallocated),5105688480,27.05.2016,31 Carter Avenue,Operational Equipment,17.59,BETA PAK LTD
Revenue,Adult Services,Adult Social Care,Learning Disab Supp (to be reallocated),5105687786,20.05.2016,31 Carter Avenue,Operational Equipment,154.50,BETA PAK LTD
Revenue,Adult Services,Adult Social Care,Learning Disab Supp (to be reallocated),5105685607,11.05.2016,31 Carter Avenue,Operational Equipment,18.97,BETA PAK LTD
Revenue,Adult Services,Adult Social Care,Learning Disab Supp (to be reallocated),5105685515,25.05.2016,Seagulls,Operational Equipment,5.50,BETA PAK LTD
Revenue,Adult Services,Adult Social Care,Learning Disab Supp (to be reallocated),5105685524,25.05.2016,Seagulls,Operational Equipment,-5.50,BETA PAK LTD
Revenue,Adult Services,Adult Social Care,Learning Disab Supp (to be reallocated),5105685883,25.05.2016,Seagulls,Operational Equipment,150.21,BETA PAK LTD
Revenue,Adult Services,Adult Social Care,Learning Disab Supp (to be reallocated),5105686043,13.05.2016,Plean Dene,Operational Equipment,45.72,BETA PAK LTD
Revenue,Adult Services,Adult Social Care,Learning Disab Supp (to be reallocated),5105685814,11.05.2016,Plean Dene,Operational Equipment,162.34,BETA PAK LTD
Revenue,Adult Services,Adult Social Care,Learning Disab Supp (to be reallocated),5105685814,11.05.2016,Plean Dene,Operational Equipment,45.96,BETA PAK LTD
Revenue,Adult Services,Adult Social Care,Learning Disab Supp (to be reallocated),5105688675,27.05.2016,Plean Dene,Operational Equipment,130.25,BETA PAK LTD
Revenue,Adult Services,Adult Social Care,Learning Disab Supp (to be reallocated),5105688501,27.05.2016,Plean Dene,Operational Equipment,45.96,BETA PAK LTD
Revenue,Adult Services,Adult Social Care,Learning Disab Supp (to be reallocated),5105688061,25.05.2016,Plean Dene,Operational Equipment,7.59,BETA PAK LTD
Revenue,Adult Services,Adult Social Care,Learning Disab Supp (to be reallocated),5105687793,25.05.2016,Plean Dene,Operational Equipment,11.10,BETA PAK LTD
Revenue,Adult Services,Adult Social Care,Learning Disab Supp (to be reallocated),5105687480,18.05.2016,Plean Dene,Operational Equipment,59.06,BETA PAK LTD
Revenue,Adult Services,Adult Social Care,Learning Disab Supp (to be reallocated),5105687440,25.05.2016,Saxonbury,Operational Equipment,224.37,BETA PAK LTD
Revenue,Adult Services,Adult Social Care,Learning Disab Supp (to be reallocated),5105688611,27.05.2016,Saxonbury,Operational Equipment,6.59,BETA PAK LTD
Revenue,Adult Services,Adult Social Care,Learning Disab Supp (to be reallocated),5105688616,27.05.2016,Saxonbury,Operational Equipment,209.34,BETA PAK LTD
Revenue,Adult Services,Adult Social Care,Learning Disab Supp (to be reallocated),5105688481,27.05.2016,Saxonbury,Operational Equipment,64.00,BETA PAK LTD
Revenue,Adult Services,Adult Social Care,Learning Disab Supp (to be reallocated),5105685820,11.05.2016,Saxonbury,Operational Equipment,155.03,BETA PAK LTD
Revenue,Adult Services,Adult Social Care,Learning Disab Supp (to be reallocated),5105685676,11.05.2016,Saxonbury,Operational Equipment,2.99,BETA PAK LTD
Revenue,Adult Services,Adult Social Care,Learning Disab Supp (to be reallocated),5105685210,04.05.2016,Saxonbury,Operational Equipment,21.99,BETA PAK LTD
Revenue,Adult Services,Adult Social Care,Learning Disab Supp (to be reallocated),5105685451,06.05.2016,40 Venner Avenue,Operational Equipment,60.76,BETA PAK LTD
Revenue,Adult Services,Adult Social Care,Learning Disab Supp (to be reallocated),5105685811,11.05.2016,40 Venner Avenue,Operational Equipment,154.32,BETA PAK LTD
Revenue,Adult Services,Adult Social Care,Learning Disab Supp (to be reallocated),5105685812,11.05.2016,40 Venner Avenue,Operational Equipment,-21.55,BETA PAK LTD
Revenue,Adult Services,Adult Social Care,Learning Disab Supp (to be reallocated),5105688280,27.05.2016,40 Venner Avenue,Operational Equipment,133.18,BETA PAK LTD
Revenue,Adult Services,Adult Social Care,Learning Disab Supp (to be reallocated),5105686248,13.05.2016,40 Venner Avenue,Operational Equipment,17.90,BETA PAK LTD
Revenue,Adult Services,Adult Social Care,Learning Disab Supp (to be reallocated),5105688506,27.05.2016,The Laurels,Operational Equipment,-88.53,BETA PAK LTD
Revenue,Adult Services,Adult Social Care,Learning Disab Supp (to be reallocated),5105687347,27.05.2016,The Laurels,Operational Equipment,5.73,BETA PAK LTD
Revenue,Adult Services,Adult Social Care,Learning Disab Supp (to be reallocated),5105688109,27.05.2016,The Laurels,Operational Equipment,65.40,BETA PAK LTD
Revenue,Adult Services,Adult Social Care,Learning Disab Supp (to be reallocated),5105688111,27.05.2016,The Laurels,Operational Equipment,88.53,BETA PAK LTD
Revenue,Adult Services,Adult Social Care,Learning Disab Supp (to be reallocated),5105686004,27.05.2016,The Laurels,Operational Equipment,1.29,BETA PAK LTD
Revenue,Adult Services,Adult Social Care,Learning Disab Supp (to be reallocated),5105686007,27.05.2016,The Laurels,Operational Equipment,485.60,BETA PAK LTD
Revenue,Adult Services,Adult Social Care,Learning Disab Supp (to be reallocated),5105684799,04.05.2016,The Laurels,Operational Equipment,36.27,BETA PAK LTD
Revenue,Adult Services,Adult Social Care,Learning Disab Supp (to be reallocated),5105684850,04.05.2016,The Laurels,Operational Equipment,8.06,BETA PAK LTD
Revenue,Adult Services,Adult Social Care,Central Codes (to be reallocated),5105688212,25.05.2016,Adelaide Resource Centre,Consumable Cleaning Materials,2.26,BETA PAK LTD
Revenue,Adult Services,Adult Social Care,Central Codes (to be reallocated),5105685842,11.05.2016,Adelaide Resource Centre,Consumable Cleaning Materials,-1.13,BETA PAK LTD
Revenue,Adult Services,Adult Social Care,Central Codes (to be reallocated),5105687452,18.05.2016,Adelaide Resource Centre,Consumable Cleaning Materials,411.20,BETA PAK LTD
Revenue,Adult Services,Adult Social Care,Central Codes (to be reallocated),5105681743,11.05.2016,Adelaide Resource Centre,Consumable Cleaning Materials,1.13,BETA PAK LTD
Revenue,Adult Services,Adult Social Care,Central Codes (to be reallocated),5105685533,06.05.2016,Adelaide Resource Centre,Consumable Cleaning Materials,652.86,BETA PAK LTD
Revenue,Adult Services,Adult Social Care,Central Codes (to be reallocated),5105685534,06.05.2016,Adelaide Resource Centre,Consumable Cleaning Materials,-205.72,BETA PAK LTD
Revenue,Adult Services,Adult Social Care,Central Codes (to be reallocated),5105688270,25.05.2016,Adelaide Resource Centre,Operational Equipment,15.00,BETA PAK LTD
Revenue,Adult Services,Adult Social Care,Central Codes (to be reallocated),5105688606,27.05.2016,Adelaide Resource Centre,Operational Equipment,17.50,BETA PAK LTD
Revenue,Adult Services,Adult Social Care,Central Codes (to be reallocated),5105685591,11.05.2016,Gouldings Resource Centre,Consumable Cleaning Materials,11.99,BETA PAK LTD
Revenue,Adult Services,Adult Social Care,Central Codes (to be reallocated),5105685529,06.05.2016,Gouldings Resource Centre,Consumable Cleaning Materials,419.28,BETA PAK LTD
Revenue,Adult Services,Adult Social Care,Central Codes (to be reallocated),5105688558,31.05.2016,Gouldings Resource Centre,Consumable Cleaning Materials,750.85,BETA PAK LTD
Revenue,Adult Services,Adult Social Care,Central Codes (to be reallocated),5105688215,25.05.2016,Gouldings Resource Centre,Consumable Cleaning Materials,0.68,BETA PAK LTD
Revenue,Adult Services,Adult Social Care,Central Codes (to be reallocated),5105688112,25.05.2016,Gouldings Resource Centre,Consumable Cleaning Materials,14.04,BETA PAK LTD
Revenue,Adult Services,Adult Social Care,Central Codes (to be reallocated),5105688113,25.05.2016,Gouldings Resource Centre,Consumable Cleaning Materials,39.76,BETA PAK LTD
Revenue,Adult Services,Adult Social Care,Central Codes (to be reallocated),5105687743,20.05.2016,Gouldings Resource Centre,Consumable Cleaning Materials,696.74,BETA PAK LTD
Revenue,Adult Services,Adult Social Care,Learning Disab Supp (to be reallocated),5105685770,11.05.2016,Westminster House,Consumable Cleaning Materials,41.24,BETA PAK LTD
Revenue,Adult Services,Adult Social Care,Learning Disab Supp (to be reallocated),5105685772,11.05.2016,Westminster House,Consumable Cleaning Materials,33.27,BETA PAK LTD
Revenue,Adult Services,Adult Social Care,Learning Disab Supp (to be reallocated),5105685127,04.05.2016,Westminster House,Consumable Cleaning Materials,73.37,BETA PAK LTD
Revenue,Adult Services,Adult Social Care,Learning Disab Supp (to be reallocated),5105685768,11.05.2016,Westminster House,Clothing & Laundry,86.04,BETA PAK LTD
Revenue,Place,Cultural and Related Services,Culture and Heritage,5105687170,18.05.2016,Dinosaur Isle Museum (Sandown Geology),Operational Equipment,19.84,BETA PAK LTD
Revenue,Place,Cultural and Related Services,Culture and Heritage,5105687170,18.05.2016,Dinosaur Isle Museum (Sandown Geology),Operational Equipment,12.84,BETA PAK LTD
Revenue,Place,Cultural and Related Services,Recreation and Sport,5105688108,25.05.2016,The Heights,Maintenance of Operational Equipment,50.00,BETA PAK LTD
Capital,Childrens Services,Capital,Capital,5105687225,18.05.2016,Administration and Inspection Schemes,Payment to Contractors - Capital,180.00,BF KEANE ELECTRICAL CONTRACTORS LTD
Revenue,Adult Services,Adult Social Care,Central Codes (to be reallocated),5105685116,04.05.2016,Adelaide Resource Centre,Catering Purchases,342.90,3663 (BFS GROUP LTD)
Revenue,Adult Services,Adult Social Care,Central Codes (to be reallocated),5105685116,04.05.2016,Adelaide Resource Centre,Catering Purchases,27.18,3663 (BFS GROUP LTD)
Revenue,Adult Services,Adult Social Care,Central Codes (to be reallocated),5105685228,04.05.2016,Adelaide Resource Centre,Catering Purchases,169.13,3663 (BFS GROUP LTD)
Revenue,Adult Services,Adult Social Care,Central Codes (to be reallocated),5105685200,04.05.2016,Adelaide Resource Centre,Catering Purchases,117.17,3663 (BFS GROUP LTD)
Revenue,Adult Services,Adult Social Care,Central Codes (to be reallocated),5105685097,04.05.2016,Adelaide Resource Centre,Catering Purchases,83.92,3663 (BFS GROUP LTD)
Revenue,Adult Services,Adult Social Care,Central Codes (to be reallocated),5105685097,04.05.2016,Adelaide Resource Centre,Catering Purchases,5.14,3663 (BFS GROUP LTD)
Revenue,Adult Services,Adult Social Care,Central Codes (to be reallocated),5105685200,04.05.2016,Adelaide Resource Centre,Catering Purchases,2.57,3663 (BFS GROUP LTD)
Revenue,Adult Services,Adult Social Care,Central Codes (to be reallocated),5105685228,04.05.2016,Adelaide Resource Centre,Catering Purchases,20.55,3663 (BFS GROUP LTD)
Revenue,Adult Services,Adult Social Care,Central Codes (to be reallocated),5105688240,25.05.2016,Adelaide Resource Centre,Catering Purchases,111.91,3663 (BFS GROUP LTD)
Revenue,Adult Services,Adult Social Care,Central Codes (to be reallocated),5105688240,25.05.2016,Adelaide Resource Centre,Catering Purchases,13.52,3663 (BFS GROUP LTD)
Revenue,Adult Services,Adult Social Care,Central Codes (to be reallocated),5105688082,25.05.2016,Adelaide Resource Centre,Catering Purchases,77.35,3663 (BFS GROUP LTD)
Revenue,Adult Services,Adult Social Care,Central Codes (to be reallocated),5105688078,25.05.2016,Adelaide Resource Centre,Catering Purchases,215.36,3663 (BFS GROUP LTD)
Revenue,Adult Services,Adult Social Care,Central Codes (to be reallocated),5105688030,25.05.2016,Adelaide Resource Centre,Catering Purchases,258.11,3663 (BFS GROUP LTD)
Revenue,Adult Services,Adult Social Care,Central Codes (to be reallocated),5105688078,25.05.2016,Adelaide Resource Centre,Catering Purchases,29.32,3663 (BFS GROUP LTD)
Revenue,Adult Services,Adult Social Care,Central Codes (to be reallocated),5105688082,25.05.2016,Adelaide Resource Centre,Catering Purchases,5.14,3663 (BFS GROUP LTD)
Revenue,Adult Services,Adult Social Care,Central Codes (to be reallocated),5105686355,13.05.2016,Adelaide Resource Centre,Catering Purchases,172.26,3663 (BFS GROUP LTD)
Revenue,Adult Services,Adult Social Care,Central Codes (to be reallocated),5105686311,13.05.2016,Adelaide Resource Centre,Catering Purchases,196.09,3663 (BFS GROUP LTD)
Revenue,Adult Services,Adult Social Care,Central Codes (to be reallocated),5105686320,13.05.2016,Adelaide Resource Centre,Catering Purchases,187.44,3663 (BFS GROUP LTD)
Revenue,Adult Services,Adult Social Care,Central Codes (to be reallocated),5105686320,13.05.2016,Adelaide Resource Centre,Catering Purchases,5.14,3663 (BFS GROUP LTD)
Revenue,Adult Services,Adult Social Care,Central Codes (to be reallocated),5105686355,13.05.2016,Adelaide Resource Centre,Catering Purchases,14.41,3663 (BFS GROUP LTD)
Revenue,Adult Services,Adult Social Care,Central Codes (to be reallocated),5105685525,06.05.2016,Adelaide Resource Centre,Catering Purchases,-6.69,3663 (BFS GROUP LTD)
Revenue,Adult Services,Adult Social Care,Central Codes (to be reallocated),5105685526,06.05.2016,Adelaide Resource Centre,Catering Purchases,-17.09,3663 (BFS GROUP LTD)
Revenue,Adult Services,Adult Social Care,Central Codes (to be reallocated),5105686030,13.05.2016,Adelaide Resource Centre,Catering Purchases,275.37,3663 (BFS GROUP LTD)
Revenue,Adult Services,Adult Social Care,Central Codes (to be reallocated),5105686037,13.05.2016,Adelaide Resource Centre,Catering Purchases,17.09,3663 (BFS GROUP LTD)
Revenue,Adult Services,Adult Social Care,Central Codes (to be reallocated),5105686030,13.05.2016,Adelaide Resource Centre,Catering Purchases,24.48,3663 (BFS GROUP LTD)
Revenue,Adult Services,Adult Social Care,Central Codes (to be reallocated),5105685570,06.05.2016,Gouldings Resource Centre,Catering Purchases,241.53,3663 (BFS GROUP LTD)
Revenue,Adult Services,Adult Social Care,Central Codes (to be reallocated),5105685572,06.05.2016,Gouldings Resource Centre,Catering Purchases,44.50,3663 (BFS GROUP LTD)
Revenue,Adult Services,Adult Social Care,Central Codes (to be reallocated),5105685574,06.05.2016,Gouldings Resource Centre,Catering Purchases,74.33,3663 (BFS GROUP LTD)
Revenue,Adult Services,Adult Social Care,Central Codes (to be reallocated),5105685996,11.05.2016,Gouldings Resource Centre,Catering Purchases,122.45,3663 (BFS GROUP LTD)
Revenue,Adult Services,Adult Social Care,Central Codes (to be reallocated),5105685996,11.05.2016,Gouldings Resource Centre,Catering Purchases,4.89,3663 (BFS GROUP LTD)
Revenue,Adult Services,Adult Social Care,Central Codes (to be reallocated),5105685570,06.05.2016,Gouldings Resource Centre,Catering Purchases,18.42,3663 (BFS GROUP LTD)
Revenue,Adult Services,Adult Social Care,Central Codes (to be reallocated),5105687912,20.05.2016,Gouldings Resource Centre,Catering Purchases,458.98,3663 (BFS GROUP LTD)
Revenue,Adult Services,Adult Social Care,Central Codes (to be reallocated),5105687912,20.05.2016,Gouldings Resource Centre,Catering Purchases,120.11,3663 (BFS GROUP LTD)
Revenue,Adult Services,Adult Social Care,Central Codes (to be reallocated),5105687323,18.05.2016,Gouldings Resource Centre,Catering Purchases,422.08,3663 (BFS GROUP LTD)
Revenue,Adult Services,Adult Social Care,Central Codes (to be reallocated),5105687323,18.05.2016,Gouldings Resource Centre,Catering Purchases,9.78,3663 (BFS GROUP LTD)
Revenue,Adult Services,Adult Social Care,Learning Disab Supp (to be reallocated),5105687819,20.05.2016,Westminster House,Catering Purchases,59.02,3663 (BFS GROUP LTD)
Revenue,Adult Services,Adult Social Care,Learning Disab Supp (to be reallocated),5105687729,20.05.2016,Westminster House,Catering Purchases,41.62,3663 (BFS GROUP LTD)
Revenue,Adult Services,Adult Social Care,Learning Disab Supp (to be reallocated),5105685764,11.05.2016,Westminster House,Catering Purchases,157.40,3663 (BFS GROUP LTD)
Revenue,Adult Services,Adult Social Care,Learning Disab Supp (to be reallocated),5105685961,11.05.2016,Westminster House,Catering Purchases,38.36,3663 (BFS GROUP LTD)
Revenue,Place,Cultural and Related Services,Recreation and Sport,5105687518,18.05.2016,Fairway Sports Complex,Stock Purchases,556.78,3663 (BFS GROUP LTD)
Revenue,Place,Cultural and Related Services,Recreation and Sport,5105687509,18.05.2016,The Heights,Stock Purchases,275.02,3663 (BFS GROUP LTD)
Revenue,Place,Cultural and Related Services,Recreation and Sport,5105687507,18.05.2016,The Heights,Stock Purchases,94.28,3663 (BFS GROUP LTD)
Revenue,Place,Cultural and Related Services,Recreation and Sport,5105687507,18.05.2016,The Heights,Stock Purchases,15.09,3663 (BFS GROUP LTD)
Revenue,Place,Cultural and Related Services,Recreation and Sport,5105685505,06.05.2016,The Heights,Stock Purchases,75.21,3663 (BFS GROUP LTD)
Revenue,Place,Cultural and Related Services,Recreation and Sport,5105685505,06.05.2016,The Heights,Stock Purchases,65.59,3663 (BFS GROUP LTD)
Revenue,Place,Cultural and Related Services,Recreation and Sport,5105685469,06.05.2016,The Heights,Stock Purchases,122.29,3663 (BFS GROUP LTD)
Revenue,Place,Cultural and Related Services,Recreation and Sport,5105685584,06.05.2016,The Heights,Stock Purchases,261.87,3663 (BFS GROUP LTD)
Revenue,Place,Cultural and Related Services,Recreation and Sport,5105685765,11.05.2016,The Heights,Stock Purchases,45.51,3663 (BFS GROUP LTD)
Revenue,Place,Cultural and Related Services,Recreation and Sport,5105685765,11.05.2016,The Heights,Stock Purchases,24.52,3663 (BFS GROUP LTD)
Revenue,Place,Cultural and Related Services,Recreation and Sport,5105685247,06.05.2016,The Heights,Stock Purchases,38.62,3663 (BFS GROUP LTD)
Revenue,Place,Cultural and Related Services,Recreation and Sport,5105685247,06.05.2016,The Heights,Stock Purchases,51.87,3663 (BFS GROUP LTD)
Revenue,Place,Cultural and Related Services,Recreation and Sport,5105687516,18.05.2016,Westridge Squash Courts,Stock Purchases,205.87,3663 (BFS GROUP LTD)
Revenue,Place,Cultural and Related Services,Library Service,5105688031,25.05.2016,Public Libraries Central,Stationery,79.24,BIBLIOTHECA LTD
Revenue,Place,Central Services,Support Services,5105686420,13.05.2016,"Enterprise House, Newport","Refuse Collection, Disposal and Recycling Costs",199.10,BIFFA WASTE SERVICES LTD
Revenue,Place,Central Services,Support Services,5105686420,13.05.2016,"Civic Centre,Sandown","Refuse Collection, Disposal and Recycling Costs",183.85,BIFFA WASTE SERVICES LTD
Revenue,Place,Central Services,Support Services,5105686420,13.05.2016,"Jubilee Stores, Newport","Refuse Collection, Disposal and Recycling Costs",108.20,BIFFA WASTE SERVICES LTD
Revenue,Place,Central Services,Support Services,5105686420,13.05.2016,"Westridge, Ryde","Refuse Collection, Disposal and Recycling Costs",70.44,BIFFA WASTE SERVICES LTD
Revenue,Resources,Central Services,Support Services,5105686420,13.05.2016,ICT Contracts,"Refuse Collection, Disposal and Recycling Costs",6.30,BIFFA WASTE SERVICES LTD
Revenue,Adult Services,Adult Social Care,Assistive Equipment & Technology,5105686420,13.05.2016,S75 Integrated Community Equipment Store,"Refuse Collection, Disposal and Recycling Costs",199.18,BIFFA WASTE SERVICES LTD
Revenue,Adult Services,Adult Social Care,Learning Disab Supp (to be reallocated),5105686420,13.05.2016,31 Carter Avenue,"Refuse Collection, Disposal and Recycling Costs",108.20,BIFFA WASTE SERVICES LTD
Revenue,Adult Services,Adult Social Care,Learning Disab Supp (to be reallocated),5105686420,13.05.2016,Overbrook,"Refuse Collection, Disposal and Recycling Costs",123.78,BIFFA WASTE SERVICES LTD
Revenue,Adult Services,Adult Social Care,Learning Disab Supp (to be reallocated),5105686420,13.05.2016,Seagulls,"Refuse Collection, Disposal and Recycling Costs",108.20,BIFFA WASTE SERVICES LTD
Revenue,Adult Services,Adult Social Care,Learning Disab Supp (to be reallocated),5105686420,13.05.2016,Plean Dene,"Refuse Collection, Disposal and Recycling Costs",210.10,BIFFA WASTE SERVICES LTD
Revenue,Adult Services,Adult Social Care,Learning Disab Supp (to be reallocated),5105686420,13.05.2016,Saxonbury,"Refuse Collection, Disposal and Recycling Costs",102.70,BIFFA WASTE SERVICES LTD
Revenue,Adult Services,Adult Social Care,Learning Disab Supp (to be reallocated),5105686420,13.05.2016,40 Venner Avenue,"Refuse Collection, Disposal and Recycling Costs",108.20,BIFFA WASTE SERVICES LTD
Revenue,Adult Services,Adult Social Care,Learning Disab Supp (to be reallocated),5105686420,13.05.2016,Highmead,"Refuse Collection, Disposal and Recycling Costs",67.44,BIFFA WASTE SERVICES LTD
Revenue,Adult Services,Adult Social Care,Learning Disab Supp (to be reallocated),5105686420,13.05.2016,The Laurels,"Refuse Collection, Disposal and Recycling Costs",67.44,BIFFA WASTE SERVICES LTD
Revenue,Adult Services,Adult Social Care,Commissioning & Service Delivery,5105686420,13.05.2016,Stores Adult Social Care,"Refuse Collection, Disposal and Recycling Costs",25.10,BIFFA WASTE SERVICES LTD
Revenue,Adult Services,Adult Social Care,Central Codes (to be reallocated),5105685734,25.05.2016,Gouldings Resource Centre,"Refuse Collection, Disposal and Recycling Costs",296.24,BIFFA WASTE SERVICES LTD
Revenue,Adult Services,Adult Social Care,Central Codes (to be reallocated),5105687494,18.05.2016,Gouldings Resource Centre,"Refuse Collection, Disposal and Recycling Costs",114.50,BIFFA WASTE SERVICES LTD
Revenue,Adult Services,Adult Social Care,Central Codes (to be reallocated),5105687495,18.05.2016,Gouldings Resource Centre,"Refuse Collection, Disposal and Recycling Costs",355.20,BIFFA WASTE SERVICES LTD
Revenue,Adult Services,Adult Social Care,Central Codes (to be reallocated),5105687711,25.05.2016,Gouldings Resource Centre,"Refuse Collection, Disposal and Recycling Costs",105.24,BIFFA WASTE SERVICES LTD
Revenue,Adult Services,Adult Social Care,Learning Disab Supp (to be reallocated),5105686420,13.05.2016,Westminster House,"Refuse Collection, Disposal and Recycling Costs",57.80,BIFFA WASTE SERVICES LTD
Revenue,Place,Cultural and Related Services,Library Service,5105686420,13.05.2016,Public Libraries Central,"Refuse Collection, Disposal and Recycling Costs",345.68,BIFFA WASTE SERVICES LTD
Revenue,Childrens Services,Children's & Education Services,Other Education and Community Budget,5105686420,13.05.2016,Learning & Development Running Costs,"Refuse Collection, Disposal and Recycling Costs",44.86,BIFFA WASTE SERVICES LTD
Revenue,Place,Cultural and Related Services,Culture and Heritage,5105686420,13.05.2016,Cothey Bottom Store RYDE,"Refuse Collection, Disposal and Recycling Costs",35.22,BIFFA WASTE SERVICES LTD
Revenue,Place,Cultural and Related Services,Culture and Heritage,5105686420,13.05.2016,Dinosaur Isle Museum (Sandown Geology),"Refuse Collection, Disposal and Recycling Costs",48.39,BIFFA WASTE SERVICES LTD
Revenue,Place,Cultural and Related Services,Recreation and Sport,5105686420,13.05.2016,The Heights,"Refuse Collection, Disposal and Recycling Costs",314.24,BIFFA WASTE SERVICES LTD
Revenue,Place,Cultural and Related Services,Recreation and Sport,5105686420,13.05.2016,Medina Leisure Centre,"Refuse Collection, Disposal and Recycling Costs",403.09,BIFFA WASTE SERVICES LTD
Revenue,Place,Cultural and Related Services,Recreation and Sport,5105686420,13.05.2016,Westridge Squash Courts,"Refuse Collection, Disposal and Recycling Costs",35.22,BIFFA WASTE SERVICES LTD
Revenue,Place,Cultural and Related Services,Recreation and Sport,5105686420,13.05.2016,Ryde Harbour,"Refuse Collection, Disposal and Recycling Costs",80.59,BIFFA WASTE SERVICES LTD
Revenue,Place,Cultural and Related Services,Recreation and Sport,5105686420,13.05.2016,Seaclose Amusements,"Refuse Collection, Disposal and Recycling Costs",15.31,BIFFA WASTE SERVICES LTD
Revenue,Childrens Services,Children's & Education Services,Family Support Services,5105686420,13.05.2016,Family Information Zone,"Refuse Collection, Disposal and Recycling Costs",21.77,BIFFA WASTE SERVICES LTD
Revenue,Childrens Services,Children's & Education Services,Management & Support Services,5105686420,13.05.2016,Specialist Service Business Admin,"Refuse Collection, Disposal and Recycling Costs",205.40,BIFFA WASTE SERVICES LTD
Revenue,Childrens Services,Children's & Education Services,Children Looked After,5105686420,13.05.2016,Beaulieu House,"Refuse Collection, Disposal and Recycling Costs",222.37,BIFFA WASTE SERVICES LTD
Revenue,Childrens Services,Children's & Education Services,Other Education and Community Budget,5105686420,13.05.2016,SEND Independent Advice & Support,"Refuse Collection, Disposal and Recycling Costs",21.78,BIFFA WASTE SERVICES LTD
Revenue,Place,Highways and Transport Services,"Airports, Harbours & Toll Facilities",5105686420,13.05.2016,Ferry Management,"Refuse Collection, Disposal and Recycling Costs",108.20,BIFFA WASTE SERVICES LTD
Revenue,Place,Cultural and Related Services,Open Spaces,5105686420,13.05.2016,Countryside Management,Operational Equipment,360.30,BIFFA WASTE SERVICES LTD
Revenue,Place,Cultural and Related Services,Open Spaces,5105686420,13.05.2016,Countryside Management,Operational Equipment,79.50,BIFFA WASTE SERVICES LTD
Revenue,Place,Cultural and Related Services,Open Spaces,5105686420,13.05.2016,Fort Victoria,"Refuse Collection, Disposal and Recycling Costs",166.84,BIFFA WASTE SERVICES LTD
Revenue,Place,Highways and Transport Services,"Airports, Harbours & Toll Facilities",5105686420,13.05.2016,Newport Harbour Account,"Refuse Collection, Disposal and Recycling Costs",191.48,BIFFA WASTE SERVICES LTD
Revenue,Place,Highways and Transport Services,"Airports, Harbours & Toll Facilities",5105686420,13.05.2016,Newport Harbour Account,"Refuse Collection, Disposal and Recycling Costs",6.30,BIFFA WASTE SERVICES LTD
Revenue,Place,Fire & Rescue Services,Fire fighting and Rescue Operations,5105686420,13.05.2016,Fire Operations,"Refuse Collection, Disposal and Recycling Costs",376.40,BIFFA WASTE SERVICES LTD
Revenue,Place,Planning services,Management & Support Services,5105686420,13.05.2016,Planning Management,"Refuse Collection, Disposal and Recycling Costs",166.84,BIFFA WASTE SERVICES LTD
Revenue,Place,Environmental & Regulatory Services,"Cemetery, Cremation & Mortuary Services",5105686420,13.05.2016,Crematorium,"Refuse Collection, Disposal and Recycling Costs",199.10,BIFFA WASTE SERVICES LTD
Revenue,Childrens Services,Children's & Education Services,Children Looked After,5105686339,20.05.2016,In-house Fostering,Advertising & Publicity,480.00,BILTMORE PRINTERS
Revenue,Childrens Services,Children's & Education Services,Children Looked After,5105686339,20.05.2016,In-house Fostering,Advertising & Publicity,50.00,BILTMORE PRINTERS
Revenue,Childrens Services,Children's & Education Services,Children Looked After,5105687730,20.05.2016,In-house Fostering,Advertising & Publicity,"3,000.00",BILTMORE PRINTERS
Revenue,Childrens Services,Children's & Education Services,Children Looked After,5105687723,20.05.2016,In-house Fostering,Advertising & Publicity,480.00,BILTMORE PRINTERS
Revenue,Resources,Central Services,Support Services,5105687977,25.05.2016,Staff Benefits,Payment to Private Contractors,70.20,BLACKBERRY LANE PRE-SCHOOL
Revenue,Resources,Central Services,Support Services,5105687977,25.05.2016,Staff Benefits,Payment to Private Contractors,189.15,BLACKBERRY LANE PRE-SCHOOL
Revenue,Childrens Services,Children's & Education Services,Children Looked After,5105685464,06.05.2016,Purchased Fostering,Charges from Independent Providers,"2,023.74",BLUE SKY FOSTERING LTD
Revenue,Place,Fire & Rescue Services,Fire fighting and Rescue Operations,5105687913,20.05.2016,Fire Technical Support,Vehicle Maintenance Costs,136.80,BLUELITE GRAPHICS LTD
Revenue,Place,Fire & Rescue Services,Fire fighting and Rescue Operations,5105687913,20.05.2016,Fire Technical Support,Vehicle Maintenance Costs,11.55,BLUELITE GRAPHICS LTD
Revenue,Childrens Services,Children's & Education Services,Children Looked After,5105683781,27.05.2016,Beaulieu House,General Materials,44.80,BOC LTD
Revenue,Childrens Services,Children's & Education Services,Family Support Services,5105687817,20.05.2016,Short Breaks,Charges from Independent Providers,515.00,BODSTER EQUINE ASSISTED LEARN CIC
Revenue,Adult Services,Adult Social Care,Learning Disab Supp (to be reallocated),5105686033,18.05.2016,Overbrook,Catering Purchases,134.86,BOOKER CASH & CARRY LTD
Revenue,Adult Services,Adult Social Care,Learning Disab Supp (to be reallocated),5105686034,18.05.2016,Overbrook,Catering Purchases,4.99,BOOKER CASH & CARRY LTD
Revenue,Adult Services,Adult Social Care,Learning Disab Supp (to be reallocated),5105685236,06.05.2016,Plean Dene,Catering Purchases,5.08,BOOKER CASH & CARRY LTD
Revenue,Adult Services,Adult Social Care,Learning Disab Supp (to be reallocated),5105685229,06.05.2016,Plean Dene,Catering Purchases,14.10,BOOKER CASH & CARRY LTD
Revenue,Adult Services,Adult Social Care,Learning Disab Supp (to be reallocated),5105688500,27.05.2016,Plean Dene,Catering Purchases,11.47,BOOKER CASH & CARRY LTD
Revenue,Adult Services,Adult Social Care,Learning Disab Supp (to be reallocated),5105688497,27.05.2016,Plean Dene,Catering Purchases,73.87,BOOKER CASH & CARRY LTD
Revenue,Adult Services,Adult Social Care,Learning Disab Supp (to be reallocated),5105688503,27.05.2016,Plean Dene,Catering Purchases,10.98,BOOKER CASH & CARRY LTD
Revenue,Adult Services,Adult Social Care,Learning Disab Supp (to be reallocated),5105688584,27.05.2016,Plean Dene,Catering Purchases,5.73,BOOKER CASH & CARRY LTD
Revenue,Adult Services,Adult Social Care,Learning Disab Supp (to be reallocated),5105688727,31.05.2016,Plean Dene,Catering Purchases,136.67,BOOKER CASH & CARRY LTD
Revenue,Adult Services,Adult Social Care,Learning Disab Supp (to be reallocated),5105688728,31.05.2016,Plean Dene,Catering Purchases,8.46,BOOKER CASH & CARRY LTD
Revenue,Adult Services,Adult Social Care,Learning Disab Supp (to be reallocated),5105688272,25.05.2016,Plean Dene,Catering Purchases,19.76,BOOKER CASH & CARRY LTD
Revenue,Adult Services,Adult Social Care,Learning Disab Supp (to be reallocated),5105688224,25.05.2016,Plean Dene,Catering Purchases,8.49,BOOKER CASH & CARRY LTD
Revenue,Adult Services,Adult Social Care,Learning Disab Supp (to be reallocated),5105688727,31.05.2016,Plean Dene,Catering Purchases,15.95,BOOKER CASH & CARRY LTD
Revenue,Adult Services,Adult Social Care,Learning Disab Supp (to be reallocated),5105688497,27.05.2016,Plean Dene,Catering Purchases,11.36,BOOKER CASH & CARRY LTD
Revenue,Adult Services,Adult Social Care,Learning Disab Supp (to be reallocated),5105686282,20.05.2016,Plean Dene,Catering Purchases,8.84,BOOKER CASH & CARRY LTD
Revenue,Adult Services,Adult Social Care,Learning Disab Supp (to be reallocated),5105686349,13.05.2016,Plean Dene,Catering Purchases,28.38,BOOKER CASH & CARRY LTD
Revenue,Adult Services,Adult Social Care,Learning Disab Supp (to be reallocated),5105686349,13.05.2016,Plean Dene,Catering Purchases,3.49,BOOKER CASH & CARRY LTD
Revenue,Adult Services,Adult Social Care,Learning Disab Supp (to be reallocated),5105687183,25.05.2016,Plean Dene,Catering Purchases,17.63,BOOKER CASH & CARRY LTD
Revenue,Adult Services,Adult Social Care,Learning Disab Supp (to be reallocated),5105687183,25.05.2016,Plean Dene,Catering Purchases,4.99,BOOKER CASH & CARRY LTD
Revenue,Adult Services,Adult Social Care,Learning Disab Supp (to be reallocated),5105687531,20.05.2016,Plean Dene,Catering Purchases,16.11,BOOKER CASH & CARRY LTD
Revenue,Adult Services,Adult Social Care,Learning Disab Supp (to be reallocated),5105687298,20.05.2016,Plean Dene,Catering Purchases,5.04,BOOKER CASH & CARRY LTD
Revenue,Adult Services,Adult Social Care,Learning Disab Supp (to be reallocated),5105687333,18.05.2016,Plean Dene,Catering Purchases,169.85,BOOKER CASH & CARRY LTD
Revenue,Adult Services,Adult Social Care,Learning Disab Supp (to be reallocated),5105687333,18.05.2016,Plean Dene,Catering Purchases,30.84,BOOKER CASH & CARRY LTD
Revenue,Adult Services,Adult Social Care,Learning Disab Supp (to be reallocated),5105688070,25.05.2016,Plean Dene,Catering Purchases,24.66,BOOKER CASH & CARRY LTD
Revenue,Adult Services,Adult Social Care,Learning Disab Supp (to be reallocated),5105688116,25.05.2016,Plean Dene,Catering Purchases,121.19,BOOKER CASH & CARRY LTD
Revenue,Adult Services,Adult Social Care,Learning Disab Supp (to be reallocated),5105688123,25.05.2016,Plean Dene,Catering Purchases,22.38,BOOKER CASH & CARRY LTD
Revenue,Adult Services,Adult Social Care,Learning Disab Supp (to be reallocated),5105688116,25.05.2016,Plean Dene,Catering Purchases,32.90,BOOKER CASH & CARRY LTD
Revenue,Adult Services,Adult Social Care,Learning Disab Supp (to be reallocated),5105686039,13.05.2016,Plean Dene,Catering Purchases,49.78,BOOKER CASH & CARRY LTD
Revenue,Adult Services,Adult Social Care,Learning Disab Supp (to be reallocated),5105685979,11.05.2016,Plean Dene,Catering Purchases,116.72,BOOKER CASH & CARRY LTD
Revenue,Adult Services,Adult Social Care,Learning Disab Supp (to be reallocated),5105685929,11.05.2016,Plean Dene,Catering Purchases,8.81,BOOKER CASH & CARRY LTD
Revenue,Adult Services,Adult Social Care,Learning Disab Supp (to be reallocated),5105685793,11.05.2016,Plean Dene,Catering Purchases,29.30,BOOKER CASH & CARRY LTD
Revenue,Adult Services,Adult Social Care,Learning Disab Supp (to be reallocated),5105685471,06.05.2016,Plean Dene,Catering Purchases,12.14,BOOKER CASH & CARRY LTD
Revenue,Adult Services,Adult Social Care,Learning Disab Supp (to be reallocated),5105685575,06.05.2016,Plean Dene,Catering Purchases,15.04,BOOKER CASH & CARRY LTD
Revenue,Adult Services,Adult Social Care,Learning Disab Supp (to be reallocated),5105685618,11.05.2016,Plean Dene,Catering Purchases,8.49,BOOKER CASH & CARRY LTD
Revenue,Adult Services,Adult Social Care,Learning Disab Supp (to be reallocated),5105685649,11.05.2016,Plean Dene,Catering Purchases,132.51,BOOKER CASH & CARRY LTD
Revenue,Adult Services,Adult Social Care,Learning Disab Supp (to be reallocated),5105685649,11.05.2016,Plean Dene,Catering Purchases,21.91,BOOKER CASH & CARRY LTD
Revenue,Adult Services,Adult Social Care,Learning Disab Supp (to be reallocated),5105685471,06.05.2016,Plean Dene,Catering Purchases,12.65,BOOKER CASH & CARRY LTD
Revenue,Adult Services,Adult Social Care,Learning Disab Supp (to be reallocated),5105685979,11.05.2016,Plean Dene,Catering Purchases,22.96,BOOKER CASH & CARRY LTD
Revenue,Childrens Services,Children's & Education Services,Management & Support Services,5105688586,27.05.2016,Pupil Premium Managed Centrally,General Materials,600.48,BOOKTRUST
Revenue,Childrens Services,Children's & Education Services,Management & Support Services,5105688586,27.05.2016,Pupil Premium Managed Centrally,General Materials,174.52,BOOKTRUST
Revenue,Childrens Services,Children's & Education Services,Management & Support Services,5105688586,27.05.2016,Pupil Premium Managed Centrally,General Materials,700.56,BOOKTRUST
Revenue,Childrens Services,Children's & Education Services,Management & Support Services,5105688586,27.05.2016,Pupil Premium Managed Centrally,General Materials,203.78,BOOKTRUST
Revenue,Childrens Services,Children's & Education Services,Management & Support Services,5105688586,27.05.2016,Pupil Premium Managed Centrally,General Materials,400.32,BOOKTRUST
Revenue,Childrens Services,Children's & Education Services,Management & Support Services,5105688586,27.05.2016,Pupil Premium Managed Centrally,General Materials,116.40,BOOKTRUST
Revenue,Childrens Services,Children's & Education Services,Management & Support Services,5105688586,27.05.2016,Pupil Premium Managed Centrally,General Materials,200.14,BOOKTRUST
Revenue,Childrens Services,Children's & Education Services,Management & Support Services,5105688586,27.05.2016,Pupil Premium Managed Centrally,General Materials,58.20,BOOKTRUST
Revenue,Public Health,Public Health,Mandatory,5105685248,06.05.2016,Contraception,Payment to Private Contractors,279.50,BOOTS THE CHEMIST LTD (Ryde)
Revenue,Public Health,Public Health,Mandatory,5105685248,06.05.2016,Contraception,Payment to Private Contractors,26.00,BOOTS THE CHEMIST LTD (Ryde)
Revenue,Public Health,Public Health,Mandatory,5105685248,06.05.2016,Contraception,Payment to Private Contractors,98.35,BOOTS THE CHEMIST LTD (Ryde)
Revenue,Public Health,Public Health,Mandatory,5105688762,31.05.2016,Contraception,Payment to Private Contractors,301.00,BOOTS THE CHEMIST LTD (Ryde)
Revenue,Public Health,Public Health,Mandatory,5105688762,31.05.2016,Contraception,Payment to Private Contractors,20.80,BOOTS THE CHEMIST LTD (Ryde)
Revenue,Public Health,Public Health,Mandatory,5105688762,31.05.2016,Contraception,Payment to Private Contractors,140.50,BOOTS THE CHEMIST LTD (Ryde)
Revenue,Public Health,Public Health,Discretionary,5105685248,06.05.2016,STI Tests & Treatment,Payment to Private Contractors,30.00,BOOTS THE CHEMIST LTD (Ryde)
Revenue,Public Health,Public Health,Discretionary,5105685248,06.05.2016,STI Tests & Treatment,Payment to Private Contractors,8.04,BOOTS THE CHEMIST LTD (Ryde)
Revenue,Public Health,Public Health,Discretionary,5105688762,31.05.2016,STI Tests & Treatment,Payment to Private Contractors,90.00,BOOTS THE CHEMIST LTD (Ryde)
Revenue,Public Health,Public Health,Discretionary,5105688762,31.05.2016,STI Tests & Treatment,Payment to Private Contractors,24.12,BOOTS THE CHEMIST LTD (Ryde)
Revenue,Public Health,Public Health,Discretionary,5105685248,06.05.2016,Drug Misuse Adult- Treatment,Payment to Private Contractors,430.50,BOOTS THE CHEMIST LTD (Ryde)
Revenue,Public Health,Public Health,Discretionary,5105685248,06.05.2016,Drug Misuse Adult- Treatment,Payment to Private Contractors,742.00,BOOTS THE CHEMIST LTD (Ryde)
Revenue,Public Health,Public Health,Discretionary,5105688762,31.05.2016,Drug Misuse Adult- Treatment,Payment to Private Contractors,448.00,BOOTS THE CHEMIST LTD (Ryde)
Revenue,Public Health,Public Health,Discretionary,5105688762,31.05.2016,Drug Misuse Adult- Treatment,Payment to Private Contractors,422.00,BOOTS THE CHEMIST LTD (Ryde)
Revenue,Public Health,Public Health,Discretionary,5105688762,31.05.2016,Drug Misuse Adult- Treatment,Payment to Private Contractors,30.00,BOOTS THE CHEMIST LTD (Ryde)
Revenue,Public Health,Public Health,Mandatory,5105685149,04.05.2016,Contraception,Payment to Private Contractors,43.00,BOOTS UK LTD (107 HIGH ST SANDOWN)
Revenue,Public Health,Public Health,Mandatory,5105685149,04.05.2016,Contraception,Payment to Private Contractors,10.40,BOOTS UK LTD (107 HIGH ST SANDOWN)
Revenue,Public Health,Public Health,Mandatory,5105687854,20.05.2016,Contraception,Payment to Private Contractors,21.50,BOOTS UK LTD (107 HIGH ST SANDOWN)
Revenue,Public Health,Public Health,Mandatory,5105687854,20.05.2016,Contraception,Payment to Private Contractors,5.20,BOOTS UK LTD (107 HIGH ST SANDOWN)
Revenue,Public Health,Public Health,Discretionary,5105685149,04.05.2016,Drug Misuse Adult- Treatment,Payment to Private Contractors,52.50,BOOTS UK LTD (107 HIGH ST SANDOWN)
Revenue,Public Health,Public Health,Discretionary,5105685149,04.05.2016,Drug Misuse Adult- Treatment,Payment to Private Contractors,316.00,BOOTS UK LTD (107 HIGH ST SANDOWN)
Revenue,Public Health,Public Health,Discretionary,5105687854,20.05.2016,Drug Misuse Adult- Treatment,Payment to Private Contractors,73.50,BOOTS UK LTD (107 HIGH ST SANDOWN)
Revenue,Public Health,Public Health,Discretionary,5105687854,20.05.2016,Drug Misuse Adult- Treatment,Payment to Private Contractors,204.00,BOOTS UK LTD (107 HIGH ST SANDOWN)
Revenue,Public Health,Public Health,Discretionary,5105687854,20.05.2016,Drug Misuse Adult- Treatment,Payment to Private Contractors,30.00,BOOTS UK LTD (107 HIGH ST SANDOWN)
Revenue,Public Health,Public Health,Mandatory,5105685148,04.05.2016,Contraception,Payment to Private Contractors,64.50,BOOTS UK LTD (COWES)
Revenue,Public Health,Public Health,Mandatory,5105685148,04.05.2016,Contraception,Payment to Private Contractors,10.40,BOOTS UK LTD (COWES)
Revenue,Public Health,Public Health,Discretionary,5105687771,20.05.2016,Drug Misuse Adult- Treatment,Payment to Private Contractors,30.00,BOOTS UK LTD (COWES)
Revenue,Public Health,Public Health,Discretionary,5105687769,20.05.2016,Drug Misuse Adult- Treatment,Payment to Private Contractors,30.00,BOOTS UK LTD (FRESHWATER)
Revenue,Public Health,Public Health,Mandatory,5105685243,06.05.2016,Contraception,Payment to Private Contractors,645.00,BOOTS UK LTD (NEWPORT)
Revenue,Public Health,Public Health,Mandatory,5105685243,06.05.2016,Contraception,Payment to Private Contractors,78.00,BOOTS UK LTD (NEWPORT)
Revenue,Public Health,Public Health,Mandatory,5105685243,06.05.2016,Contraception,Payment to Private Contractors,210.75,BOOTS UK LTD (NEWPORT)
Revenue,Public Health,Public Health,Mandatory,5105685243,06.05.2016,Contraception,Payment to Private Contractors,7.10,BOOTS UK LTD (NEWPORT)
Revenue,Public Health,Public Health,Discretionary,5105685243,06.05.2016,Drug Misuse Adult- Treatment,Payment to Private Contractors,238.00,BOOTS UK LTD (NEWPORT)
Revenue,Public Health,Public Health,Discretionary,5105685243,06.05.2016,Drug Misuse Adult- Treatment,Payment to Private Contractors,794.00,BOOTS UK LTD (NEWPORT)
Revenue,Public Health,Public Health,Mandatory,5105685239,06.05.2016,Contraception,Payment to Private Contractors,64.50,BOOTS UK LTD (SANDOWN LARGE STORE)
Revenue,Public Health,Public Health,Mandatory,5105685239,06.05.2016,Contraception,Payment to Private Contractors,15.60,BOOTS UK LTD (SANDOWN LARGE STORE)
Revenue,Public Health,Public Health,Mandatory,5105687850,20.05.2016,Contraception,Payment to Private Contractors,107.50,BOOTS UK LTD (SANDOWN LARGE STORE)
Revenue,Public Health,Public Health,Mandatory,5105687850,20.05.2016,Contraception,Payment to Private Contractors,20.80,BOOTS UK LTD (SANDOWN LARGE STORE)
Revenue,Public Health,Public Health,Mandatory,5105687850,20.05.2016,Contraception,Payment to Private Contractors,14.05,BOOTS UK LTD (SANDOWN LARGE STORE)
Revenue,Public Health,Public Health,Discretionary,5105685239,06.05.2016,Drug Misuse Adult- Treatment,Payment to Private Contractors,24.00,BOOTS UK LTD (SANDOWN LARGE STORE)
Revenue,Public Health,Public Health,Discretionary,5105685239,06.05.2016,Drug Misuse Adult- Treatment,Payment to Private Contractors,17.50,BOOTS UK LTD (SANDOWN LARGE STORE)
Revenue,Public Health,Public Health,Discretionary,5105687850,20.05.2016,Drug Misuse Adult- Treatment,Payment to Private Contractors,42.00,BOOTS UK LTD (SANDOWN LARGE STORE)
Revenue,Public Health,Public Health,Discretionary,5105687850,20.05.2016,Drug Misuse Adult- Treatment,Payment to Private Contractors,58.00,BOOTS UK LTD (SANDOWN LARGE STORE)
Revenue,Public Health,Public Health,Discretionary,5105687850,20.05.2016,Drug Misuse Adult- Treatment,Payment to Private Contractors,30.00,BOOTS UK LTD (SANDOWN LARGE STORE)
Revenue,Public Health,Public Health,Mandatory,5105685240,13.05.2016,Contraception,Payment to Private Contractors,193.50,BOOTS UK LTD (SHANKLIN)
Revenue,Public Health,Public Health,Mandatory,5105685240,13.05.2016,Contraception,Payment to Private Contractors,26.00,BOOTS UK LTD (SHANKLIN)
Revenue,Public Health,Public Health,Mandatory,5105685240,13.05.2016,Contraception,Payment to Private Contractors,56.20,BOOTS UK LTD (SHANKLIN)
Revenue,Public Health,Public Health,Mandatory,5105687849,20.05.2016,Contraception,Payment to Private Contractors,236.50,BOOTS UK LTD (SHANKLIN)
Revenue,Public Health,Public Health,Mandatory,5105687849,20.05.2016,Contraception,Payment to Private Contractors,15.60,BOOTS UK LTD (SHANKLIN)
Revenue,Public Health,Public Health,Mandatory,5105687849,20.05.2016,Contraception,Payment to Private Contractors,112.40,BOOTS UK LTD (SHANKLIN)
Revenue,Public Health,Public Health,Mandatory,5105687849,20.05.2016,Contraception,Payment to Private Contractors,3.55,BOOTS UK LTD (SHANKLIN)
Revenue,Public Health,Public Health,Discretionary,5105685240,13.05.2016,STI Tests & Treatment,Payment to Private Contractors,8.04,BOOTS UK LTD (SHANKLIN)
Revenue,Public Health,Public Health,Discretionary,5105685240,13.05.2016,STI Tests & Treatment,Payment to Private Contractors,30.00,BOOTS UK LTD (SHANKLIN)
Revenue,Public Health,Public Health,Discretionary,5105685240,13.05.2016,Drug Misuse Adult- Treatment,Payment to Private Contractors,144.00,BOOTS UK LTD (SHANKLIN)
Revenue,Public Health,Public Health,Discretionary,5105687849,20.05.2016,Drug Misuse Adult- Treatment,Payment to Private Contractors,24.00,BOOTS UK LTD (SHANKLIN)
Revenue,Public Health,Public Health,Discretionary,5105687849,20.05.2016,Drug Misuse Adult- Treatment,Payment to Private Contractors,30.00,BOOTS UK LTD (SHANKLIN)
Revenue,Public Health,Public Health,Mandatory,5105685151,04.05.2016,Contraception,Payment to Private Contractors,5.20,BOOTS UK LTD (TOWER HOUSE)
Revenue,Public Health,Public Health,Mandatory,5105685151,04.05.2016,Contraception,Payment to Private Contractors,21.50,BOOTS UK LTD (TOWER HOUSE)
Revenue,Public Health,Public Health,Mandatory,5105687884,20.05.2016,Contraception,Payment to Private Contractors,43.00,BOOTS UK LTD (TOWER HOUSE)
Revenue,Public Health,Public Health,Mandatory,5105687884,20.05.2016,Contraception,Payment to Private Contractors,5.20,BOOTS UK LTD (TOWER HOUSE)
Revenue,Public Health,Public Health,Mandatory,5105687884,20.05.2016,Contraception,Payment to Private Contractors,14.05,BOOTS UK LTD (TOWER HOUSE)
Revenue,Public Health,Public Health,Discretionary,5105685151,04.05.2016,Drug Misuse Adult- Treatment,Payment to Private Contractors,176.00,BOOTS UK LTD (TOWER HOUSE)
Revenue,Public Health,Public Health,Discretionary,5105685151,04.05.2016,Drug Misuse Adult- Treatment,Payment to Private Contractors,133.00,BOOTS UK LTD (TOWER HOUSE)
Revenue,Public Health,Public Health,Discretionary,5105687884,20.05.2016,Drug Misuse Adult- Treatment,Payment to Private Contractors,94.50,BOOTS UK LTD (TOWER HOUSE)
Revenue,Public Health,Public Health,Discretionary,5105687884,20.05.2016,Drug Misuse Adult- Treatment,Payment to Private Contractors,246.00,BOOTS UK LTD (TOWER HOUSE)
Revenue,Public Health,Public Health,Discretionary,5105687884,20.05.2016,Drug Misuse Adult- Treatment,Payment to Private Contractors,30.00,BOOTS UK LTD (TOWER HOUSE)
Revenue,Public Health,Public Health,Mandatory,5105685245,06.05.2016,Contraception,Payment to Private Contractors,5.20,BOOTS UK LTD
Revenue,Public Health,Public Health,Mandatory,5105685245,06.05.2016,Contraception,Payment to Private Contractors,21.50,BOOTS UK LTD
Revenue,Public Health,Public Health,Mandatory,5105687858,20.05.2016,Contraception,Payment to Private Contractors,21.50,BOOTS UK LTD
Revenue,Public Health,Public Health,Mandatory,5105687858,20.05.2016,Contraception,Payment to Private Contractors,5.20,BOOTS UK LTD
Revenue,Public Health,Public Health,Discretionary,5105685245,06.05.2016,Drug Misuse Adult- Treatment,Payment to Private Contractors,119.00,BOOTS UK LTD
Revenue,Public Health,Public Health,Discretionary,5105685245,06.05.2016,Drug Misuse Adult- Treatment,Payment to Private Contractors,46.00,BOOTS UK LTD
Revenue,Public Health,Public Health,Discretionary,5105687858,20.05.2016,Drug Misuse Adult- Treatment,Payment to Private Contractors,129.50,BOOTS UK LTD
Revenue,Public Health,Public Health,Discretionary,5105687858,20.05.2016,Drug Misuse Adult- Treatment,Payment to Private Contractors,538.00,BOOTS UK LTD
Revenue,Public Health,Public Health,Discretionary,5105687858,20.05.2016,Drug Misuse Adult- Treatment,Payment to Private Contractors,30.00,BOOTS UK LTD
Revenue,Public Health,Public Health,Mandatory,5105687848,20.05.2016,Contraception,Payment to Private Contractors,21.50,BOOTS UK LTD (YLB BEMBRIDGE)
Revenue,Public Health,Public Health,Mandatory,5105687848,20.05.2016,Contraception,Payment to Private Contractors,5.20,BOOTS UK LTD (YLB BEMBRIDGE)
Revenue,Public Health,Public Health,Mandatory,5105687848,20.05.2016,Contraception,Payment to Private Contractors,3.55,BOOTS UK LTD (YLB BEMBRIDGE)
Revenue,Public Health,Public Health,Discretionary,5105687848,20.05.2016,Drug Misuse Adult- Treatment,Payment to Private Contractors,30.00,BOOTS UK LTD (YLB BEMBRIDGE)
Revenue,Childrens Services,Adult Social Care,Information & Early Intervention,5105686312,13.05.2016,Practice Teaching Training,Training,600.00,BOURNEMOUTH UNIVERSITY
Revenue,Childrens Services,Adult Social Care,Information & Early Intervention,5105686314,13.05.2016,Practice Teaching Training,Training,600.00,BOURNEMOUTH UNIVERSITY
Revenue,Resources,Central Services,Central Services to the Public,5105688293,27.05.2016,Elections,Rent of Buildings and Rooms,160.00,BRADING TOWN TRUST
Revenue,Place,Cultural and Related Services,Recreation and Sport,5105687521,20.05.2016,The Heights,Stock Purchases,141.85,BRAKE BROS LTD
Revenue,Place,Cultural and Related Services,Recreation and Sport,5105685503,06.05.2016,The Heights,Stock Purchases,69.26,BRAKE BROS LTD
Revenue,Place,Housing Services,Homelessness,5105687967,25.05.2016,Leaseholds by LA,Accommodation Costs - Leaseholder Payments,746.81,BRAMBLE LETTINGS
Revenue,Place,Housing Services,Homelessness,5105687967,25.05.2016,Leaseholds by LA,Accommodation Costs - Leaseholder Payments,746.81,BRAMBLE LETTINGS
Revenue,Place,Housing Services,Homelessness,5105687967,25.05.2016,Leaseholds by LA,Accommodation Costs - Leaseholder Payments,746.81,BRAMBLE LETTINGS
Revenue,Place,Housing Services,Homelessness,5105687967,25.05.2016,Leaseholds by LA,Accommodation Costs - Leaseholder Payments,746.81,BRAMBLE LETTINGS
Revenue,Place,Housing Services,Homelessness,5105687967,25.05.2016,Leaseholds by LA,Accommodation Costs - Leaseholder Payments,746.81,BRAMBLE LETTINGS
Revenue,Place,Housing Services,Homelessness,5105687967,25.05.2016,Leaseholds by LA,Accommodation Costs - Leaseholder Payments,746.81,BRAMBLE LETTINGS
Revenue,Place,Housing Services,Homelessness,5105687967,25.05.2016,Leaseholds by LA,Accommodation Costs - Leaseholder Payments,746.81,BRAMBLE LETTINGS
Revenue,Place,Housing Services,Homelessness,5105687967,25.05.2016,Leaseholds by LA,Accommodation Costs - Leaseholder Payments,746.81,BRAMBLE LETTINGS
Revenue,Place,Housing Services,Homelessness,5105687967,25.05.2016,Leaseholds by LA,Accommodation Costs - Leaseholder Payments,746.81,BRAMBLE LETTINGS
Revenue,Place,Housing Services,Homelessness,5105687967,25.05.2016,Leaseholds by LA,Accommodation Costs - Leaseholder Payments,588.38,BRAMBLE LETTINGS
Revenue,Place,Housing Services,Homelessness,5105687967,25.05.2016,Leaseholds by LA,Accommodation Costs - Leaseholder Payments,746.81,BRAMBLE LETTINGS
Revenue,Place,Housing Services,Homelessness,5105687967,25.05.2016,Leaseholds by LA,Accommodation Costs - Leaseholder Payments,588.38,BRAMBLE LETTINGS
Revenue,Place,Housing Services,Homelessness,5105687967,25.05.2016,Leaseholds by LA,Accommodation Costs - Leaseholder Payments,588.38,BRAMBLE LETTINGS
Revenue,Place,Housing Services,Homelessness,5105687967,25.05.2016,Leaseholds by LA,Accommodation Costs - Leaseholder Payments,588.38,BRAMBLE LETTINGS
Revenue,Place,Housing Services,Homelessness,5105687967,25.05.2016,Leaseholds by LA,Accommodation Costs - Leaseholder Payments,588.38,BRAMBLE LETTINGS
Revenue,Place,Housing Services,Homelessness,5105687967,25.05.2016,Leaseholds by LA,Accommodation Costs - Leaseholder Payments,746.81,BRAMBLE LETTINGS
Revenue,Place,Housing Services,Homelessness,5105687967,25.05.2016,Leaseholds by LA,Accommodation Costs - Leaseholder Payments,746.81,BRAMBLE LETTINGS
Revenue,Place,Housing Services,Homelessness,5105687967,25.05.2016,Leaseholds by LA,Accommodation Costs - Leaseholder Payments,588.38,BRAMBLE LETTINGS
Revenue,Place,Housing Services,Homelessness,5105687967,25.05.2016,Leaseholds by LA,Accommodation Costs - Leaseholder Payments,746.81,BRAMBLE LETTINGS
Revenue,Place,Housing Services,Homelessness,5105687967,25.05.2016,Leaseholds by LA,Accommodation Costs - Leaseholder Payments,769.43,BRAMBLE LETTINGS
Revenue,Place,Housing Services,Homelessness,5105687967,25.05.2016,Leaseholds by LA,Accommodation Costs - Leaseholder Payments,746.81,BRAMBLE LETTINGS
Revenue,Place,Housing Services,Homelessness,5105687967,25.05.2016,Leaseholds by LA,Accommodation Costs - Leaseholder Payments,746.81,BRAMBLE LETTINGS
Revenue,Place,Housing Services,Homelessness,5105687967,25.05.2016,Leaseholds by LA,Accommodation Costs - Leaseholder Payments,281.66,BRAMBLE LETTINGS
Revenue,Place,Housing Services,Homelessness,5105687967,25.05.2016,Leaseholds by LA,Accommodation Costs - Leaseholder Payments,216.66,BRAMBLE LETTINGS
Revenue,Adult Services,Adult Social Care,Support - Memory /Cognition-older people (65+),5105686539,18.05.2016,Memory & Cognition Residential 65+,Charges from Independent Providers,"2,240.56",BRIGHSTONE CARE LTD
Revenue,Adult Services,Adult Social Care,Support - Memory /Cognition-older people (65+),5105686539,18.05.2016,Memory & Cognition Residential 65+,Charges from Independent Providers,"1,905.96",BRIGHSTONE CARE LTD
Revenue,Adult Services,Adult Social Care,Learning Disab Supp (to be reallocated),5105687219,20.05.2016,Overbrook,Grounds Maintenance,48.00,BRIGHSTONE LANDSCAPING LTD
Revenue,Adult Services,Adult Social Care,Learning Disab Supp (to be reallocated),5105687219,20.05.2016,Seagulls,Grounds Maintenance,48.00,BRIGHSTONE LANDSCAPING LTD
Revenue,Adult Services,Adult Social Care,Learning Disab Supp (to be reallocated),5105687219,20.05.2016,Plean Dene,Grounds Maintenance,391.66,BRIGHSTONE LANDSCAPING LTD
Revenue,Adult Services,Adult Social Care,Learning Disab Supp (to be reallocated),5105687219,20.05.2016,Saxonbury,Grounds Maintenance,48.00,BRIGHSTONE LANDSCAPING LTD
Revenue,Adult Services,Adult Social Care,Learning Disab Supp (to be reallocated),5105687219,20.05.2016,40 Venner Avenue,Grounds Maintenance,48.00,BRIGHSTONE LANDSCAPING LTD
Revenue,Adult Services,Adult Social Care,Learning Disab Supp (to be reallocated),5105687219,20.05.2016,The Laurels,Grounds Maintenance,252.00,BRIGHSTONE LANDSCAPING LTD
Revenue,Adult Services,Adult Social Care,Learning Disab Supp (to be reallocated),5105687219,20.05.2016,Westminster House,Grounds Maintenance,48.00,BRIGHSTONE LANDSCAPING LTD
Revenue,Place,Cultural and Related Services,Recreation and Sport,5105687211,18.05.2016,Ryde Harbour,Payment to Private Contractors,349.65,BRIGHSTONE LANDSCAPING LTD
Revenue,Place,Cultural and Related Services,Open Spaces,5105686438,18.05.2016,Play Areas Health & Safety work,Payment to Private Contractors,485.00,BRIGHSTONE LANDSCAPING LTD
Revenue,Place,Environmental & Regulatory Services,(Street) Cleansing (not highways),5105685899,11.05.2016,Beach Cleaning,Payment to Private Contractors,120.00,BRIGHSTONE LANDSCAPING LTD
Revenue,Place,Environmental & Regulatory Services,(Street) Cleansing (not highways),5105685600,06.05.2016,Beach Cleaning,Payment to Private Contractors,120.00,BRIGHSTONE LANDSCAPING LTD
Revenue,Place,Environmental & Regulatory Services,(Street) Cleansing (not highways),5105685594,06.05.2016,Beach Cleaning,Payment to Private Contractors,45.00,BRIGHSTONE LANDSCAPING LTD
Revenue,Place,Environmental & Regulatory Services,(Street) Cleansing (not highways),5105687894,20.05.2016,Beach Cleaning,Payment to Private Contractors,882.35,BRIGHSTONE LANDSCAPING LTD
Revenue,Place,Environmental & Regulatory Services,(Street) Cleansing (not highways),5105687919,25.05.2016,Beach Cleaning,Payment to Private Contractors,35.00,BRIGHSTONE LANDSCAPING LTD
Revenue,Place,Environmental & Regulatory Services,(Street) Cleansing (not highways),5105688513,27.05.2016,Beach Cleaning,Payment to Private Contractors,245.00,BRIGHSTONE LANDSCAPING LTD
Revenue,Place,Environmental & Regulatory Services,(Street) Cleansing (not highways),5105688647,27.05.2016,Beach Cleaning,Payment to Private Contractors,161.80,BRIGHSTONE LANDSCAPING LTD
Revenue,Place,Environmental & Regulatory Services,(Street) Cleansing (not highways),5105688646,27.05.2016,Beach Cleaning,Payment to Private Contractors,45.00,BRIGHSTONE LANDSCAPING LTD
Revenue,Place,Cultural and Related Services,Recreation and Sport,5105685558,06.05.2016,Beach Safety & Inspection / Beach Awards,Payment to Private Contractors,100.00,BRIGHSTONE LANDSCAPING LTD
Revenue,Place,Cultural and Related Services,Recreation and Sport,5105688118,25.05.2016,Beach Safety & Inspection / Beach Awards,Payment to Private Contractors,105.00,BRIGHSTONE LANDSCAPING LTD
Revenue,Place,Cultural and Related Services,Recreation and Sport,5105686271,13.05.2016,Beach Safety & Inspection / Beach Awards,Payment to Private Contractors,100.00,BRIGHSTONE LANDSCAPING LTD
Revenue,Place,Cultural and Related Services,Recreation and Sport,5105687211,18.05.2016,Beach Safety & Inspection / Beach Awards,Payment to Private Contractors,"1,000.35",BRIGHSTONE LANDSCAPING LTD
Revenue,Place,Environmental & Regulatory Services,Coast Protection,5105685558,06.05.2016,Coast Protection,Payment to Private Contractors,100.00,BRIGHSTONE LANDSCAPING LTD
Revenue,Place,Environmental & Regulatory Services,Coast Protection,5105687205,18.05.2016,Coast Protection,Payment to Private Contractors,75.00,BRIGHSTONE LANDSCAPING LTD
Revenue,Childrens Services,Children's & Education Services,Other Education and Community Budget,5105686328,18.05.2016,Adult Community Learning,Licences,37.00,BRITISH COMPUTER SOCIETY
Revenue,Childrens Services,Children's & Education Services,Other Education and Community Budget,5105686348,18.05.2016,Adult Community Learning,Licences,30.00,BRITISH COMPUTER SOCIETY
Revenue,Childrens Services,Children's & Education Services,Other Education and Community Budget,5105688530,27.05.2016,Adult Community Learning,Licences,111.00,BRITISH COMPUTER SOCIETY
Revenue,Childrens Services,Children's & Education Services,Other Education and Community Budget,5105688578,27.05.2016,Adult Community Learning,Licences,46.00,BRITISH COMPUTER SOCIETY
Revenue,Public Health,Public Health,Mandatory,5105682103,11.05.2016,NHS Health Check Programme,Payment to Private Contractors,97.00,BROOKSIDE HEALTH CENTRE
